Ref No,Fund Type,Dept,Cost Centre Description    ,Description    ,Creditor Name    ,GL Code Net Amount,Payment date        
2,Revenue,CAHD,Younger MH non-res purchasing,Supported Living,Keystone Mental Health Services Limited,599.92, 09-Apr-2019
3,Revenue,CAHD,18-25 Year Olds,Permanent Residential,1 St Georges House,6666.76, 09-Apr-2019
4,Revenue,CAHD,18-25 Year Olds,Permanent Residential,1 St Georges House,6510.50, 09-Apr-2019
5,Revenue,CAHD,CSC - Care Leavers Independent Living,Adults - Family Support,1625 Independent People,752.14, 09-Apr-2019
6,Revenue,CAHD,CSC - Asylum Seekers - Unaccompanied,Client Transport,1625 Independent People,132.50, 08-Apr-2019
7,Revenue,CAHD,CSC - Asylum Seekers - Unaccompanied,Furniture & Fittings Loose,1625 Independent People,129.99, 08-Apr-2019
8,Revenue,CAHD,CSC - Asylum Seekers - Unaccompanied,Other Supplies & Services,1625 Independent People,40.00, 08-Apr-2019
9,Revenue,CAHD,CSC - Asylum Seekers - Unaccompanied,Leaving Care,1625 Independent People,250.05, 08-Apr-2019
10,Revenue,CAHD,CSC - Asylum Seekers - Unaccompanied,Client Transport,1625 Independent People,66.00, 17-Apr-2019
11,Revenue,CAHD,CSC - Asylum Seekers - Unaccompanied,Other Supplies & Services,1625 Independent People,205.98, 17-Apr-2019
12,Revenue,CAHD,CSC - Asylum Seekers - Unaccompanied,Adults - Family Support,1625 Independent People,289.75, 17-Apr-2019
13,Revenue,CAHD,Supporting People Programme,Grants to Voluntary Bodies,1625 Independent People,15167.00, 05-Apr-2019
14,Revenue,CAHD,Supporting People Programme,Grants to Voluntary Bodies,1625 Independent People,9811.67, 04-Apr-2019
15,Revenue,CAHD,CSC - Care Leavers Independent Living,Adults - Family Support,16Pluscare Support Solutions,5679.80, 10-Apr-2019
16,Revenue,CAHD,CSC - Asylum Seekers - Unaccompanied,Adults - Family Support,16Pluscare Support Solutions,5679.80, 10-Apr-2019
17,Revenue,CAHD,Bed Purchasing - North,Permanent Residential,1St Floor Lingfield House,1370.74, 09-Apr-2019
18,Revenue,CAHD,Bed Purchasing - North,Permanent Residential,1St Floor Lingfield House,1338.62, 09-Apr-2019
19,Revenue,CAHD,Bed Purchasing - North,Permanent Nursing,1St Floor Lingfield House,1134.16, 09-Apr-2019
20,Revenue,CAHD,Bed Purchasing - North,Permanent Nursing,1St Floor Lingfield House,1107.58, 09-Apr-2019
21,Revenue,CAHD,Homecare - Central,Day Care / Social Activities,3 Trees Community Support Ltd,380.80, 16-Apr-2019
22,Revenue,CAHD,Homecare - Central,Other Small Contracts,3 Trees Community Support Ltd,2964.66, 16-Apr-2019
23,Revenue,CAHD,Homecare - Central,Supported Living,3 Trees Community Support Ltd,5461.91, 16-Apr-2019
24,Revenue,CAHD,Home Care - Elderly - North,Day Care / Social Activities,3 Trees Community Support Ltd,656.88, 16-Apr-2019
25,Revenue,CAHD,Homecare - Central,Day Care / Social Activities,3 Trees Community Support Ltd,380.80, 16-Apr-2019
26,Revenue,CAHD,Homecare - Central,Other Small Contracts,3 Trees Community Support Ltd,3097.94, 16-Apr-2019
27,Revenue,CAHD,Homecare - Central,Supported Living,3 Trees Community Support Ltd,5453.40, 16-Apr-2019
28,Revenue,CAHD,Home Care - Elderly - North,Day Care / Social Activities,3 Trees Community Support Ltd,666.40, 16-Apr-2019
29,Revenue,CAHD,Homecare - Central,Day Care / Social Activities,3 Trees Community Support Ltd,385.56, 24-Apr-2019
30,Revenue,CAHD,Homecare - Central,Other Small Contracts,3 Trees Community Support Ltd,4300.80, 24-Apr-2019
31,Revenue,CAHD,Homecare - Central,Supported Living,3 Trees Community Support Ltd,5428.24, 24-Apr-2019
32,Revenue,CAHD,Home Care - Elderly - North,Day Care / Social Activities,3 Trees Community Support Ltd,656.88, 24-Apr-2019
33,Revenue,CAHD,18-25 Year Olds,Permanent Residential,5Th Floor Harlech Court,7627.46, 09-Apr-2019
34,Revenue,CAHD,18-25 Year Olds,Permanent Residential,5Th Floor Harlech Court,7448.70, 09-Apr-2019
35,Revenue,CAHD,18-25 Year Olds,Permanent Residential,5Th Floor Harlech Court,9109.66, 09-Apr-2019
36,Revenue,CAHD,18-25 Year Olds,Permanent Residential,5Th Floor Harlech Court,8896.16, 09-Apr-2019
37,Revenue,CAHD,Bed Purchasing - North,Permanent Residential,5Th Floor Harlech Court,6907.92, 09-Apr-2019
38,Revenue,CAHD,Bed Purchasing - North,Permanent Residential,5Th Floor Harlech Court,6746.02, 09-Apr-2019
39,Revenue,CAHD,18-25 Year Olds,Permanent Residential,5Th Floor Harlech Court,6914.78, 09-Apr-2019
40,Revenue,CAHD,18-25 Year Olds,Permanent Residential,5Th Floor Harlech Court,6752.72, 09-Apr-2019
41,Revenue,CAHD,Bed Purchasing - North,Permanent Residential,5Th Floor Harlech Court,7358.58, 09-Apr-2019
42,Revenue,CAHD,Jointly Funded H&SC Packages,Permanent Residential,5Th Floor Harlech Court,1820.92, 09-Apr-2019
43,Revenue,CAHD,Bed Purchasing - North,Permanent Residential,5Th Floor Harlech Court,7186.12, 09-Apr-2019
44,Revenue,CAHD,Jointly Funded H&SC Packages,Permanent Residential,5Th Floor Harlech Court,1778.24, 09-Apr-2019
45,Revenue,CAHD,Bed Purchasing - South,Permanent Residential,5Th Floor Harlech Court,8333.56, 09-Apr-2019
46,Revenue,CAHD,Bed Purchasing - South,Permanent Residential,5Th Floor Harlech Court,8138.24, 09-Apr-2019
47,Revenue,CAHD,Bed Purchasing - South,Permanent Residential,5Th Floor Harlech Court,5209.76, 09-Apr-2019
48,Revenue,CAHD,Bed Purchasing - South,Permanent Residential,5Th Floor Harlech Court,5087.66, 09-Apr-2019
49,Revenue,CAHD,Bed purchasing - S28A Under 65 - South,Permanent Residential,5Th Floor Harlech Court,5452.34, 09-Apr-2019
50,Revenue,CAHD,Bed purchasing - S28A Under 65 - South,Permanent Residential,5Th Floor Harlech Court,5324.56, 09-Apr-2019
51,Revenue,CAHD,Bed Purchasing - South,Permanent Residential,5Th Floor Harlech Court,5718.20, 09-Apr-2019
52,Revenue,CAHD,Bed Purchasing - South,Permanent Residential,5Th Floor Harlech Court,5584.18, 09-Apr-2019
53,Revenue,CAHD,Bed Purchasing - North,Permanent Residential,5Th Floor Harlech Court,6249.28, 09-Apr-2019
54,Revenue,CAHD,Bed Purchasing - North,Permanent Residential,5Th Floor Harlech Court,6102.82, 09-Apr-2019
55,Revenue,CAHD,Bed Purchasing - North,Permanent Residential,5Th Floor Harlech Court,5268.62, 09-Apr-2019
56,Revenue,CAHD,Bed Purchasing - North,Permanent Residential,5Th Floor Harlech Court,5145.14, 09-Apr-2019
57,Revenue,CAHD,Bed Purchasing - North,Permanent Residential,5Th Floor Harlech Court,4535.56, 09-Apr-2019
58,Revenue,CAHD,Bed Purchasing - North,Permanent Residential,5Th Floor Harlech Court,4429.26, 09-Apr-2019
59,Revenue,CAHD,CSC - Vinney Green Secure Unit,R & M by Departments,A E Horder (Contracting) Limited,639.75, 26-Apr-2019
60,Revenue,CAHD,Community Care Contact Centre,Furniture & Fittings Loose,A E Horder (Contracting) Limited,1534.77, 23-Apr-2019
61,Revenue,CAHD,CSC - Care Leavers Independent Living,Adults - Family Support,Individual,800.00, 05-Apr-2019
62,Revenue,CAHD,CSC - Special Guardianship Orders,Special Payments,Individual,1656.00, 12-Apr-2019
63,Revenue,CAHD,Social Lettings Agency,Other Supplies & Services,Ablemove-Wottons,1114.80, 12-Apr-2019
64,Revenue,CAHD,Home Care - Elderly - South,Day Care / Social Activities,About Me Care and Support Limited,1386.32, 15-Apr-2019
65,Revenue,CAHD,Home Care - Elderly - North,Day Care / Social Activities,About Me Care and Support Limited,626.08, 08-Apr-2019
66,Revenue,CAHD,Schools Specific Grant Income,Other Supplies & Services,Academy 21 Ltd,660.00, 08-Apr-2019
67,Revenue,CAHD,Schools Specific Grant Income,Other Supplies & Services,Academy 21 Ltd,1008.00, 08-Apr-2019
68,Revenue,CAHD,Schools Specific Grant Income,Other Supplies & Services,Academy 21 Ltd,864.00, 08-Apr-2019
69,Revenue,CAHD,Section 117 Placements MH Younger,Permanent Residential,Acorn Care Providers,3304.10, 09-Apr-2019
70,Revenue,CAHD,Section 117 Placements MH Younger,Permanent Residential,Acorn Care Providers,3226.66, 09-Apr-2019
71,Revenue,CAHD,MH Purchasing - Younger,Permanent Residential,Acorn Care Providers,3072.00, 09-Apr-2019
72,Revenue,CAHD,MH Purchasing - Younger,Permanent Residential,Acorn Care Providers,3000.00, 09-Apr-2019
73,Revenue,CAHD,Training - Adult Services,Training Expenses,Acorn Health & Safety Limited,465.00, 05-Apr-2019
74,Revenue,CAHD,Training - Adult Services,Training Expenses,Acorn Health & Safety Limited,465.00, 17-Apr-2019
75,Revenue,CAHD,Training - Adult Services,Training Expenses,Acorn Health & Safety Limited,465.00, 25-Apr-2019
76,Revenue,CAHD,Training - Adult Services,Training Expenses,Acorn Health & Safety Limited,422.75, 25-Apr-2019
77,Revenue,CAHD,CSC - Agency Fostering,Foster Parent Allowances,Action for Children,3352.34, 08-Apr-2019
78,Revenue,CAHD,CSC - Agency Fostering,Foster Parent Allowances,Action for Children,6975.00, 10-Apr-2019
79,Revenue,CAHD,CSC - Agency Fostering,Foster Parent Allowances,Action for Children,3660.17, 08-Apr-2019
80,Revenue,CAHD,CSC - Agency Fostering,Foster Parent Allowances,Action for Children,3660.17, 08-Apr-2019
81,Revenue,CAHD,CSC - Agency Fostering,Foster Parent Allowances,Action for Children,3852.68, 08-Apr-2019
82,Revenue,CAHD,West of England Partnership,Other Small Contracts,Adrian Davis Associates,3900.00, 17-Apr-2019
83,Revenue,CAHD,Home Care - Elderly - South,Other Small Contracts,Advantedge Commercial Finance Limited,623.10, 17-Apr-2019
84,Revenue,CAHD,Home Care - Elderly - South,Other Small Contracts,Advantedge Commercial Finance Limited,1236.90, 15-Apr-2019
85,Revenue,CAHD,Home Care - Elderly - South,Other Small Contracts,Advantedge Commercial Finance Limited,771.90, 24-Apr-2019
86,Revenue,CAHD,Home Care - Elderly - South,Other Small Contracts,Advantedge Commercial Finance Limited,1302.00, 15-Apr-2019
87,Revenue,CAHD,Home Care - Elderly - South,Other Small Contracts,Advantedge Commercial Finance Limited,1302.00, 30-Apr-2019
88,Revenue,CAHD,Home Care - Elderly - South,Other Small Contracts,Advantedge Commercial Finance Limited,613.80, 23-Apr-2019
89,Revenue,CAHD,Home Care - Elderly - South,Other Small Contracts,Advantedge Commercial Finance Limited,520.80, 23-Apr-2019
90,Revenue,CAHD,Home Care - Elderly - South,Other Small Contracts,Advantedge Commercial Finance Limited,641.70, 18-Apr-2019
91,Revenue,CAHD,Home Care - Elderly - South,Other Small Contracts,Advantedge Commercial Finance Limited,785.85, 18-Apr-2019
92,Revenue,CAHD,Home Care - Elderly - North,Other Small Contracts,Advantedge Commercial Finance Limited,762.60, 18-Apr-2019
93,Revenue,CAHD,Home Care - Elderly - South,Other Small Contracts,Advantedge Commercial Finance Limited,599.85, 15-Apr-2019
94,Revenue,CAHD,Home Care - Elderly - South,Day Care / Social Activities,Age UK - Grace Court,512.20, 09-Apr-2019
95,Revenue,CAHD,Health Inequalities,Other Small Contracts,Age UK South Gloucestershire,12000.00, 15-Apr-2019
96,Revenue,CAHD,Homecare - Central,Other Small Contracts,Agincare UK Limited,480.60, 12-Apr-2019
97,Revenue,CAHD,Home Care - Elderly - South,Other Small Contracts,Agincare UK Limited,538.45, 12-Apr-2019
98,Revenue,CAHD,Homecare - Central,Other Small Contracts,Agincare UK Limited,453.90, 16-Apr-2019
99,Revenue,CAHD,Home Care - Elderly - South,Other Small Contracts,Agincare UK Limited,525.10, 16-Apr-2019
100,Revenue,CAHD,Homecare - Central,Other Small Contracts,Agincare UK Limited,551.80, 24-Apr-2019
101,Revenue,CAHD,Home Care - Elderly - South,Other Small Contracts,Agincare UK Limited,529.55, 24-Apr-2019
102,Revenue,CAHD,Extra Care Housing,Private & Voluntary Home Care,Agincare UK Limited,23256.50, 01-Apr-2019
103,Revenue,CAHD,Extra Care Housing,Private & Voluntary Home Care,Agincare UK Limited,11253.50, 01-Apr-2019
104,Revenue,CAHD,Extra Care Housing,Private & Voluntary Home Care,Agincare UK Limited,27590.00, 04-Apr-2019
105,Revenue,CAHD,Extra Care Housing,Private & Voluntary Home Care,Agincare UK Limited,1328.34, 08-Apr-2019
106,Revenue,CAHD,Extra Care Housing,Private & Voluntary Home Care,Agincare UK Limited,698.23, 09-Apr-2019
107,Revenue,CAHD,Extra Care Housing,Private & Voluntary Home Care,Agincare UK Limited,6953.36, 08-Apr-2019
108,Revenue,CAHD,Extra Care Housing,Private & Voluntary Home Care,Agincare UK Limited,7005.96, 10-Apr-2019
109,Revenue,CAHD,Extra Care Housing,Private & Voluntary Home Care,Agincare UK Limited,4218.19, 05-Apr-2019
110,Revenue,CAHD,Extra Care Housing,Private & Voluntary Home Care,Agincare UK Limited,2616.08, 09-Apr-2019
111,Revenue,CAHD,18-25 Year Olds,Permanent Residential,Alexander House,110802.24, 09-Apr-2019
112,Revenue,CAHD,18-25 Year Olds,Permanent Residential,Alexander House,7091.34, 09-Apr-2019
113,Revenue,CAHD,18-25 Year Olds,Permanent Residential,Alexander House,6925.14, 09-Apr-2019
114,Revenue,CAHD,18-25 Year Olds,Fees & Charges Income - General,Alexander House,3272.00, 09-Apr-2019
115,Revenue,CAHD,Home Care - Elderly - South,Other Small Contracts,AliMo Care Ltd,543.83, 16-Apr-2019
116,Revenue,CAHD,Home Care - Elderly - North,Other Small Contracts,AliMo Care Ltd,137.10, 16-Apr-2019
117,Revenue,CAHD,Home Care - Elderly - South,Other Small Contracts,AliMo Care Ltd,539.26, 16-Apr-2019
118,Revenue,CAHD,Home Care - Elderly - North,Other Small Contracts,AliMo Care Ltd,127.96, 16-Apr-2019
119,Revenue,CAHD,Home Care - Elderly - South,Other Small Contracts,AliMo Care Ltd,530.12, 26-Apr-2019
120,Revenue,CAHD,Home Care - Elderly - North,Other Small Contracts,AliMo Care Ltd,118.82, 26-Apr-2019
121,Revenue,CAHD,Home Care - Elderly - South,Other Small Contracts,AliMo Care Ltd,530.12, 26-Apr-2019
122,Revenue,CAHD,Home Care - Elderly - North,Other Small Contracts,AliMo Care Ltd,114.25, 26-Apr-2019
123,Revenue,CAHD,Home Care - Elderly - South,Other Small Contracts,AliMo Care Ltd,507.27, 26-Apr-2019
124,Revenue,CAHD,Home Care - Elderly - North,Other Small Contracts,AliMo Care Ltd,114.25, 26-Apr-2019
125,Revenue,CAHD,Home Care - Elderly - South,Other Small Contracts,AliMo Care Ltd,528.84, 26-Apr-2019
126,Revenue,CAHD,Home Care - Elderly - North,Other Small Contracts,AliMo Care Ltd,117.00, 26-Apr-2019
127,Revenue,CAHD,Bed Purchasing - North,Permanent Nursing,Allambie Court,1160.22, 09-Apr-2019
128,Revenue,CAHD,Bed Purchasing - North,Permanent Nursing,Allambie Court,1133.02, 09-Apr-2019
129,Revenue,CAHD,Bed Purchasing - North,Permanent Nursing,Allambie Court,1160.22, 09-Apr-2019
130,Revenue,CAHD,Bed Purchasing - North,Permanent Nursing,Allambie Court,1133.02, 09-Apr-2019
131,Revenue,CAHD,ASSIST - Health Promotion in Schools,Other Supplies & Services,AlterEgo Creative Solutions Ltd,4950.00, 10-Apr-2019
132,Revenue,CAHD,Drug and Alcohol Programme,Other Small Contracts,Alveston Pharmacy,825.00, 29-Apr-2019
133,Revenue,CAHD,Bed Purchasing - North,Permanent Nursing,Amerind Grove Nursing Home,1353.16, 09-Apr-2019
134,Revenue,CAHD,Bed Purchasing - North,Permanent Nursing,Amerind Grove Nursing Home,1321.44, 09-Apr-2019
135,Revenue,CAHD,A & CL - Project Funding 18/19,Computer Equipment - Purchase,Amey Computer Services,509.97, 05-Apr-2019
136,Revenue,CAHD,A & CL - Project Funding 18/19,Educational Materials,Amey Computer Services,1974.00, 12-Apr-2019
137,Revenue,CAHD,A & CL - Project Funding 18/19,Educational Materials,Amey Computer Services,452.00, 18-Apr-2019
138,Revenue,CAHD,CSC - Agency Fostering,Foster Parent Allowances,Amicus Foster Care Ltd,5070.67, 04-Apr-2019
139,Revenue,CAHD,CSC - Agency Fostering,Foster Parent Allowances,Amicus Foster Care Ltd,3262.44, 29-Apr-2019
140,Revenue,CAHD,CSC - Agency Fostering,Foster Parent Allowances,Amicus Foster Care Ltd,4879.00, 04-Apr-2019
141,Revenue,CAHD,EARLY YEARS DISABILITY  ACCES FUND,Preventative Assistance,Anchor Day Nursery Ltd,615.00, 04-Apr-2019
142,Revenue,CAHD,Early Years Inclusion Fund,Other Public Bodies,Anchor Day Nursery Ltd,650.00, 05-Apr-2019
143,Revenue,CAHD,Supporting People Programme,Grants to Voluntary Bodies,Anchor Hanover Group,1043.00, 05-Apr-2019
144,Revenue,CAHD,Supporting People Programme,Grants to Voluntary Bodies,Anchor Hanover Group,855.00, 05-Apr-2019
145,Revenue,CAHD,CSC - Adoption Support Fund,Post Adoption,Individual,270.00, 26-Apr-2019
146,Revenue,CAHD,CSC - Adoption Support Fund,Post Adoption,Individual,270.00, 26-Apr-2019
147,Revenue,CAHD,CAHA - Complaints and FOI,Complaints External Expenses,Annette Upshall,717.80, 29-Apr-2019
148,Revenue,CAHD,Early Years High Needs Support,Other Private Contractors,Apple Tree Pre-School,516.72, 30-Apr-2019
149,Revenue,CAHD,Independent Special Placements - Pre 16,Other Private Contractors,Arc Schools,18625.00, 12-Apr-2019
150,Revenue,CAHD,Jointly Funded H&SC Packages,Permanent Residential,Ash View House,555.70, 09-Apr-2019
151,Revenue,CAHD,Bed Purchasing - South,Permanent Residential,Ash View House,2710.52, 09-Apr-2019
152,Revenue,CAHD,Jointly Funded H&SC Packages,Permanent Residential,Ash View House,542.68, 09-Apr-2019
153,Revenue,CAHD,Bed Purchasing - South,Permanent Residential,Ash View House,2646.98, 09-Apr-2019
154,Revenue,CAHD,S117 Placements PCT,Permanent Residential,Ash View House,3778.16, 09-Apr-2019
155,Revenue,CAHD,S117 Placements PCT,Permanent Residential,Ash View House,3689.60, 09-Apr-2019
156,Revenue,CAHD,18-25 Year Olds,Permanent Residential,Ash View House,3549.76, 09-Apr-2019
157,Revenue,CAHD,18-25 Year Olds,Permanent Residential,Ash View House,3466.56, 09-Apr-2019
158,Revenue,CAHD,Section 117 Placements MH Younger,Permanent Residential,Ash View House,2462.06, 09-Apr-2019
159,Revenue,CAHD,Jointly Funded H&SC Packages,Permanent Residential,Ash View House,1055.20, 09-Apr-2019
160,Revenue,CAHD,Section 117 Placements MH Younger,Permanent Residential,Ash View House,2404.36, 09-Apr-2019
161,Revenue,CAHD,Jointly Funded H&SC Packages,Permanent Residential,Ash View House,1030.46, 09-Apr-2019
162,Revenue,CAHD,Bed purchasing - Elderly S117 - South,Permanent Residential,Ash View House,3346.40, 09-Apr-2019
163,Revenue,CAHD,Bed purchasing - Elderly S117 - South,Permanent Residential,Ash View House,3267.96, 09-Apr-2019
164,Revenue,CAHD,18-25 Year Olds,Permanent Residential,Ash View House,3307.76, 09-Apr-2019
165,Revenue,CAHD,18-25 Year Olds,Permanent Residential,Ash View House,3230.24, 09-Apr-2019
166,Revenue,CAHD,Bed and Breakfast,Bed & Breakfast,Ashley Guest Houses Limited,440.00, 08-Apr-2019
167,Revenue,CAHD,Drug and Alcohol Programme,Electricity,Ashville Asset Management Limited,521.52, 26-Apr-2019
168,Revenue,CAHD,Bed Purchasing - North,Permanent Residential,Aspects 2 Limited,3615.94, 09-Apr-2019
169,Revenue,CAHD,Bed Purchasing - North,Permanent Residential,Aspects 2 Limited,3531.20, 09-Apr-2019
170,Revenue,CAHD,Supporting People Programme,Grants to Voluntary Bodies,Aspects and Milestones Trust,3448.00, 05-Apr-2019
171,Revenue,CAHD,Supporting People Programme,Grants to Voluntary Bodies,Aspects and Milestones Trust,1730.00, 05-Apr-2019
172,Revenue,CAHD,A & CL - Project Funding 18/19,Consultants Fees,Aspiro Education Ltd,1780.00, 05-Apr-2019
173,Revenue,CAHD,A & CL - Project Funding 18/19,Consultants Fees,Aspiro Education Ltd,1776.55, 18-Apr-2019
174,Revenue,CAHD,HQ Office & Communications (ICT),Membership Fees,Association of Directors of Childrens Services Ltd,2351.25, 09-Apr-2019
175,Revenue,CAHD,Home Care - Elderly - South,Adults - Family Support,Ategi Limited,771.96, 08-Apr-2019
176,Revenue,CAHD,Home Care - Elderly - South,Adults - Family Support,Ategi Limited,671.19, 25-Apr-2019
177,Revenue,CAHD,Bed Purchasing - South,Adults - Family Support,Ategi Limited,13696.07, 04-Apr-2019
178,Revenue,CAHD,Independent Special Placements - Pre 16,Other Private Contractors,Aurora Care & Education,26333.33, 05-Apr-2019
179,Revenue,CAHD,Bed Purchasing - South,Permanent Residential,Autism Specialised Care Homes,3253.44, 09-Apr-2019
180,Revenue,CAHD,Bed Purchasing - South,Permanent Residential,Autism Specialised Care Homes,3177.18, 09-Apr-2019
181,Revenue,CAHD,Bed Purchasing - North,Permanent Residential,Avery Homes Downend Limited,2150.40, 09-Apr-2019
182,Revenue,CAHD,Bed Purchasing - North,Permanent Residential,Avery Homes Downend Limited,2100.00, 09-Apr-2019
183,Revenue,CAHD,CSC - Asylum Seekers - Unaccompanied,Legal Fees,Avon & Bristol Law Centre,933.80, 23-Apr-2019
184,Revenue,CAHD,CSC - Legal Fees,Legal Fees,Avon & Somerset Family Law,1287.75, 15-Apr-2019
185,Revenue,CAHD,Research & Conferences,Conference Expenses,Avon & Wiltshire Mental Health,2627.88, 18-Apr-2019
186,Revenue,CAHD,Health Inequalities,Other Small Contracts,Avon Local Pharmaceutical Committee,3672.00, 15-Apr-2019
187,Revenue,CAHD,Early Years High Needs Support,Other Private Contractors,Baker Street Nursery & Pre-School,880.77, 30-Apr-2019
188,Revenue,CAHD,CSC - Quality Review Unit,Agency Staff (Admin/Support Staff) Pay,Baltimore Consulting Group,1920.00, 01-Apr-2019
189,Revenue,CAHD,CSC - Quality Review Unit,Agency Staff (Admin/Support Staff) Pay,Baltimore Consulting Group,4800.00, 17-Apr-2019
190,Revenue,CAHD,Childrens - Safeguarding Board,Training Expenses,Barnardo Services Limited,425.00, 02-Apr-2019
191,Revenue,CAHD,Pensions - Non DSG,Annual Pension,Bath & North East Somerset Council,6181.90, 11-Apr-2019
192,Revenue,CAHD,Pensions - Non DSG,Annual Pension,Bath & North East Somerset Council,108151.08, 11-Apr-2019
193,Revenue,CAHD,Pensions - Non DSG,Annual Pension,Bath & North East Somerset Council,4147.77, 18-Apr-2019
194,Revenue,CAHD,Verification of EYFSP Assessment,External Lecturers Fees,Bath & North East Somerset Council,540.00, 29-Apr-2019
195,Revenue,CAHD,Independent Special Placements - Pre 16,Other Private Contractors,Bath Road Priory,77550.00, 18-Apr-2019
196,Revenue,CAHD,School Improvement and Support,Catering,Bawa Healthcare & Leisure,2055.01, 26-Apr-2019
197,Revenue,CAHD,School Improvement and Support,Premises Hire,Bawa Healthcare & Leisure,720.00, 26-Apr-2019
198,Revenue,CAHD,Pathway 3 - (Complex Beds),Permanent Nursing,Beaufort Care Ltd,5441.00, 09-Apr-2019
199,Revenue,CAHD,South Glos Users in South Glos Homes,Permanent Nursing,Beaufort Grange Care Home,632.64, 09-Apr-2019
200,Revenue,CAHD,Bed Purchasing - South,Respite Planned - Residential,Beaufort Grange Care Home,2672.64, 09-Apr-2019
201,Revenue,CAHD,Bed Purchasing - South,Respite Planned - Residential,Beaufort Grange Care Home,2610.00, 09-Apr-2019
202,Revenue,CAHD,South Glos Users in South Glos Homes,Permanent Nursing,Beaufort Grange Care Home,632.64, 09-Apr-2019
203,Revenue,CAHD,South Glos Users in South Glos Homes,Permanent Nursing,Beaufort Grange Care Home,632.64, 09-Apr-2019
204,Revenue,CAHD,South Glos Users in South Glos Homes,Permanent Nursing,Beaufort Grange Care Home,632.64, 09-Apr-2019
205,Revenue,CAHD,South Glos Users in South Glos Homes,Permanent Nursing,Beaufort Grange Care Home,632.64, 09-Apr-2019
206,Revenue,CAHD,South Glos Users in South Glos Homes,Permanent Nursing,Beaufort Grange Care Home,632.64, 09-Apr-2019
207,Revenue,CAHD,South Glos Users in South Glos Homes,Permanent Nursing,Beaufort Grange Care Home,632.64, 09-Apr-2019
208,Revenue,CAHD,South Glos Users in South Glos Homes,Permanent Nursing,Beaufort Grange Care Home,632.64, 09-Apr-2019
209,Revenue,CAHD,South Glos Users in South Glos Homes,Permanent Nursing,Beaufort Grange Care Home,632.64, 09-Apr-2019
210,Revenue,CAHD,Bed Purchasing - Elderly S117- North,Permanent Nursing,Beaufort Grange Care Home,2438.52, 09-Apr-2019
211,Revenue,CAHD,Bed Purchasing - Elderly S117- North,Permanent Nursing,Beaufort Grange Care Home,2381.36, 09-Apr-2019
212,Revenue,CAHD,South Glos Users in South Glos Homes,Permanent Nursing,Beaufort Grange Care Home,632.64, 09-Apr-2019
213,Revenue,CAHD,South Glos Users in South Glos Homes,Permanent Nursing,Beaufort Grange Care Home,632.64, 09-Apr-2019
214,Revenue,CAHD,South Glos Users in South Glos Homes,Permanent Nursing,Beaufort Grange Care Home,632.64, 09-Apr-2019
215,Revenue,CAHD,South Glos Users in South Glos Homes,Permanent Nursing,Beaufort Grange Care Home,632.64, 09-Apr-2019
216,Revenue,CAHD,Bed Purchasing - South,Respite Planned - Nursing,Beaufort Grange Care Home,2293.68, 09-Apr-2019
217,Revenue,CAHD,South Glos Users in South Glos Homes,Permanent Nursing,Beaufort Grange Care Home,632.64, 09-Apr-2019
218,Revenue,CAHD,South Glos Users in South Glos Homes,Permanent Nursing,Beaufort Grange Care Home,632.64, 09-Apr-2019
219,Revenue,CAHD,South Glos Users in South Glos Homes,Permanent Nursing,Beaufort Grange Care Home,632.64, 09-Apr-2019
220,Revenue,CAHD,South Glos Users in South Glos Homes,Permanent Nursing,Beaufort Grange Care Home,632.64, 09-Apr-2019
221,Revenue,CAHD,South Glos Users in South Glos Homes,Permanent Nursing,Beaufort Grange Care Home,632.64, 09-Apr-2019
222,Revenue,CAHD,South Glos Users in South Glos Homes,Permanent Nursing,Beaufort Grange Care Home,632.64, 09-Apr-2019
223,Revenue,CAHD,South Glos Users in South Glos Homes,Permanent Nursing,Beaufort Grange Care Home,632.64, 09-Apr-2019
224,Revenue,CAHD,South Glos Users in South Glos Homes,Permanent Nursing,Beaufort Grange Care Home,632.64, 09-Apr-2019
225,Revenue,CAHD,South Glos Users in South Glos Homes,Permanent Nursing,Beaufort Grange Care Home,632.64, 09-Apr-2019
226,Revenue,CAHD,South Glos Users in South Glos Homes,Permanent Nursing,Beaufort Grange Care Home,632.64, 09-Apr-2019
227,Revenue,CAHD,Bed Purchasing - South,Permanent Residential,Beaufort Grange Care Home,2578.10, 09-Apr-2019
228,Revenue,CAHD,Bed Purchasing - South,Permanent Residential,Beaufort Grange Care Home,2517.68, 09-Apr-2019
229,Revenue,CAHD,Bed Purchasing - South,Permanent Residential,Beaufort Grange Care Home,2337.85, 09-Apr-2019
230,Revenue,CAHD,South Glos Users in South Glos Homes,Permanent Nursing,Beaufort Grange Care Home,632.64, 09-Apr-2019
231,Revenue,CAHD,South Glos Users in South Glos Homes,Permanent Nursing,Beaufort Grange Care Home,632.64, 09-Apr-2019
232,Revenue,CAHD,South Glos Users in South Glos Homes,Permanent Nursing,Beaufort Grange Care Home,632.64, 09-Apr-2019
233,Revenue,CAHD,South Glos Users in South Glos Homes,Permanent Nursing,Beaufort Grange Care Home,632.64, 09-Apr-2019
234,Revenue,CAHD,South Glos Users in South Glos Homes,Permanent Nursing,Beaufort Grange Care Home,632.64, 09-Apr-2019
235,Revenue,CAHD,South Glos Users in South Glos Homes,Permanent Nursing,Beaufort Grange Care Home,632.64, 09-Apr-2019
236,Revenue,CAHD,South Glos Users in South Glos Homes,Permanent Nursing,Beaufort Grange Care Home,632.64, 09-Apr-2019
237,Revenue,CAHD,South Glos Users in South Glos Homes,Permanent Nursing,Beaufort Grange Care Home,632.64, 09-Apr-2019
238,Revenue,CAHD,South Glos Users in South Glos Homes,Permanent Nursing,Beaufort Grange Care Home,632.64, 09-Apr-2019
239,Revenue,CAHD,South Glos Users in South Glos Homes,Permanent Nursing,Beaufort Grange Care Home,632.64, 09-Apr-2019
240,Revenue,CAHD,South Glos Users in South Glos Homes,Permanent Nursing,Beaufort Grange Care Home,632.64, 09-Apr-2019
241,Revenue,CAHD,Bed Purchasing - North,Permanent Residential,Beaufort House,1274.78, 09-Apr-2019
242,Revenue,CAHD,Bed Purchasing - North,Permanent Residential,Beaufort House,1244.90, 09-Apr-2019
243,Revenue,CAHD,Bed Purchasing - Central,Permanent Residential,Beaufort House,1433.60, 09-Apr-2019
244,Revenue,CAHD,Bed Purchasing - Central,Permanent Residential,Beaufort House,1400.00, 09-Apr-2019
245,Revenue,CAHD,Bed Purchasing - Central,Permanent Residential,Beaufort House,18005.86, 09-Apr-2019
246,Revenue,CAHD,Bed Purchasing - Central,Permanent Residential,Beaufort House,1387.80, 09-Apr-2019
247,Revenue,CAHD,Bed Purchasing - Central,Permanent Residential,Beaufort House,1355.28, 09-Apr-2019
248,Revenue,CAHD,Bed Purchasing - North,Permanent Residential,Beaufort House,1285.70, 09-Apr-2019
249,Revenue,CAHD,Bed Purchasing - North,Permanent Residential,Beaufort House,1255.56, 09-Apr-2019
250,Revenue,CAHD,Bed Purchasing - South,Permanent Residential,Beaufort House,1268.42, 09-Apr-2019
251,Revenue,CAHD,Bed Purchasing - South,Permanent Residential,Beaufort House,1238.70, 09-Apr-2019
252,Revenue,CAHD,Bed Purchasing - North,Permanent Residential,Beaufort House,1500.00, 09-Apr-2019
253,Revenue,CAHD,Bed Purchasing - North,Permanent Residential,Beaufort House,1500.00, 09-Apr-2019
254,Revenue,CAHD,Bed Purchasing - North,Permanent Residential,Beaufort House,535.71, 09-Apr-2019
255,Revenue,CAHD,Bed Purchasing - Central,Permanent Residential,Beaufort House,1387.80, 09-Apr-2019
256,Revenue,CAHD,Bed Purchasing - Central,Permanent Residential,Beaufort House,1355.28, 09-Apr-2019
257,Revenue,CAHD,Bed Purchasing - North,Permanent Residential,Beaufort House,1349.96, 09-Apr-2019
258,Revenue,CAHD,Bed Purchasing - North,Permanent Residential,Beaufort House,1318.32, 09-Apr-2019
259,Revenue,CAHD,Bed Purchasing - South,Permanent Residential,Beaufort House,1356.50, 09-Apr-2019
260,Revenue,CAHD,Bed Purchasing - South,Permanent Residential,Beaufort House,1324.70, 09-Apr-2019
261,Revenue,CAHD,South Glos Users in South Glos Homes,Permanent Nursing,Beech House,632.64, 09-Apr-2019
262,Revenue,CAHD,Bed Purchasing - South,Permanent Residential,Beech House,1479.82, 09-Apr-2019
263,Revenue,CAHD,Bed Purchasing - South,Permanent Residential,Beech House,1445.14, 09-Apr-2019
264,Revenue,CAHD,South Glos Users in South Glos Homes,Permanent Nursing,Beech House,632.64, 09-Apr-2019
265,Revenue,CAHD,South Glos Users in South Glos Homes,Permanent Nursing,Beech House,632.64, 09-Apr-2019
266,Revenue,CAHD,South Glos Users in South Glos Homes,Permanent Nursing,Beech House,632.64, 09-Apr-2019
267,Revenue,CAHD,South Glos Users in South Glos Homes,Permanent Nursing,Beech House,632.64, 09-Apr-2019
268,Revenue,CAHD,South Glos Users in South Glos Homes,Permanent Nursing,Beech House,632.64, 09-Apr-2019
269,Revenue,CAHD,South Glos Users in South Glos Homes,Permanent Nursing,Beech House,632.64, 09-Apr-2019
270,Revenue,CAHD,South Glos Users in South Glos Homes,Permanent Nursing,Beech House,632.64, 09-Apr-2019
271,Revenue,CAHD,Bed Purchasing - North,Permanent Nursing,Beech House,1773.88, 09-Apr-2019
272,Revenue,CAHD,Bed Purchasing - North,Permanent Nursing,Beech House,1732.30, 09-Apr-2019
273,Revenue,CAHD,South Glos Users in South Glos Homes,Permanent Nursing,Beech House,632.64, 09-Apr-2019
274,Revenue,CAHD,Bed Purchasing - North,Permanent Residential,Beech House,1479.82, 09-Apr-2019
275,Revenue,CAHD,Bed Purchasing - North,Permanent Residential,Beech House,1445.14, 09-Apr-2019
276,Revenue,CAHD,South Glos Users in South Glos Homes,Permanent Nursing,Beech House,632.64, 09-Apr-2019
277,Revenue,CAHD,Bed Purchasing - North,Permanent Nursing,Beech House,1945.60, 09-Apr-2019
278,Revenue,CAHD,Bed Purchasing - North,Permanent Nursing,Beech House,1900.00, 09-Apr-2019
279,Revenue,CAHD,South Glos Users in South Glos Homes,Permanent Nursing,Beech House,632.64, 09-Apr-2019
280,Revenue,CAHD,South Glos Users in South Glos Homes,Permanent Nursing,Beech House,632.64, 09-Apr-2019
281,Revenue,CAHD,South Glos Users in South Glos Homes,Permanent Nursing,Beech House,632.64, 09-Apr-2019
282,Revenue,CAHD,South Glos Users in South Glos Homes,Permanent Nursing,Beech House,632.64, 09-Apr-2019
283,Revenue,CAHD,South Glos Users in South Glos Homes,Permanent Nursing,Beech House,632.64, 09-Apr-2019
284,Revenue,CAHD,South Glos Users in South Glos Homes,Permanent Nursing,Beech House,632.64, 09-Apr-2019
285,Revenue,CAHD,Bed Purchasing - North,Permanent Nursing,Beech House,1996.80, 09-Apr-2019
286,Revenue,CAHD,Bed Purchasing - North,Permanent Nursing,Beech House,1950.00, 09-Apr-2019
287,Revenue,CAHD,South Glos Users in South Glos Homes,Permanent Nursing,Beech House,632.64, 09-Apr-2019
288,Revenue,CAHD,South Glos Users in South Glos Homes,Permanent Nursing,Beech House,632.64, 09-Apr-2019
289,Revenue,CAHD,Bed Purchasing - North,Permanent Residential,Beech House,2034.74, 09-Apr-2019
290,Revenue,CAHD,Bed Purchasing - North,Permanent Residential,Beech House,1987.06, 09-Apr-2019
291,Revenue,CAHD,South Glos Users in South Glos Homes,Permanent Nursing,Beech House,632.64, 09-Apr-2019
292,Revenue,CAHD,Bed Purchasing - North,Permanent Residential,Beech House,2037.76, 09-Apr-2019
293,Revenue,CAHD,Bed Purchasing - North,Permanent Residential,Beech House,1990.00, 09-Apr-2019
294,Revenue,CAHD,Bed Purchasing - North,Permanent Residential,Beech House,852.86, 09-Apr-2019
295,Revenue,CAHD,South Glos Users in South Glos Homes,Permanent Nursing,Beech House,632.64, 09-Apr-2019
296,Revenue,CAHD,South Glos Users in South Glos Homes,Permanent Nursing,Beech House,632.64, 09-Apr-2019
297,Revenue,CAHD,South Glos Users in South Glos Homes,Permanent Nursing,Beech House,632.64, 09-Apr-2019
298,Revenue,CAHD,Bed Purchasing - North,Permanent Nursing,Beech House,1721.72, 09-Apr-2019
299,Revenue,CAHD,Bed Purchasing - North,Permanent Nursing,Beech House,1681.36, 09-Apr-2019
300,Revenue,CAHD,South Glos Users in South Glos Homes,Permanent Nursing,Beech House,632.64, 09-Apr-2019
301,Revenue,CAHD,South Glos Users in South Glos Homes,Permanent Nursing,Beech House,632.64, 09-Apr-2019
302,Revenue,CAHD,Bed Purchasing - North,Permanent Nursing,Beech House,1653.72, 09-Apr-2019
303,Revenue,CAHD,Bed Purchasing - North,Permanent Nursing,Beech House,1614.96, 09-Apr-2019
304,Revenue,CAHD,South Glos Users in South Glos Homes,Permanent Nursing,Beech House,632.64, 09-Apr-2019
305,Revenue,CAHD,South Glos Users in South Glos Homes,Permanent Nursing,Beech House,632.64, 09-Apr-2019
306,Revenue,CAHD,Bed Purchasing - North,Permanent Residential,Beech House,2140.16, 09-Apr-2019
307,Revenue,CAHD,Bed Purchasing - North,Permanent Residential,Beech House,2090.00, 09-Apr-2019
308,Revenue,CAHD,Statemented Support Payments to OLAs,Other L.A.'s - General,Beechen Cliff School,719.29, 30-Apr-2019
309,Revenue,CAHD,South Glos Users in South Glos Homes,Permanent Nursing,Beechwood Care Home,1012.00, 09-Apr-2019
310,Revenue,CAHD,Bed purchasing - Elderly S117 - South,Permanent Residential,Bidna House,1846.32, 09-Apr-2019
311,Revenue,CAHD,Bed purchasing - Elderly S117 - South,Permanent Residential,Bidna House,1803.04, 09-Apr-2019
312,Revenue,CAHD,South Glos Users in South Glos Homes,Permanent Nursing,Blossom Field,632.64, 09-Apr-2019
313,Revenue,CAHD,South Glos Users in South Glos Homes,Permanent Nursing,Blossom Field,632.64, 09-Apr-2019
314,Revenue,CAHD,Bed Purchasing - Elderly S117- North,Permanent Nursing,Blossom Field,1846.78, 09-Apr-2019
315,Revenue,CAHD,Bed Purchasing - Elderly S117- North,Permanent Nursing,Blossom Field,1803.50, 09-Apr-2019
316,Revenue,CAHD,South Glos Users in South Glos Homes,Permanent Nursing,Blossom Field,632.64, 09-Apr-2019
317,Revenue,CAHD,South Glos Users in South Glos Homes,Permanent Nursing,Blossom Field,632.64, 09-Apr-2019
318,Revenue,CAHD,South Glos Users in South Glos Homes,Permanent Nursing,Blossom Field,632.64, 09-Apr-2019
319,Revenue,CAHD,Bed Purchasing - North,Permanent Nursing,Blossom Field,2133.68, 09-Apr-2019
320,Revenue,CAHD,Bed Purchasing - North,Permanent Nursing,Blossom Field,2083.68, 09-Apr-2019
321,Revenue,CAHD,South Glos Users in South Glos Homes,Permanent Nursing,Blossom Field,632.64, 09-Apr-2019
322,Revenue,CAHD,Bed Purchasing - North,Permanent Nursing,Blossom Field,1945.60, 09-Apr-2019
323,Revenue,CAHD,Bed Purchasing - North,Permanent Nursing,Blossom Field,1900.00, 09-Apr-2019
324,Revenue,CAHD,South Glos Users in South Glos Homes,Permanent Nursing,Blossom Field,632.64, 09-Apr-2019
325,Revenue,CAHD,South Glos Users in South Glos Homes,Permanent Nursing,Blossom Field,632.64, 09-Apr-2019
326,Revenue,CAHD,Bed Purchasing - South,Permanent Nursing,Blossom Field,2206.54, 09-Apr-2019
327,Revenue,CAHD,Bed Purchasing - South,Permanent Nursing,Blossom Field,2154.82, 09-Apr-2019
328,Revenue,CAHD,South Glos Users in South Glos Homes,Permanent Nursing,Blossom Field,632.64, 09-Apr-2019
329,Revenue,CAHD,South Glos Users in South Glos Homes,Permanent Nursing,Blossom Field,632.64, 09-Apr-2019
330,Revenue,CAHD,Bed Purchasing - North,Permanent Nursing,Blossom Field,1765.04, 09-Apr-2019
331,Revenue,CAHD,Bed Purchasing - North,Permanent Nursing,Blossom Field,1723.68, 09-Apr-2019
332,Revenue,CAHD,South Glos Users in South Glos Homes,Permanent Nursing,Blossom Field,632.64, 09-Apr-2019
333,Revenue,CAHD,Bed Purchasing - North,Permanent Nursing,Blossom Field,2399.94, 09-Apr-2019
334,Revenue,CAHD,Bed Purchasing - North,Permanent Nursing,Blossom Field,2343.70, 09-Apr-2019
335,Revenue,CAHD,South Glos Users in South Glos Homes,Permanent Nursing,Blossom Field,632.64, 09-Apr-2019
336,Revenue,CAHD,South Glos Users in South Glos Homes,Permanent Nursing,Blossom Field,632.64, 09-Apr-2019
337,Revenue,CAHD,South Glos Users in South Glos Homes,Permanent Nursing,Blossom Field,632.64, 09-Apr-2019
338,Revenue,CAHD,South Glos Users in South Glos Homes,Permanent Nursing,Blossom Field,632.64, 09-Apr-2019
339,Revenue,CAHD,South Glos Users in South Glos Homes,Permanent Nursing,Blossom Field,632.64, 09-Apr-2019
340,Revenue,CAHD,South Glos Users in South Glos Homes,Permanent Nursing,Blossom Field,632.64, 09-Apr-2019
341,Revenue,CAHD,South Glos Users in South Glos Homes,Permanent Nursing,Blossom Field,632.64, 09-Apr-2019
342,Revenue,CAHD,South Glos Users in South Glos Homes,Permanent Nursing,Blossom Field,632.64, 09-Apr-2019
343,Revenue,CAHD,South Glos Users in South Glos Homes,Permanent Nursing,Blossom Field,632.64, 09-Apr-2019
344,Revenue,CAHD,Bed Purchasing - North,Permanent Nursing,Blossom Field,1817.48, 09-Apr-2019
345,Revenue,CAHD,Bed Purchasing - North,Permanent Nursing,Blossom Field,1774.88, 09-Apr-2019
346,Revenue,CAHD,South Glos Users in South Glos Homes,Permanent Nursing,Blossom Field,632.64, 09-Apr-2019
347,Revenue,CAHD,South Glos Users in South Glos Homes,Permanent Nursing,Blossom Field,632.64, 09-Apr-2019
348,Revenue,CAHD,Bed Purchasing - North,Permanent Residential,Bluebells,1849.80, 09-Apr-2019
349,Revenue,CAHD,Bed Purchasing - North,Permanent Residential,Bluebells,1806.44, 09-Apr-2019
350,Revenue,CAHD,Homecare - Central,Other Small Contracts,Bluebird Care (South Gloucestershire),1814.13, 17-Apr-2019
351,Revenue,CAHD,Home Care - Elderly - South,Other Small Contracts,Bluebird Care (South Gloucestershire),525.89, 17-Apr-2019
352,Revenue,CAHD,Home Care - Elderly - North,Other Small Contracts,Bluebird Care (South Gloucestershire),1108.20, 17-Apr-2019
353,Revenue,CAHD,Homecare - Central,Other Small Contracts,Bluebird Care (South Gloucestershire),1761.81, 17-Apr-2019
354,Revenue,CAHD,Home Care - Elderly - South,Other Small Contracts,Bluebird Care (South Gloucestershire),520.63, 17-Apr-2019
355,Revenue,CAHD,Home Care - Elderly - North,Other Small Contracts,Bluebird Care (South Gloucestershire),1100.50, 17-Apr-2019
356,Revenue,CAHD,Homecare - Central,Other Small Contracts,Bluebird Care (South Gloucestershire),1807.25, 17-Apr-2019
357,Revenue,CAHD,Home Care - Elderly - South,Other Small Contracts,Bluebird Care (South Gloucestershire),532.76, 17-Apr-2019
358,Revenue,CAHD,Home Care - Elderly - North,Other Small Contracts,Bluebird Care (South Gloucestershire),1115.90, 17-Apr-2019
359,Revenue,CAHD,Homecare - Central,Other Small Contracts,Bluebird Care (South Gloucestershire),1852.55, 17-Apr-2019
360,Revenue,CAHD,Home Care - Elderly - South,Other Small Contracts,Bluebird Care (South Gloucestershire),487.46, 17-Apr-2019
361,Revenue,CAHD,Home Care - Elderly - North,Other Small Contracts,Bluebird Care (South Gloucestershire),1131.30, 17-Apr-2019
362,Revenue,CAHD,Homecare - Central,Other Small Contracts,Bluebird Care (South Gloucestershire),1867.80, 17-Apr-2019
363,Revenue,CAHD,Home Care - Elderly - South,Other Small Contracts,Bluebird Care (South Gloucestershire),535.73, 17-Apr-2019
364,Revenue,CAHD,Home Care - Elderly - North,Other Small Contracts,Bluebird Care (South Gloucestershire),1108.05, 17-Apr-2019
365,Revenue,CAHD,Homecare - Central,Other Small Contracts,Bluebird Care (South Gloucestershire),1368.30, 17-Apr-2019
366,Revenue,CAHD,Home Care - Elderly - South,Other Small Contracts,Bluebird Care (South Gloucestershire),538.02, 17-Apr-2019
367,Revenue,CAHD,Home Care - Elderly - North,Other Small Contracts,Bluebird Care (South Gloucestershire),1108.05, 17-Apr-2019
368,Revenue,CAHD,Homecare - Central,Other Small Contracts,Bluebird Care (South Gloucestershire),1439.40, 26-Apr-2019
369,Revenue,CAHD,Home Care - Elderly - South,Other Small Contracts,Bluebird Care (South Gloucestershire),533.77, 26-Apr-2019
370,Revenue,CAHD,Home Care - Elderly - North,Other Small Contracts,Bluebird Care (South Gloucestershire),1108.05, 26-Apr-2019
371,Revenue,CAHD,Training - Adult Services,Training Expenses,Individual,975.00, 01-Apr-2019
372,Revenue,CAHD,Training - Adult Services,Training Expenses,Individual,775.00, 17-Apr-2019
373,Revenue,CAHD,CSC - Vinney Green Secure Unit,"Provisions (Food, etc)",Booker Cash & Carry,531.38, 01-Apr-2019
374,Revenue,CAHD,CSC - Vinney Green Secure Unit,"Provisions (Food, etc)",Booker Cash & Carry,447.53, 15-Apr-2019
375,Revenue,CAHD,Sexual Health,Other Small Contracts,Boots UK Ltd,1385.00, 11-Apr-2019
376,Revenue,CAHD,Sexual Health,Other Small Contracts,Boots UK Ltd,820.00, 11-Apr-2019
377,Revenue,CAHD,Sexual Health,Other Small Contracts,Boots UK Ltd,660.00, 11-Apr-2019
378,Revenue,CAHD,Sexual Health,Other Small Contracts,Boots UK Ltd,1045.00, 11-Apr-2019
379,Revenue,CAHD,Drug and Alcohol Programme,Other Small Contracts,Boots UK Ltd,675.00, 29-Apr-2019
380,Revenue,CAHD,Drug and Alcohol Programme,Other Small Contracts,Boots UK Ltd,675.00, 29-Apr-2019
381,Revenue,CAHD,Bed purchasing - S28A Under 65 - South,Permanent Residential,Bradbury House,3252.58, 09-Apr-2019
382,Revenue,CAHD,Bed purchasing - S28A Under 65 - South,Permanent Residential,Bradbury House,3193.20, 09-Apr-2019
383,Revenue,CAHD,18-25 Year Olds,Permanent Residential,Bradbury House,4958.54, 09-Apr-2019
384,Revenue,CAHD,18-25 Year Olds,Permanent Residential,Bradbury House,4842.32, 09-Apr-2019
385,Revenue,CAHD,Bed Purchasing - Elderly S117- North,Permanent Residential,Bradbury House,2802.86, 09-Apr-2019
386,Revenue,CAHD,Jointly Funded H&SC Packages,Permanent Residential,Bradbury House,3870.60, 09-Apr-2019
387,Revenue,CAHD,Bed Purchasing - North,Permanent Residential,Bradbury House,1408.68, 09-Apr-2019
388,Revenue,CAHD,Bed Purchasing - North,Permanent Residential,Bradbury House,1375.66, 09-Apr-2019
389,Revenue,CAHD,Drug and Alcohol Programme,Other Small Contracts,Bradley Stoke Pharmacy,600.00, 29-Apr-2019
390,Revenue,CAHD,Drug and Alcohol Programme,Other Small Contracts,Bradley Stoke Surgery,1015.00, 30-Apr-2019
391,Revenue,CAHD,CSC - Residential Placements,Permanent Residential,Branas ISAF Ltd,19285.71, 09-Apr-2019
392,Revenue,CAHD,CSC - Residential Placements,Permanent Residential,Branas ISAF Ltd,19928.57, 01-Apr-2019
393,Revenue,CAHD,CSC - Residential Placements,Permanent Residential,Branas ISAF Ltd,19000.00, 12-Apr-2019
394,Revenue,CAHD,CSC - Residential Placements,Permanent Residential,Branas ISAF Ltd,18000.00, 09-Apr-2019
395,Revenue,CAHD,CSC - Residential Placements,Permanent Residential,Branas ISAF Ltd,21035.71, 12-Apr-2019
396,Revenue,CAHD,CSC - Residential Placements,Permanent Residential,Branas ISAF Ltd,19928.57, 12-Apr-2019
397,Revenue,CAHD,Social Lettings Agency,Fees - General,Individual,8.15, 04-Apr-2019
398,Revenue,CAHD,Social Lettings Agency,Other Supplies & Services,Individual,766.10, 04-Apr-2019
399,Revenue,CAHD,Bed Purchasing - North,Permanent Residential,Bridge House Care Home,1264.18, 09-Apr-2019
400,Revenue,CAHD,Bed Purchasing - North,Permanent Residential,Bridge House Care Home,1234.56, 09-Apr-2019
401,Revenue,CAHD,Bed Purchasing - North,Permanent Residential,Bridge House Care Home,1242.82, 09-Apr-2019
402,Revenue,CAHD,Bed Purchasing - North,Permanent Residential,Bridge House Care Home,1213.70, 09-Apr-2019
403,Revenue,CAHD,Bed Purchasing - North,Permanent Residential,Bridge House Care Home,1312.76, 09-Apr-2019
404,Revenue,CAHD,Bed Purchasing - North,Permanent Residential,Bridge House Care Home,1282.00, 09-Apr-2019
405,Revenue,CAHD,Bed Purchasing - North,Permanent Residential,Bridgwater Court,5386.82, 09-Apr-2019
406,Revenue,CAHD,Bed Purchasing - North,Permanent Residential,Bridgwater Court,5260.56, 09-Apr-2019
407,Revenue,CAHD,Early Years Inclusion Fund,Other Public Bodies,Bright Sparks Pre-School,934.00, 10-Apr-2019
408,Revenue,CAHD,Early Years Inclusion Fund,Other Public Bodies,Bright Sparks Pre-School,2400.00, 10-Apr-2019
409,Revenue,CAHD,Early Years High Needs Support,Other Private Contractors,Bright Sparks Pre-School,792.69, 30-Apr-2019
410,Revenue,CAHD,Statemented Support Academies,Schools Funding,Bristol & South Gloucestershire UTC,7157.54, 30-Apr-2019
411,Revenue,CAHD,Purchase of RAC places,Other L.A.'s - General,Bristol City Council,5001.12, 10-Apr-2019
412,Revenue,CAHD,Purchase of RAC places,Other L.A.'s - General,Bristol City Council,4566.24, 10-Apr-2019
413,Revenue,CAHD,Purchase of RAC places,Other L.A.'s - General,Bristol City Council,4566.24, 10-Apr-2019
414,Revenue,CAHD,Purchase of RAC places,Other L.A.'s - General,Bristol City Council,8616.06, 10-Apr-2019
415,Revenue,CAHD,CSC - Care Leavers Support Costs,Legal Fees,Bristol City Council,2255.00, 10-Apr-2019
416,Revenue,CAHD,Training - Adult Services,Training Expenses,Bristol City Council,5115.00, 10-Apr-2019
417,Revenue,CAHD,Purchase of RAC places,Other L.A.'s - General,Bristol City Council,8616.06, 15-Apr-2019
418,Revenue,CAHD,Purchase of RAC places,Other L.A.'s - General,Bristol City Council,21845.54, 15-Apr-2019
419,Revenue,CAHD,0-25 Management Team,Grants to Voluntary Bodies,Bristol City Council,5590.12, 10-Apr-2019
420,Revenue,CAHD,Placements OLA Special Schools and RB,Other L.A.'s - General,Bristol City Council,488290.00, 18-Apr-2019
421,Revenue,CAHD,Placements OLA Special Schools and RB,Other L.A.'s - General,Bristol City Council - Schools,2578.00, 30-Apr-2019
422,Revenue,CAHD,Placements OLA Special Schools and RB,Other L.A.'s - General,Bristol City Council - Schools,1350.17, 30-Apr-2019
423,Revenue,CAHD,Statemented Support Payments to OLAs,Other L.A.'s - General,Bristol City Council - Schools,1379.63, 30-Apr-2019
424,Revenue,CAHD,Placements OLA Special Schools and RB,Other L.A.'s - General,Bristol City Council - Schools,914.33, 30-Apr-2019
425,Revenue,CAHD,Placements OLA Special Schools and RB,Other L.A.'s - General,Bristol City Council - Schools,2578.00, 30-Apr-2019
426,Revenue,CAHD,Placements OLA Special Schools and RB,Other L.A.'s - General,Bristol City Council - Schools,1305.58, 30-Apr-2019
427,Revenue,CAHD,Statemented Support Payments to OLAs,Other L.A.'s - General,Bristol City Council - Schools,660.33, 30-Apr-2019
428,Revenue,CAHD,Placements OLA Special Schools and RB,Other L.A.'s - General,Bristol City Council - Schools,3356.33, 30-Apr-2019
429,Revenue,CAHD,Statemented Support Payments to OLAs,Other L.A.'s - General,Bristol City Council - Schools,907.96, 30-Apr-2019
430,Revenue,CAHD,Placements OLA Special Schools and RB,Other L.A.'s - General,Bristol City Council - Schools,2578.00, 30-Apr-2019
431,Revenue,CAHD,Placements OLA Special Schools and RB,Other L.A.'s - General,Bristol City Council - Schools,1381.00, 30-Apr-2019
432,Revenue,CAHD,Placements OLA Special Schools and RB,Other L.A.'s - General,Bristol City Council - Schools,2050.17, 30-Apr-2019
433,Revenue,CAHD,Placements OLA Special Schools and RB,Other L.A.'s - General,Bristol City Council - Schools,1381.00, 30-Apr-2019
434,Revenue,CAHD,Placements OLA Special Schools and RB,Other L.A.'s - General,Bristol City Council - Schools,2050.17, 30-Apr-2019
435,Revenue,CAHD,Placements OLA Special Schools and RB,Other L.A.'s - General,Bristol City Council - Schools,2578.00, 30-Apr-2019
436,Revenue,CAHD,Placements OLA Special Schools and RB,Other L.A.'s - General,Bristol City Council - Schools,1675.30, 30-Apr-2019
437,Revenue,CAHD,Placements OLA Special Schools and RB,Other L.A.'s - General,Bristol City Council - Schools,809.00, 30-Apr-2019
438,Revenue,CAHD,Placements OLA Special Schools and RB,Other L.A.'s - General,Bristol City Council - Schools,883.50, 30-Apr-2019
439,Revenue,CAHD,Placements OLA Special Schools and RB,Other L.A.'s - General,Bristol City Council - Schools,4107.54, 30-Apr-2019
440,Revenue,CAHD,Placements OLA Special Schools and RB,Other L.A.'s - General,Bristol City Council - Schools,777.50, 30-Apr-2019
441,Revenue,CAHD,Placements OLA Special Schools and RB,Other L.A.'s - General,Bristol City Council - Schools,1031.20, 30-Apr-2019
442,Revenue,CAHD,Placements OLA Special Schools and RB,Other L.A.'s - General,Bristol City Council - Schools,2578.00, 30-Apr-2019
443,Revenue,CAHD,Placements OLA Special Schools and RB,Other L.A.'s - General,Bristol City Council - Schools,809.00, 30-Apr-2019
444,Revenue,CAHD,Placements OLA Special Schools and RB,Other L.A.'s - General,Bristol City Council - Schools,2578.00, 30-Apr-2019
445,Revenue,CAHD,Placements OLA Special Schools and RB,Other L.A.'s - General,Bristol City Council - Schools,883.50, 30-Apr-2019
446,Revenue,CAHD,Placements OLA Special Schools and RB,Other L.A.'s - General,Bristol City Council - Schools,2062.40, 30-Apr-2019
447,Revenue,CAHD,Placements OLA Special Schools and RB,Other L.A.'s - General,Bristol City Council - Schools,2578.00, 30-Apr-2019
448,Revenue,CAHD,Placements OLA Special Schools and RB,Other L.A.'s - General,Bristol City Council - Schools,1305.58, 30-Apr-2019
449,Revenue,CAHD,Placements OLA Special Schools and RB,Other L.A.'s - General,Bristol City Council - Schools,883.50, 30-Apr-2019
450,Revenue,CAHD,CSC - Vinney Green Secure Unit,R & M by Departments,Bristol Electrical Wholesale Limited,458.75, 08-Apr-2019
451,Revenue,CAHD,SEN High Needs - Not at School Base,Other Private Contractors,Bristol Tuition Limited,608.00, 17-Apr-2019
452,Revenue,CAHD,Intermediate Care Accommodation,Water Charges,Bristol Wessex Billing Services Limited,531.69, 01-Apr-2019
453,Revenue,CAHD,Statemented Support Payments to OLAs,Other L.A.'s - General,Broadlands Academy,1332.46, 30-Apr-2019
454,Revenue,CAHD,Parent Partnership,Fees - General,Browne Jacobson,3744.50, 26-Apr-2019
455,Revenue,CAHD,South Glos Users in South Glos Homes,Permanent Nursing,Brunelcare,700.42, 26-Apr-2019
456,Revenue,CAHD,South Glos Users in South Glos Homes,Permanent Nursing,Brunelcare,700.42, 26-Apr-2019
457,Revenue,CAHD,South Glos Users in South Glos Homes,Permanent Nursing,Brunelcare,700.42, 26-Apr-2019
458,Revenue,CAHD,South Glos Users in South Glos Homes,Permanent Nursing,Brunelcare,700.42, 26-Apr-2019
459,Revenue,CAHD,South Glos Users in South Glos Homes,Permanent Nursing,Brunelcare,700.42, 26-Apr-2019
460,Revenue,CAHD,South Glos Users in South Glos Homes,Permanent Nursing,Brunelcare,700.42, 26-Apr-2019
461,Revenue,CAHD,South Glos Users in South Glos Homes,Permanent Nursing,Brunelcare,700.42, 26-Apr-2019
462,Revenue,CAHD,South Glos Users in South Glos Homes,Permanent Nursing,Brunelcare,700.42, 26-Apr-2019
463,Revenue,CAHD,South Glos Users in South Glos Homes,Permanent Nursing,Brunelcare,700.42, 26-Apr-2019
464,Revenue,CAHD,South Glos Users in South Glos Homes,Permanent Nursing,Brunelcare,700.42, 26-Apr-2019
465,Revenue,CAHD,South Glos Users in South Glos Homes,Permanent Nursing,Brunelcare,700.42, 26-Apr-2019
466,Revenue,CAHD,South Glos Users in South Glos Homes,Permanent Nursing,Brunelcare,700.42, 26-Apr-2019
467,Revenue,CAHD,South Glos Users in South Glos Homes,Permanent Nursing,Brunelcare,700.42, 26-Apr-2019
468,Revenue,CAHD,South Glos Users in South Glos Homes,Permanent Nursing,Brunelcare,700.42, 26-Apr-2019
469,Revenue,CAHD,Bed purchasing - Elderly S117 - South,Permanent Nursing,Brunelcare,3583.11, 26-Apr-2019
470,Revenue,CAHD,Bed purchasing - Elderly S117 - South,Permanent Nursing,Brunelcare,3583.11, 26-Apr-2019
471,Revenue,CAHD,Bed Purchasing - Elderly S117- North,Permanent Nursing,Brunelcare,3583.11, 26-Apr-2019
472,Revenue,CAHD,Bed Purchasing - Elderly S117- North,Permanent Nursing,Brunelcare,3583.11, 26-Apr-2019
473,Revenue,CAHD,Bed Purchasing - South,Permanent Nursing,Brunelcare,1710.33, 26-Apr-2019
474,Revenue,CAHD,Bed Purchasing - South,Permanent Nursing,Brunelcare,2615.87, 26-Apr-2019
475,Revenue,CAHD,Bed Purchasing - South,Permanent Nursing,Brunelcare,2769.19, 26-Apr-2019
476,Revenue,CAHD,Bed Purchasing - South,Permanent Nursing,Brunelcare,3001.82, 26-Apr-2019
477,Revenue,CAHD,Bed Purchasing - South,Permanent Nursing,Brunelcare,3002.53, 26-Apr-2019
478,Revenue,CAHD,Bed Purchasing - South,Permanent Nursing,Brunelcare,2605.86, 26-Apr-2019
479,Revenue,CAHD,Bed Purchasing - South,Permanent Nursing,Brunelcare,2971.53, 26-Apr-2019
480,Revenue,CAHD,Bed Purchasing - South,Permanent Nursing,Brunelcare,2616.75, 26-Apr-2019
481,Revenue,CAHD,Enhanced Dementia Beds,Respite Planned - Nursing,Brunelcare,4291.29, 26-Apr-2019
482,Revenue,CAHD,Bed Purchasing - South,Respite Planned - Nursing,Brunelcare,1733.80, 26-Apr-2019
483,Revenue,CAHD,Bed Purchasing - South,Respite Planned - Nursing,Brunelcare,1105.43, 26-Apr-2019
484,Revenue,CAHD,Bed Purchasing - North,Permanent Nursing,Brunelcare,2884.46, 26-Apr-2019
485,Revenue,CAHD,Bed Purchasing - North,Permanent Nursing,Brunelcare,2874.01, 26-Apr-2019
486,Revenue,CAHD,Bed Purchasing - North,Permanent Nursing,Brunelcare,3583.11, 26-Apr-2019
487,Revenue,CAHD,Pathway 2 - (Interim Beds),Permanent Nursing,Brunelcare,17686.00, 23-Apr-2019
488,Revenue,CAHD,Home Care - Elderly - South,Other Small Contracts,Brunelcare,24970.40, 12-Apr-2019
489,Revenue,CAHD,Home Care - Elderly - North,Other Small Contracts,Brunelcare,282.10, 12-Apr-2019
490,Revenue,CAHD,Home Care - Elderly - South,Other Small Contracts,Brunelcare,24260.60, 12-Apr-2019
491,Revenue,CAHD,Home Care - Elderly - North,Other Small Contracts,Brunelcare,282.10, 12-Apr-2019
492,Revenue,CAHD,Home Care - Elderly - South,Other Small Contracts,Brunelcare,24424.40, 17-Apr-2019
493,Revenue,CAHD,Home Care - Elderly - North,Other Small Contracts,Brunelcare,313.95, 17-Apr-2019
494,Revenue,CAHD,Home Care - Elderly - South,Day Care / Social Activities,Brunelcare,9.10, 17-Apr-2019
495,Revenue,CAHD,Home Care - Elderly - South,Other Small Contracts,Brunelcare,24347.05, 17-Apr-2019
496,Revenue,CAHD,Home Care - Elderly - North,Other Small Contracts,Brunelcare,200.20, 17-Apr-2019
497,Revenue,CAHD,Home Care - Elderly - South,Day Care / Social Activities,Brunelcare,9.10, 24-Apr-2019
498,Revenue,CAHD,Home Care - Elderly - South,Other Small Contracts,Brunelcare,24237.85, 24-Apr-2019
499,Revenue,CAHD,Home Care - Elderly - North,Other Small Contracts,Brunelcare,245.70, 24-Apr-2019
500,Revenue,CAHD,Home Care - Elderly - South,Day Care / Social Activities,Brunelcare,9.10, 24-Apr-2019
501,Revenue,CAHD,Home Care - Elderly - South,Other Small Contracts,Brunelcare,23487.10, 24-Apr-2019
502,Revenue,CAHD,Home Care - Elderly - North,Other Small Contracts,Brunelcare,295.75, 24-Apr-2019
503,Revenue,CAHD,Pathway 1 - Re-Ablement Home Care,Other Small Contracts,Brunelcare,2011.10, 10-Apr-2019
504,Revenue,CAHD,Pathway 1 - Re-Ablement Home Care,Other Small Contracts,Brunelcare,2789.15, 10-Apr-2019
505,Revenue,CAHD,Pathway 1 - Re-Ablement Home Care,Other Small Contracts,Brunelcare,3166.80, 10-Apr-2019
506,Revenue,CAHD,Pathway 1 - Re-Ablement Home Care,Other Small Contracts,Brunelcare,2602.60, 10-Apr-2019
507,Revenue,CAHD,Pathway 1 - Re-Ablement Home Care,Other Small Contracts,Brunelcare,1678.95, 10-Apr-2019
508,Revenue,CAHD,Pathway 1 - Re-Ablement Home Care,Other Small Contracts,Brunelcare,1688.05, 10-Apr-2019
509,Revenue,CAHD,Pathway 1 - Re-Ablement Home Care,Other Small Contracts,Brunelcare,846.30, 10-Apr-2019
510,Revenue,CAHD,Pathway 1 - Re-Ablement Home Care,Other Small Contracts,Brunelcare,1324.05, 10-Apr-2019
511,Revenue,CAHD,Pathway 1 - Re-Ablement Home Care,Other Small Contracts,Brunelcare,1228.50, 26-Apr-2019
512,Revenue,CAHD,Information Systems - Software,Computer Equipment - Purchase,BT Global Services Solutions,454.29, 26-Apr-2019
513,Revenue,CAHD,Training - Adult Services,Training Expenses,BW Training & Coaching Ltd,900.00, 08-Apr-2019
514,Revenue,CAHD,CSC - Vinney Green Secure Unit,Service Contracts (Premises),BWS Standfast Fire & Security Systems,558.00, 30-Apr-2019
515,Revenue,CAHD,CSC - Asylum Seekers - Unaccompanied,Foster Parent Allowances,By the Bridge Ltd,4424.14, 12-Apr-2019
516,Revenue,CAHD,Social Lettings Agency,Fees - General,Individual,16.16, 26-Apr-2019
517,Revenue,CAHD,Social Lettings Agency,Other Supplies & Services,Individual,710.96, 26-Apr-2019
518,Revenue,CAHD,Statemented Support Payments to OLAs,Other L.A.'s - General,Cabot Learning Federation,1544.71, 30-Apr-2019
519,Revenue,CAHD,Academy Resource Base Funding,Other Public Bodies,Cabot Learning Federation,1134.86, 30-Apr-2019
520,Revenue,CAHD,Academy Resource Base Funding,Other Public Bodies,Cabot Learning Federation,1134.86, 30-Apr-2019
521,Revenue,CAHD,Academy Resource Base Funding,Other Public Bodies,Cabot Learning Federation,1643.53, 30-Apr-2019
522,Revenue,CAHD,Academy Resource Base Funding,Other Public Bodies,Cabot Learning Federation,1487.06, 30-Apr-2019
523,Revenue,CAHD,Academy Resource Base Funding,Other Public Bodies,Cabot Learning Federation,1487.06, 30-Apr-2019
524,Revenue,CAHD,Academy Resource Base Funding,Other Public Bodies,Cabot Learning Federation,1134.86, 30-Apr-2019
525,Revenue,CAHD,Academy Resource Base Funding,Other Public Bodies,Cabot Learning Federation,1134.86, 30-Apr-2019
526,Revenue,CAHD,Academy Resource Base Funding,Other Public Bodies,Cabot Learning Federation,1643.53, 30-Apr-2019
527,Revenue,CAHD,Academy Resource Base Funding,Other Public Bodies,Cabot Learning Federation,1643.53, 30-Apr-2019
528,Revenue,CAHD,Academy Resource Base Funding,Other Public Bodies,Cabot Learning Federation,1487.06, 30-Apr-2019
529,Revenue,CAHD,Academy Resource Base Funding,Other Public Bodies,Cabot Learning Federation,860.91, 30-Apr-2019
530,Revenue,CAHD,Schools Specific Grant Income,Other Public Bodies,Cabot Learning Federation,500.00, 05-Apr-2019
531,Revenue,CAHD,Schools Specific Grant Income,Other Public Bodies,Cabot Learning Federation,4000.00, 05-Apr-2019
532,Revenue,CAHD,Schools Specific Grant Income,Other Public Bodies,Cabot Learning Federation,1000.00, 05-Apr-2019
533,Revenue,CAHD,Statemented Support Payments to OLAs,Other L.A.'s - General,Cabot Learning Federation,518.83, 30-Apr-2019
534,Revenue,CAHD,Statemented Support Academies,Schools Funding,Cabot Learning Federation,613.17, 30-Apr-2019
535,Revenue,CAHD,Statemented Support Academies,Schools Funding,Cabot Learning Federation,518.83, 30-Apr-2019
536,Revenue,CAHD,Statemented Support Academies,Schools Funding,Cabot Learning Federation,554.21, 30-Apr-2019
537,Revenue,CAHD,Statemented Support Academies,Schools Funding,Cabot Learning Federation,566.00, 30-Apr-2019
538,Revenue,CAHD,Statemented Support Payments to OLAs,Other L.A.'s - General,Cabot Learning Federation,1014.08, 30-Apr-2019
539,Revenue,CAHD,Statemented Support Academies,Schools Funding,Cabot Learning Federation,695.71, 30-Apr-2019
540,Revenue,CAHD,Statemented Support Payments to OLAs,Other L.A.'s - General,Cabot Learning Federation,872.58, 30-Apr-2019
541,Revenue,CAHD,Statemented Support Academies,Schools Funding,Cabot Learning Federation,613.17, 30-Apr-2019
542,Revenue,CAHD,Statemented Support Academies,Schools Funding,Cabot Learning Federation,813.63, 30-Apr-2019
543,Revenue,CAHD,Statemented Support Academies,Schools Funding,Cabot Learning Federation,566.00, 30-Apr-2019
544,Revenue,CAHD,Statemented Support Academies,Schools Funding,Cabot Learning Federation,554.21, 30-Apr-2019
545,Revenue,CAHD,Statemented Support Academies,Schools Funding,Cabot Learning Federation,742.88, 30-Apr-2019
546,Revenue,CAHD,Statemented Support Academies,Schools Funding,Cabot Learning Federation,943.33, 30-Apr-2019
547,Revenue,CAHD,Statemented Support Academies,Schools Funding,Cabot Learning Federation,813.63, 30-Apr-2019
548,Revenue,CAHD,Statemented Support Payments to OLAs,Other L.A.'s - General,Cabot Learning Federation,601.38, 30-Apr-2019
549,Revenue,CAHD,Statemented Support Academies,Schools Funding,Cabot Learning Federation,589.58, 30-Apr-2019
550,Revenue,CAHD,Statemented Support Academies,Schools Funding,Cabot Learning Federation,801.83, 30-Apr-2019
551,Revenue,CAHD,Statemented Support Academies,Schools Funding,Cabot Learning Federation,719.29, 30-Apr-2019
552,Revenue,CAHD,Statemented Support Academies,Schools Funding,Cabot Learning Federation,731.08, 30-Apr-2019
553,Revenue,CAHD,Statemented Support Academies,Schools Funding,Cabot Learning Federation,907.96, 30-Apr-2019
554,Revenue,CAHD,Statemented Support Academies,Schools Funding,Cabot Learning Federation,672.13, 30-Apr-2019
555,Revenue,CAHD,Statemented Support Academies,Schools Funding,Cabot Learning Federation,742.88, 30-Apr-2019
556,Revenue,CAHD,Statemented Support Academies,Schools Funding,Cabot Learning Federation,907.96, 30-Apr-2019
557,Revenue,CAHD,Statemented Support Payments to OLAs,Other L.A.'s - General,Cabot Learning Federation,601.38, 30-Apr-2019
558,Revenue,CAHD,Statemented Support Payments to OLAs,Other L.A.'s - General,Cabot Learning Federation,1073.04, 30-Apr-2019
559,Revenue,CAHD,Statemented Support Payments to OLAs,Other L.A.'s - General,Cabot Learning Federation,589.58, 30-Apr-2019
560,Revenue,CAHD,Statemented Support Academies,Schools Funding,Cabot Learning Federation,778.25, 30-Apr-2019
561,Revenue,CAHD,Drug and Alcohol Programme,Other Small Contracts,Cadbury Heath Healthcare,3045.00, 30-Apr-2019
562,Revenue,CAHD,Telecare,Other Supplies & Services,CAIR (UK) Ltd,740.00, 15-Apr-2019
563,Revenue,CAHD,CSC - Residential Placements,Permanent Residential,Cambian Childcare Ltd,3214.30, 01-Apr-2019
564,Revenue,CAHD,CSC - Residential Placements,Permanent Residential,Cambian Childcare Ltd,1285.72, 25-Apr-2019
565,Revenue,CAHD,CSC - Residential Placements,Permanent Residential,Cambian Childcare Ltd,3200.12, 01-Apr-2019
566,Revenue,CAHD,CSC - Residential Placements,Permanent Residential,Cambian Childcare Ltd,3542.99, 25-Apr-2019
567,Revenue,CAHD,CSC - Residential Placements,Permanent Residential,Cambian Childcare Ltd,3200.12, 01-Apr-2019
568,Revenue,CAHD,CSC - Residential Placements,Permanent Residential,Cambian Childcare Ltd,3542.99, 01-Apr-2019
569,Revenue,CAHD,Post 16 High Needs Placements,Other Private Contractors,Cambian Whinfell School Limited,26930.15, 23-Apr-2019
570,Revenue,CAHD,Post 16 High Needs Placements,Other Private Contractors,Cambian Whinfell School Limited,27747.77, 23-Apr-2019
571,Revenue,CAHD,Post 16 High Needs Placements,Other Private Contractors,Cambian Whinfell School Limited,27833.33, 23-Apr-2019
572,Revenue,CAHD,Post 16 High Needs Placements,Other Private Contractors,Cambian Whinfell School Limited,28867.27, 18-Apr-2019
573,Revenue,CAHD,Post 16 High Needs Placements,Other Private Contractors,Cambian Whinfell School Limited,24166.67, 23-Apr-2019
574,Revenue,CAHD,Post 16 High Needs Placements,Other Private Contractors,Cambian Whinfell School Limited,48238.15, 18-Apr-2019
575,Revenue,CAHD,Post 16 High Needs Placements,Other Private Contractors,Cambian Whinfell School Limited,24081.16, 23-Apr-2019
576,Revenue,CAHD,Post 16 High Needs Placements,Other Private Contractors,Cambian Whinfell School Limited,28734.89, 23-Apr-2019
577,Revenue,CAHD,Early Years Development,Membership Fees,Cambium Sustainable Landscapes & Training,936.00, 05-Apr-2019
578,Revenue,CAHD,Cambrian Green Day Service,Catering,Cambrian Court Dining,572.00, 30-Apr-2019
579,Revenue,CAHD,Cambrian Green Day Service,Catering,Cambrian Court Dining,533.50, 30-Apr-2019
580,Revenue,CAHD,Cambrian Green Day Service,Catering,Cambrian Court Dining,539.00, 30-Apr-2019
581,Revenue,CAHD,Cambrian Green Day Service,Catering,Cambrian Court Dining,550.00, 30-Apr-2019
582,Revenue,CAHD,Home Care - Elderly - North,Day Care / Social Activities,Camphill Communities Thornbury Limited,930.70, 12-Apr-2019
583,Revenue,CAHD,Home Care - Elderly - North,Other Small Contracts,Camphill Communities Thornbury Limited,163.44, 12-Apr-2019
584,Revenue,CAHD,Home Care - Elderly - North,Supported Living,Camphill Communities Thornbury Limited,1007.88, 12-Apr-2019
585,Revenue,CAHD,Home Care - Elderly - North,Day Care / Social Activities,Camphill Communities Thornbury Limited,676.46, 18-Apr-2019
586,Revenue,CAHD,Home Care - Elderly - North,Other Small Contracts,Camphill Communities Thornbury Limited,163.44, 18-Apr-2019
587,Revenue,CAHD,Home Care - Elderly - North,Supported Living,Camphill Communities Thornbury Limited,880.76, 18-Apr-2019
588,Revenue,CAHD,Home Care - Elderly - North,Day Care / Social Activities,Camphill Communities Thornbury Limited,694.62, 26-Apr-2019
589,Revenue,CAHD,Home Care - Elderly - North,Other Small Contracts,Camphill Communities Thornbury Limited,167.98, 26-Apr-2019
590,Revenue,CAHD,Home Care - Elderly - North,Supported Living,Camphill Communities Thornbury Limited,971.56, 26-Apr-2019
591,Revenue,CAHD,Bed Purchasing - Elderly S117- North,Permanent Residential,Canjayor,1263.84, 09-Apr-2019
592,Revenue,CAHD,Bed Purchasing - Elderly S117- North,Permanent Residential,Canjayor,1234.22, 09-Apr-2019
593,Revenue,CAHD,Information Systems - Software,Software Support & Maintenance,Capita Business Services Limited,172667.83, 26-Apr-2019
594,Revenue,CAHD,Homecare - Central,Other Small Contracts,Care 1st Homecare,2862.72, 17-Apr-2019
595,Revenue,CAHD,Homecare - Central,Other Small Contracts,Care 1st Homecare,2862.72, 24-Apr-2019
596,Revenue,CAHD,Homecare - Central,Other Small Contracts,Care 1st Homecare,2862.72, 24-Apr-2019
597,Revenue,CAHD,Homecare - Central,Other Small Contracts,Care 1st Homecare,2862.72, 24-Apr-2019
598,Revenue,CAHD,Homecare - Central,Other Small Contracts,Care Horizons Limited,852.51, 12-Apr-2019
599,Revenue,CAHD,Home Care - Elderly - South,Other Small Contracts,Care Horizons Limited,263.76, 12-Apr-2019
600,Revenue,CAHD,Home Care - Elderly - North,Day Care / Social Activities,Care Horizons Limited,405.06, 12-Apr-2019
601,Revenue,CAHD,Home Care - Elderly - North,Other Small Contracts,Care Horizons Limited,131.88, 12-Apr-2019
602,Revenue,CAHD,Younger MH non-res purchasing,Other Small Contracts,Care Horizons Limited,75.36, 12-Apr-2019
603,Revenue,CAHD,Homecare - Central,Other Small Contracts,Care Horizons Limited,843.09, 12-Apr-2019
604,Revenue,CAHD,Home Care - Elderly - South,Other Small Contracts,Care Horizons Limited,249.63, 12-Apr-2019
605,Revenue,CAHD,Home Care - Elderly - North,Day Care / Social Activities,Care Horizons Limited,390.93, 12-Apr-2019
606,Revenue,CAHD,Home Care - Elderly - North,Other Small Contracts,Care Horizons Limited,324.99, 12-Apr-2019
607,Revenue,CAHD,Younger MH non-res purchasing,Other Small Contracts,Care Horizons Limited,235.50, 12-Apr-2019
608,Revenue,CAHD,Homecare - Central,Other Small Contracts,Care Horizons Limited,861.93, 16-Apr-2019
609,Revenue,CAHD,Home Care - Elderly - South,Other Small Contracts,Care Horizons Limited,235.50, 16-Apr-2019
610,Revenue,CAHD,Home Care - Elderly - North,Day Care / Social Activities,Care Horizons Limited,395.64, 16-Apr-2019
611,Revenue,CAHD,Home Care - Elderly - North,Other Small Contracts,Care Horizons Limited,315.57, 16-Apr-2019
612,Revenue,CAHD,Younger MH non-res purchasing,Other Small Contracts,Care Horizons Limited,188.40, 16-Apr-2019
613,Revenue,CAHD,18-25 Year Olds,Other Small Contracts,Care Horizons Limited,144.90, 24-Apr-2019
614,Revenue,CAHD,Homecare - Central,Other Small Contracts,Care Horizons Limited,642.39, 24-Apr-2019
615,Revenue,CAHD,Home Care - Elderly - South,Other Small Contracts,Care Horizons Limited,251.16, 24-Apr-2019
616,Revenue,CAHD,Home Care - Elderly - North,Day Care / Social Activities,Care Horizons Limited,405.72, 24-Apr-2019
617,Revenue,CAHD,Home Care - Elderly - North,Other Small Contracts,Care Horizons Limited,410.55, 24-Apr-2019
618,Revenue,CAHD,Younger MH non-res purchasing,Other Small Contracts,Care Horizons Limited,227.01, 24-Apr-2019
619,Revenue,CAHD,Home Care - Elderly - South,Other Small Contracts,Caring Comes 1st Limited,673.20, 18-Apr-2019
620,Revenue,CAHD,Home Care - Elderly - South,Other Small Contracts,Caring Comes 1st Limited,572.22, 11-Apr-2019
621,Revenue,CAHD,Home Care - Elderly - South,Other Small Contracts,Caring Comes 1st Limited,908.82, 15-Apr-2019
622,Revenue,CAHD,Home Care - Elderly - South,Other Small Contracts,Caring Comes 1st Limited,1077.12, 18-Apr-2019
623,Revenue,CAHD,Home Care - Elderly - South,Other Small Contracts,Caring Comes 1st Limited,1166.88, 12-Apr-2019
624,Revenue,CAHD,Home Care - Elderly - South,Other Small Contracts,Caring Comes 1st Limited,718.08, 15-Apr-2019
625,Revenue,CAHD,CSC - Vinney Green Secure Unit,R & M by Departments,Carlton Services UK Limited,572.00, 18-Apr-2019
626,Revenue,CAHD,CSC - Adoption Support Fund,Post Adoption,Carly Kingswood,900.00, 15-Apr-2019
627,Revenue,CAHD,Homecare - Central,Supported Living,Cartrefi Cymru Co Operative,670.16, 09-Apr-2019
628,Revenue,CAHD,Homecare - Central,Supported Living,Cartrefi Cymru Co Operative,654.52, 09-Apr-2019
629,Revenue,CAHD,Homecare - Central,Other Small Contracts,Cartrefi Cymru Co-operative Ltd,7015.68, 05-Apr-2019
630,Revenue,CAHD,Homecare - Central,Other Small Contracts,Cartrefi Cymru Co-operative Ltd,7015.68, 05-Apr-2019
631,Revenue,CAHD,Homecare - Central,Other Small Contracts,Cartrefi Cymru Co-operative Ltd,7015.68, 05-Apr-2019
632,Revenue,CAHD,Homecare - Central,Other Small Contracts,Cartrefi Cymru Co-operative Ltd,1753.92, 24-Apr-2019
633,Revenue,CAHD,Statemented Support Academies,Schools Funding,Castle School Education Trust,518.83, 30-Apr-2019
634,Revenue,CAHD,Statemented Support Academies,Schools Funding,Castle School Education Trust,566.00, 30-Apr-2019
635,Revenue,CAHD,Statemented Support Academies,Schools Funding,Castle School Education Trust,778.25, 30-Apr-2019
636,Revenue,CAHD,Statemented Support Academies,Schools Funding,Castle School Education Trust,931.54, 30-Apr-2019
637,Revenue,CAHD,Statemented Support Academies,Schools Funding,Castle School Education Trust,542.42, 30-Apr-2019
638,Revenue,CAHD,Statemented Support Academies,Schools Funding,Castle School Education Trust,672.13, 30-Apr-2019
639,Revenue,CAHD,Statemented Support Academies,Schools Funding,Castle School Education Trust,860.79, 30-Apr-2019
640,Revenue,CAHD,Statemented Support Academies,Schools Funding,Castle School Education Trust,1462.17, 30-Apr-2019
641,Revenue,CAHD,Statemented Support Academies,Schools Funding,Castle School Education Trust,860.79, 30-Apr-2019
642,Revenue,CAHD,Statemented Support Academies,Schools Funding,Castle School Education Trust,1002.29, 30-Apr-2019
643,Revenue,CAHD,Statemented Support Academies,Schools Funding,Castle School Education Trust,1120.21, 30-Apr-2019
644,Revenue,CAHD,Statemented Support Academies,Schools Funding,Castle School Education Trust,507.04, 30-Apr-2019
645,Revenue,CAHD,Statemented Support Academies,Schools Funding,Castle School Education Trust,589.58, 30-Apr-2019
646,Revenue,CAHD,Statemented Support Academies,Schools Funding,Castle School Education Trust,955.13, 30-Apr-2019
647,Revenue,CAHD,Statemented Support Academies,Schools Funding,Castle School Education Trust,577.79, 30-Apr-2019
648,Revenue,CAHD,Statemented Support Academies,Schools Funding,Castle School Education Trust,624.96, 30-Apr-2019
649,Revenue,CAHD,Statemented Support Academies,Schools Funding,Castle School Education Trust,825.42, 30-Apr-2019
650,Revenue,CAHD,Statemented Support Academies,Schools Funding,Castle School Education Trust,707.50, 30-Apr-2019
651,Revenue,CAHD,Statemented Support Academies,Schools Funding,Castle School Education Trust,849.00, 30-Apr-2019
652,Revenue,CAHD,Statemented Support Academies,Schools Funding,Castle School Education Trust,1238.13, 30-Apr-2019
653,Revenue,CAHD,Statemented Support Academies,Schools Funding,Castle School Education Trust,1061.25, 30-Apr-2019
654,Revenue,CAHD,Statemented Support Academies,Schools Funding,Castle School Education Trust,518.83, 30-Apr-2019
655,Revenue,CAHD,Statemented Support Academies,Schools Funding,Castle School Education Trust,577.79, 30-Apr-2019
656,Revenue,CAHD,Statemented Support Academies,Schools Funding,Castle School Education Trust,1143.79, 30-Apr-2019
657,Revenue,CAHD,Academy Resource Base Funding,Other Public Bodies,Castle School Education Trust,1643.53, 30-Apr-2019
658,Revenue,CAHD,Academy Resource Base Funding,Other Public Bodies,Castle School Education Trust,1643.53, 30-Apr-2019
659,Revenue,CAHD,Academy Resource Base Funding,Other Public Bodies,Castle School Education Trust,2113.11, 30-Apr-2019
660,Revenue,CAHD,Academy Resource Base Funding,Other Public Bodies,Castle School Education Trust,1643.53, 30-Apr-2019
661,Revenue,CAHD,Academy Resource Base Funding,Other Public Bodies,Castle School Education Trust,1643.53, 30-Apr-2019
662,Revenue,CAHD,Academy Resource Base Funding,Other Public Bodies,Castle School Education Trust,1643.53, 30-Apr-2019
663,Revenue,CAHD,Academy Resource Base Funding,Other Public Bodies,Castle School Education Trust,1643.53, 30-Apr-2019
664,Revenue,CAHD,Academy Resource Base Funding,Other Public Bodies,Castle School Education Trust,1643.53, 30-Apr-2019
665,Revenue,CAHD,Statemented Support Academies,Schools Funding,Castle School Education Trust,1485.75, 30-Apr-2019
666,Revenue,CAHD,Schools Specific Grant Income,Other Public Bodies,Castle School Education Trust,1000.00, 05-Apr-2019
667,Revenue,CAHD,Statemented Support Academies,Schools Funding,Castle School Education Trust,672.13, 30-Apr-2019
668,Revenue,CAHD,Statemented Support Academies,Schools Funding,Castle School Education Trust,872.58, 30-Apr-2019
669,Revenue,CAHD,Statemented Support Academies,Schools Funding,Castle School Education Trust,849.00, 30-Apr-2019
670,Revenue,CAHD,Statemented Support Academies,Schools Funding,Castle School Education Trust,907.96, 30-Apr-2019
671,Revenue,CAHD,Statemented Support Academies,Schools Funding,Castle School Education Trust,1190.96, 30-Apr-2019
672,Revenue,CAHD,Statemented Support Academies,Schools Funding,Castle School Education Trust,1556.50, 30-Apr-2019
673,Revenue,CAHD,Statemented Support Academies,Schools Funding,Castle School Education Trust,1025.88, 30-Apr-2019
674,Revenue,CAHD,Statemented Support Academies,Schools Funding,Castle School Education Trust,1473.96, 30-Apr-2019
675,Revenue,CAHD,Statemented Support Academies,Schools Funding,Castle School Education Trust,778.25, 30-Apr-2019
676,Revenue,CAHD,Schools Specific Grant Income,Other Public Bodies,Castle School Educational Turust,1000.00, 05-Apr-2019
677,Revenue,CAHD,Social Lettings Agency,Fees - General,Individual,10.53, 01-Apr-2019
678,Revenue,CAHD,Social Lettings Agency,Fees & Charges Income - General,Individual,595.11, 01-Apr-2019
679,Revenue,CAHD,Home Care - Elderly - North,Day Care / Social Activities,Causeway House,694.72, 09-Apr-2019
680,Revenue,CAHD,Home Care - Elderly - North,Day Care / Social Activities,Causeway House,711.32, 09-Apr-2019
681,Revenue,CAHD,Homecare - Central,Day Care / Social Activities,Causeway House,555.12, 09-Apr-2019
682,Revenue,CAHD,Homecare - Central,Day Care / Social Activities,Causeway House,568.38, 09-Apr-2019
683,Revenue,CAHD,Home Care - Elderly - South,Day Care / Social Activities,Causeway House,2565.26, 09-Apr-2019
684,Revenue,CAHD,Home Care - Elderly - South,Day Care / Social Activities,Causeway House,2626.56, 09-Apr-2019
685,Revenue,CAHD,18-25 Year Olds,Day Care / Social Activities,Causeway House,692.80, 09-Apr-2019
686,Revenue,CAHD,18-25 Year Olds,Day Care / Social Activities,Causeway House,709.36, 09-Apr-2019
687,Revenue,CAHD,18-25 Year Olds,Day Care / Social Activities,Causeway House,2155.80, 09-Apr-2019
688,Revenue,CAHD,18-25 Year Olds,Day Care / Social Activities,Causeway House,2207.32, 09-Apr-2019
689,Revenue,CAHD,Homecare - Central,Day Care / Social Activities,Causeway House,1387.80, 09-Apr-2019
690,Revenue,CAHD,Homecare - Central,Day Care / Social Activities,Causeway House,1945.80, 09-Apr-2019
691,Revenue,CAHD,Homecare - Central,Day Care / Social Activities,Causeway House,852.48, 09-Apr-2019
692,Revenue,CAHD,Homecare - Central,Day Care / Social Activities,Causeway House,832.68, 09-Apr-2019
693,Revenue,CAHD,Home Care - Elderly - North,Day Care / Social Activities,Causeway House,1575.44, 09-Apr-2019
694,Revenue,CAHD,Home Care - Elderly - North,Day Care / Social Activities,Causeway House,1613.10, 09-Apr-2019
695,Revenue,CAHD,Home Care - Elderly - North,Day Care / Social Activities,Causeway House,2347.12, 09-Apr-2019
696,Revenue,CAHD,Home Care - Elderly - North,Day Care / Social Activities,Causeway House,2403.22, 09-Apr-2019
697,Revenue,CAHD,Homecare - Central,Day Care / Social Activities,Causeway House,1387.80, 09-Apr-2019
698,Revenue,CAHD,Homecare - Central,Day Care / Social Activities,Causeway House,1826.06, 09-Apr-2019
699,Revenue,CAHD,Home Care - Elderly - North,Day Care / Social Activities,Causeway House,1537.78, 09-Apr-2019
700,Revenue,CAHD,Home Care - Elderly - North,Day Care / Social Activities,Causeway House,1574.54, 09-Apr-2019
701,Revenue,CAHD,CSC - Adoption Support Fund,Post Adoption,CCS Adoption,1700.00, 08-Apr-2019
702,Revenue,CAHD,CSC - Adoption Support Fund,Post Adoption,CCS Adoption,2260.00, 15-Apr-2019
703,Revenue,CAHD,Bed Purchasing - South,Permanent Nursing,Cedar Care Homes Limited,1547.96, 09-Apr-2019
704,Revenue,CAHD,Bed Purchasing - South,Permanent Nursing,Cedar Care Homes Limited,1511.68, 09-Apr-2019
705,Revenue,CAHD,Bed Purchasing - South,Permanent Residential,Challenge House,1417.22, 09-Apr-2019
706,Revenue,CAHD,Bed Purchasing - South,Permanent Residential,Challenge House,1384.00, 09-Apr-2019
707,Revenue,CAHD,Bed Purchasing - Elderly S117- North,Permanent Residential,Challenge House,1285.70, 09-Apr-2019
708,Revenue,CAHD,Bed Purchasing - Elderly S117- North,Permanent Residential,Challenge House,1255.56, 09-Apr-2019
709,Revenue,CAHD,Bed Purchasing - North,Permanent Residential,Challenge House,1116.50, 09-Apr-2019
710,Revenue,CAHD,Bed Purchasing - North,Permanent Residential,Challenge House,1090.34, 09-Apr-2019
711,Revenue,CAHD,Bed Purchasing - North,Permanent Residential,Challenge House,1185.36, 09-Apr-2019
712,Revenue,CAHD,Bed Purchasing - North,Permanent Residential,Challenge House,1157.58, 09-Apr-2019
713,Revenue,CAHD,Bed Purchasing - Central,Respite Emergency - Residential,Challenge House,2227.65, 09-Apr-2019
714,Revenue,CAHD,Bed Purchasing - Central,Respite Emergency - Residential,Challenge House,1155.08, 09-Apr-2019
715,Revenue,CAHD,Bed Purchasing - Central,Respite Emergency - Residential,Challenge House,2310.16, 09-Apr-2019
716,Revenue,CAHD,Bed Purchasing - Central,Permanent Residential,Challenge House,1182.80, 09-Apr-2019
717,Revenue,CAHD,Bed Purchasing - Central,Permanent Residential,Challenge House,1155.08, 09-Apr-2019
718,Revenue,CAHD,Bed Purchasing - Central,Respite Emergency - Residential,Challenge House,742.55, 09-Apr-2019
719,Revenue,CAHD,Bed Purchasing - Central,Permanent Residential,Challenge House,907.56, 09-Apr-2019
720,Revenue,CAHD,Bed Purchasing - Central,Permanent Residential,Challenge House,1181.70, 09-Apr-2019
721,Revenue,CAHD,Bed Purchasing - Central,Permanent Residential,Challenge House,1154.00, 09-Apr-2019
722,Revenue,CAHD,Bed Purchasing - Central,Fees & Charges Income - General,Challenge House,868.06, 09-Apr-2019
723,Revenue,CAHD,Bed Purchasing - North,Respite Planned - Residential,Challenge House,1680.57, 09-Apr-2019
724,Revenue,CAHD,Bed Purchasing - North,Permanent Residential,Challenge House,1417.20, 09-Apr-2019
725,Revenue,CAHD,Bed Purchasing - North,Permanent Residential,Challenge House,1384.00, 09-Apr-2019
726,Revenue,CAHD,Bed Purchasing - North,Permanent Residential,Challenge House,1384.00, 09-Apr-2019
727,Revenue,CAHD,Bed Purchasing - North,Permanent Nursing,Challenge House,1565.18, 09-Apr-2019
728,Revenue,CAHD,Bed Purchasing - North,Permanent Nursing,Challenge House,1528.50, 09-Apr-2019
729,Revenue,CAHD,Bed Purchasing - Elderly S117- North,Permanent Nursing,Challenge House,1197.90, 09-Apr-2019
730,Revenue,CAHD,Bed Purchasing - Elderly S117- North,Permanent Nursing,Challenge House,1169.82, 09-Apr-2019
731,Revenue,CAHD,Bed Purchasing - North,Permanent Residential,Challenge House,1199.98, 09-Apr-2019
732,Revenue,CAHD,Bed Purchasing - North,Permanent Residential,Challenge House,1171.86, 09-Apr-2019
733,Revenue,CAHD,Bed Purchasing - North,Permanent Residential,Challenge House,1374.12, 09-Apr-2019
734,Revenue,CAHD,Bed Purchasing - North,Permanent Residential,Challenge House,1341.92, 09-Apr-2019
735,Revenue,CAHD,Bed Purchasing - North,Permanent Nursing,Challenge House,1285.70, 09-Apr-2019
736,Revenue,CAHD,Bed Purchasing - North,Permanent Nursing,Challenge House,1255.56, 09-Apr-2019
737,Revenue,CAHD,Bed Purchasing - North,Permanent Nursing,Challenge House,1197.90, 09-Apr-2019
738,Revenue,CAHD,Bed Purchasing - North,Permanent Nursing,Challenge House,1169.82, 09-Apr-2019
739,Revenue,CAHD,Bed Purchasing - North,Permanent Nursing,Challenge House,1565.18, 09-Apr-2019
740,Revenue,CAHD,Bed Purchasing - North,Permanent Nursing,Challenge House,1528.50, 09-Apr-2019
741,Revenue,CAHD,Bed Purchasing - Central,Permanent Residential,Challenge House,1536.00, 09-Apr-2019
742,Revenue,CAHD,Bed Purchasing - Central,Permanent Residential,Challenge House,1500.00, 09-Apr-2019
743,Revenue,CAHD,Alexandra Way,"Provisions (Food, etc)",Charles Saunders Limited,1048.85, 15-Apr-2019
744,Revenue,CAHD,CSC - Vinney Green Secure Unit,"Provisions (Food, etc)",Charles Saunders Limited,483.48, 26-Apr-2019
745,Revenue,CAHD,CSC - Care Leavers Independent Living,Adults - Family Support,Individual,1385.19, 18-Apr-2019
746,Revenue,CAHD,Bed Purchasing - South,Permanent Nursing,Charnwood House Nursing Home,5035.82, 09-Apr-2019
747,Revenue,CAHD,Bed Purchasing - South,Permanent Nursing,Charnwood House Nursing Home,4917.80, 09-Apr-2019
748,Revenue,CAHD,Sexual Health,Other Small Contracts,Chelsea and Westminster Hospital,689.18, 18-Apr-2019
749,Revenue,CAHD,Homecare - Central,Other Small Contracts,Cherish Able Care Limited,1587.25, 12-Apr-2019
750,Revenue,CAHD,Home Care - Elderly - South,Other Small Contracts,Cherish Able Care Limited,5519.23, 12-Apr-2019
751,Revenue,CAHD,Home Care - Elderly - North,Other Small Contracts,Cherish Able Care Limited,1402.99, 12-Apr-2019
752,Revenue,CAHD,Homecare - Central,Other Small Contracts,Cherish Able Care Limited,1566.89, 12-Apr-2019
753,Revenue,CAHD,Home Care - Elderly - South,Other Small Contracts,Cherish Able Care Limited,5532.73, 12-Apr-2019
754,Revenue,CAHD,Home Care - Elderly - North,Other Small Contracts,Cherish Able Care Limited,1398.42, 12-Apr-2019
755,Revenue,CAHD,Homecare - Central,Other Small Contracts,Cherish Able Care Limited,1562.84, 16-Apr-2019
756,Revenue,CAHD,Home Care - Elderly - South,Other Small Contracts,Cherish Able Care Limited,5612.14, 16-Apr-2019
757,Revenue,CAHD,Home Care - Elderly - North,Other Small Contracts,Cherish Able Care Limited,1384.71, 16-Apr-2019
758,Revenue,CAHD,Homecare - Central,Other Small Contracts,Cherish Able Care Limited,1551.62, 17-Apr-2019
759,Revenue,CAHD,Home Care - Elderly - South,Other Small Contracts,Cherish Able Care Limited,5403.14, 17-Apr-2019
760,Revenue,CAHD,Home Care - Elderly - North,Other Small Contracts,Cherish Able Care Limited,1498.96, 17-Apr-2019
761,Revenue,CAHD,Homecare - Central,Other Small Contracts,Cherish Able Care Limited,1627.28, 26-Apr-2019
762,Revenue,CAHD,Home Care - Elderly - South,Other Small Contracts,Cherish Able Care Limited,5583.66, 26-Apr-2019
763,Revenue,CAHD,Home Care - Elderly - North,Other Small Contracts,Cherish Able Care Limited,1570.36, 26-Apr-2019
764,Revenue,CAHD,Home Care - Elderly - South,Other Small Contracts,Cherry Orchards,6007.68, 30-Apr-2019
765,Revenue,CAHD,Home Care - Elderly - South,Other Small Contracts,Cherry Orchards,6095.04, 30-Apr-2019
766,Revenue,CAHD,18-25 Year Olds,Other Small Contracts,Cherry Orchards,4505.76, 29-Apr-2019
767,Revenue,CAHD,18-25 Year Olds,Other Small Contracts,Cherry Orchards,6007.68, 08-Apr-2019
768,Revenue,CAHD,Bed purchasing - S28A Under 65 - South,Permanent Residential,Chescombe Lodge,4882.22, 09-Apr-2019
769,Revenue,CAHD,Bed purchasing - S28A Under 65 - South,Permanent Residential,Chescombe Lodge,4767.80, 09-Apr-2019
770,Revenue,CAHD,18-25 Year Olds,Other Small Contracts,Cintre,95.20, 12-Apr-2019
771,Revenue,CAHD,Homecare - Central,Other Small Contracts,Cintre,433.16, 12-Apr-2019
772,Revenue,CAHD,Home Care - Elderly - South,Other Small Contracts,Cintre,840.37, 12-Apr-2019
773,Revenue,CAHD,18-25 Year Olds,Other Small Contracts,Cintre,104.72, 16-Apr-2019
774,Revenue,CAHD,Homecare - Central,Other Small Contracts,Cintre,409.36, 16-Apr-2019
775,Revenue,CAHD,Home Care - Elderly - South,Other Small Contracts,Cintre,844.81, 16-Apr-2019
776,Revenue,CAHD,18-25 Year Olds,Other Small Contracts,Cintre,114.24, 17-Apr-2019
777,Revenue,CAHD,Homecare - Central,Other Small Contracts,Cintre,380.80, 17-Apr-2019
778,Revenue,CAHD,Home Care - Elderly - South,Other Small Contracts,Cintre,714.00, 17-Apr-2019
779,Revenue,CAHD,18-25 Year Olds,Other Small Contracts,Cintre,104.72, 17-Apr-2019
780,Revenue,CAHD,Homecare - Central,Other Small Contracts,Cintre,385.56, 17-Apr-2019
781,Revenue,CAHD,Home Care - Elderly - South,Other Small Contracts,Cintre,799.68, 17-Apr-2019
782,Revenue,CAHD,18-25 Year Olds,Other Small Contracts,Cintre,107.36, 24-Apr-2019
783,Revenue,CAHD,Homecare - Central,Other Small Contracts,Cintre,312.32, 24-Apr-2019
784,Revenue,CAHD,Home Care - Elderly - South,Other Small Contracts,Cintre,819.84, 24-Apr-2019
785,Revenue,CAHD,CSC - LAC Placements,Personal Needs of Clients,Circles South West Ltd,1000.00, 11-Apr-2019
786,Revenue,CAHD,MH Purchasing - Younger,Permanent Residential,Claro Homes,1435.44, 09-Apr-2019
787,Revenue,CAHD,MH Purchasing - Younger,Permanent Residential,Claro Homes,1401.80, 09-Apr-2019
788,Revenue,CAHD,Section 117 Placements MH Younger,Permanent Residential,Claro Homes,1777.30, 09-Apr-2019
789,Revenue,CAHD,Section 117 Placements MH Younger,Permanent Residential,Claro Homes,1735.64, 09-Apr-2019
790,Revenue,CAHD,Bed Purchasing - North,Permanent Nursing,Claro Homes,1659.10, 09-Apr-2019
791,Revenue,CAHD,Bed Purchasing - North,Permanent Nursing,Claro Homes,1620.22, 09-Apr-2019
792,Revenue,CAHD,Bed Purchasing - South,Permanent Residential,Cleeve Lodge,1843.20, 09-Apr-2019
793,Revenue,CAHD,Bed Purchasing - South,Permanent Residential,Cleeve Lodge,1800.00, 09-Apr-2019
794,Revenue,CAHD,Bed Purchasing - South,Permanent Residential,Cleeve Lodge,1843.20, 09-Apr-2019
795,Revenue,CAHD,Bed Purchasing - South,Permanent Residential,Cleeve Lodge,1800.00, 09-Apr-2019
796,Revenue,CAHD,Bed Purchasing - South,Permanent Residential,Cleeve Lodge,654.22, 09-Apr-2019
797,Revenue,CAHD,Bed Purchasing - South,Permanent Residential,Cleeve Lodge,638.88, 09-Apr-2019
798,Revenue,CAHD,Bed Purchasing - South,Permanent Residential,Cleeve Lodge,1460.84, 09-Apr-2019
799,Revenue,CAHD,Bed Purchasing - South,Permanent Residential,Cleeve Lodge,1426.60, 09-Apr-2019
800,Revenue,CAHD,Bed Purchasing - South,Permanent Residential,Cleeve Lodge,1543.24, 09-Apr-2019
801,Revenue,CAHD,Bed Purchasing - South,Permanent Residential,Cleeve Lodge,1507.08, 09-Apr-2019
802,Revenue,CAHD,Bed Purchasing - South,Permanent Residential,Cleeve Lodge,1446.50, 09-Apr-2019
803,Revenue,CAHD,Bed Purchasing - South,Permanent Residential,Cleeve Lodge,1393.54, 09-Apr-2019
804,Revenue,CAHD,Bed Purchasing - South,Permanent Residential,Cleeve Lodge,1317.80, 09-Apr-2019
805,Revenue,CAHD,Bed Purchasing - South,Permanent Residential,Cleeve Lodge,1286.92, 09-Apr-2019
806,Revenue,CAHD,Drug and Alcohol Programme,Other Small Contracts,Close Farm Surgery,1015.00, 30-Apr-2019
807,Revenue,CAHD,Home Care - Elderly - North,Other Small Contracts,Clover Health and Home Care Ltd,2610.72, 05-Apr-2019
808,Revenue,CAHD,Homecare - Central,Other Small Contracts,Clover Health and Home Care Ltd,818.44, 17-Apr-2019
809,Revenue,CAHD,Homecare - Central,Other Small Contracts,Clover Health and Home Care Ltd,890.96, 17-Apr-2019
810,Revenue,CAHD,Bed Purchasing - South,Permanent Residential,Collingwood Residential Home,1413.12, 09-Apr-2019
811,Revenue,CAHD,Bed Purchasing - South,Permanent Residential,Collingwood Residential Home,1380.00, 09-Apr-2019
812,Revenue,CAHD,Bed Purchasing - South,Permanent Residential,Collingwood Residential Home,1120.64, 09-Apr-2019
813,Revenue,CAHD,Bed Purchasing - South,Permanent Residential,Collingwood Residential Home,1094.38, 09-Apr-2019
814,Revenue,CAHD,Bed Purchasing - South,Permanent Residential,Collingwood Residential Home,1210.40, 09-Apr-2019
815,Revenue,CAHD,Bed Purchasing - South,Permanent Residential,Collingwood Residential Home,1182.04, 09-Apr-2019
816,Revenue,CAHD,Bed Purchasing - South,Permanent Residential,Collingwood Residential Home,1252.14, 09-Apr-2019
817,Revenue,CAHD,Bed Purchasing - South,Permanent Residential,Collingwood Residential Home,1222.80, 09-Apr-2019
818,Revenue,CAHD,Bed Purchasing - South,Permanent Residential,Collingwood Residential Home,1495.04, 09-Apr-2019
819,Revenue,CAHD,Bed Purchasing - South,Permanent Residential,Collingwood Residential Home,1460.00, 09-Apr-2019
820,Revenue,CAHD,Drug and Alcohol Programme,Other Small Contracts,Concord Medical Centre,812.00, 30-Apr-2019
821,Revenue,CAHD,Drug and Alcohol Programme,Other Small Contracts,Coniston Medical Practice,1624.00, 30-Apr-2019
822,Revenue,CAHD,Statemented Support Equipment,Educational Supplies & Equipment,Connevans Limited,2509.68, 26-Apr-2019
823,Revenue,CAHD,Statemented Support Equipment,Educational Supplies & Equipment,Connevans Limited,1590.05, 26-Apr-2019
824,Revenue,CAHD,Bed and Breakfast,Bed & Breakfast,Connolly & Callaghan Limited,665.00, 29-Apr-2019
825,Revenue,CAHD,Bed and Breakfast,Bed & Breakfast,Connolly & Callaghan Limited,665.00, 29-Apr-2019
826,Revenue,CAHD,Bed and Breakfast,Bed & Breakfast,Connolly & Callaghan Limited,539.00, 23-Apr-2019
827,Revenue,CAHD,Bed and Breakfast,Bed & Breakfast,Connolly & Callaghan Limited,623.00, 23-Apr-2019
828,Revenue,CAHD,Bed and Breakfast,Bed & Breakfast,Connolly & Callaghan Limited,455.00, 23-Apr-2019
829,Revenue,CAHD,Bed and Breakfast,Bed & Breakfast,Connolly & Callaghan Limited,805.00, 29-Apr-2019
830,Revenue,CAHD,Bed and Breakfast,Bed & Breakfast,Connolly & Callaghan Limited,574.00, 29-Apr-2019
831,Revenue,CAHD,Bed and Breakfast,Bed & Breakfast,Connolly & Callaghan Limited,490.00, 25-Apr-2019
832,Revenue,CAHD,Bed and Breakfast,Bed & Breakfast,Connolly & Callaghan Limited,455.00, 18-Apr-2019
833,Revenue,CAHD,Bed and Breakfast,Bed & Breakfast,Connolly & Callaghan Limited,665.00, 29-Apr-2019
834,Revenue,CAHD,Bed and Breakfast,Bed & Breakfast,Connolly & Callaghan Limited,539.00, 29-Apr-2019
835,Revenue,CAHD,Bed and Breakfast,Bed & Breakfast,Connolly & Callaghan Limited,623.00, 29-Apr-2019
836,Revenue,CAHD,Bed and Breakfast,Bed & Breakfast,Connolly & Callaghan Limited,455.00, 29-Apr-2019
837,Revenue,CAHD,Bed and Breakfast,Bed & Breakfast,Connolly & Callaghan Limited,805.00, 29-Apr-2019
838,Revenue,CAHD,Bed and Breakfast,Bed & Breakfast,Connolly & Callaghan Limited,574.00, 29-Apr-2019
839,Revenue,CAHD,Bed and Breakfast,Bed & Breakfast,Connolly & Callaghan Limited,490.00, 29-Apr-2019
840,Revenue,CAHD,Bed and Breakfast,Bed & Breakfast,Connolly & Callaghan Limited,665.00, 29-Apr-2019
841,Revenue,CAHD,Bed and Breakfast,Bed & Breakfast,Connolly & Callaghan Limited,497.00, 30-Apr-2019
842,Revenue,CAHD,Bed and Breakfast,Bed & Breakfast,Connolly & Callaghan Limited,532.00, 29-Apr-2019
843,Revenue,CAHD,CSC - Allowances,Membership Fees,CoramBAAF Ltd t/a Coram Academy Ltd,4552.44, 10-Apr-2019
844,Revenue,CAHD,Independent Special Placements - Post 16,Other Private Contractors,Cotswold Chine School,46897.50, 23-Apr-2019
845,Revenue,CAHD,Independent Special Placements - Pre 16,Other Private Contractors,Cotswold Chine School,39292.50, 23-Apr-2019
846,Revenue,CAHD,Independent Special Placements - Pre 16,Other Private Contractors,Cotswold Chine School,22815.00, 23-Apr-2019
847,Revenue,CAHD,Independent Special Placements - Pre 16,Other Private Contractors,Cotswold Chine School,23955.75, 23-Apr-2019
848,Revenue,CAHD,Post 16 High Needs Placements,Other Private Contractors,Cotswold Chine School,23955.75, 23-Apr-2019
849,Revenue,CAHD,Alexandra Way,Cleaning & Domestic Services,Countrywide Healthcare Supplies Ltd,1651.60, 02-Apr-2019
850,Revenue,CAHD,Drug and Alcohol Programme,Other Small Contracts,Courtside Surgery,1827.00, 30-Apr-2019
851,Revenue,CAHD,Bed Purchasing - North,Permanent Residential,Cream Iii Ltd,4322.00, 09-Apr-2019
852,Revenue,CAHD,Bed Purchasing - North,Permanent Residential,Cream Iii Ltd,4220.70, 09-Apr-2019
853,Revenue,CAHD,Bed purchasing - S28A Under 65 - South,Permanent Residential,Creedy Court,5298.98, 09-Apr-2019
854,Revenue,CAHD,Bed purchasing - S28A Under 65 - South,Permanent Residential,Creedy Court,5174.78, 09-Apr-2019
855,Revenue,CAHD,Bed purchasing - S28A Under 65 - South,Permanent Residential,Creedy Court,4452.46, 09-Apr-2019
856,Revenue,CAHD,Bed purchasing - S28A Under 65 - South,Permanent Residential,Creedy Court,4348.10, 09-Apr-2019
857,Revenue,CAHD,Bed Purchasing - North,Permanent Residential,Creedy Court,7027.00, 09-Apr-2019
858,Revenue,CAHD,Bed Purchasing - North,Permanent Residential,Creedy Court,6862.30, 09-Apr-2019
859,Revenue,CAHD,Telecare,Other Supplies & Services,CSL Dualcom,468.00, 01-Apr-2019
860,Revenue,CAHD,Bed Purchasing - South,Permanent Residential,Daneswood,6134.40, 09-Apr-2019
861,Revenue,CAHD,Bed Purchasing - South,Permanent Residential,Daneswood,5990.62, 09-Apr-2019
862,Revenue,CAHD,Home Care - Elderly - South,Day Care / Social Activities,Daneswood,690.16, 09-Apr-2019
863,Revenue,CAHD,Home Care - Elderly - South,Day Care / Social Activities,Daneswood,706.64, 09-Apr-2019
864,Revenue,CAHD,Bed Purchasing - North,Permanent Residential,Daneswood,5132.00, 09-Apr-2019
865,Revenue,CAHD,Bed Purchasing - North,Permanent Residential,Daneswood,5011.72, 09-Apr-2019
866,Revenue,CAHD,Bed Purchasing - Elderly S117- North,Permanent Nursing,Danshell Healthcare Group,5436.14, 09-Apr-2019
867,Revenue,CAHD,Jointly Funded H&SC Packages,Permanent Nursing,Danshell Healthcare Group,806.64, 09-Apr-2019
868,Revenue,CAHD,Bed Purchasing - Elderly S117- North,Permanent Nursing,Danshell Healthcare Group,5308.72, 09-Apr-2019
869,Revenue,CAHD,Jointly Funded H&SC Packages,Permanent Nursing,Danshell Healthcare Group,787.74, 09-Apr-2019
870,Revenue,CAHD,Learning Difficulties PSL,Other Supplies & Services,Individual,1992.00, 18-Apr-2019
871,Revenue,CAHD,Drug and Alcohol Programme,Other Small Contracts,Day Lewis - Horfield Branch,2475.00, 29-Apr-2019
872,Revenue,CAHD,Children Centres - South Locality,Printing & Stationery,De Lage Landen Leasing Ltd,2284.45, 18-Apr-2019
873,Revenue,CAHD,Leadership and Business Support,Training Expenses,Individual,1100.00, 08-Apr-2019
874,Revenue,CAHD,South Glos Users in South Glos Homes,Permanent Nursing,Deerhurst Nursing Home,632.64, 09-Apr-2019
875,Revenue,CAHD,Bed Purchasing - South,Permanent Nursing,Deerhurst Nursing Home,1902.64, 09-Apr-2019
876,Revenue,CAHD,Bed Purchasing - South,Permanent Nursing,Deerhurst Nursing Home,1858.04, 09-Apr-2019
877,Revenue,CAHD,South Glos Users in South Glos Homes,Permanent Nursing,Deerhurst Nursing Home,632.64, 09-Apr-2019
878,Revenue,CAHD,South Glos Users in South Glos Homes,Permanent Nursing,Deerhurst Nursing Home,632.64, 09-Apr-2019
879,Revenue,CAHD,Bed Purchasing - South,Respite Planned - Nursing,Deerhurst Nursing Home,698.93, 09-Apr-2019
880,Revenue,CAHD,South Glos Users in South Glos Homes,Permanent Nursing,Deerhurst Nursing Home,632.64, 09-Apr-2019
881,Revenue,CAHD,South Glos Users in South Glos Homes,Permanent Nursing,Deerhurst Nursing Home,632.64, 09-Apr-2019
882,Revenue,CAHD,South Glos Users in South Glos Homes,Permanent Nursing,Deerhurst Nursing Home,632.64, 09-Apr-2019
883,Revenue,CAHD,South Glos Users in South Glos Homes,Permanent Nursing,Deerhurst Nursing Home,632.64, 09-Apr-2019
884,Revenue,CAHD,South Glos Users in South Glos Homes,Permanent Nursing,Deerhurst Nursing Home,632.64, 09-Apr-2019
885,Revenue,CAHD,Bed Purchasing - Central,Respite Planned - Nursing,Deerhurst Nursing Home,1957.00, 09-Apr-2019
886,Revenue,CAHD,South Glos Users in South Glos Homes,Permanent Nursing,Deerhurst Nursing Home,632.64, 09-Apr-2019
887,Revenue,CAHD,Bed Purchasing - South,Permanent Nursing,Deerhurst Nursing Home,2009.08, 09-Apr-2019
888,Revenue,CAHD,Bed Purchasing - South,Permanent Nursing,Deerhurst Nursing Home,1962.00, 09-Apr-2019
889,Revenue,CAHD,South Glos Users in South Glos Homes,Permanent Nursing,Deerhurst Nursing Home,632.64, 09-Apr-2019
890,Revenue,CAHD,South Glos Users in South Glos Homes,Permanent Nursing,Deerhurst Nursing Home,632.64, 09-Apr-2019
891,Revenue,CAHD,Bed Purchasing - Southmead Hospital,Permanent Nursing,Deerhurst Nursing Home,1945.60, 09-Apr-2019
892,Revenue,CAHD,Bed Purchasing - Southmead Hospital,Permanent Nursing,Deerhurst Nursing Home,1900.00, 09-Apr-2019
893,Revenue,CAHD,Bed Purchasing - South,Permanent Nursing,Deerhurst Nursing Home,1982.56, 09-Apr-2019
894,Revenue,CAHD,Bed Purchasing - South,Permanent Nursing,Deerhurst Nursing Home,1936.10, 09-Apr-2019
895,Revenue,CAHD,Bed Purchasing - Southmead Hospital,Permanent Nursing,Deerhurst Nursing Home,1945.60, 09-Apr-2019
896,Revenue,CAHD,Bed Purchasing - Southmead Hospital,Permanent Nursing,Deerhurst Nursing Home,1900.00, 09-Apr-2019
897,Revenue,CAHD,South Glos Users in South Glos Homes,Permanent Nursing,Deerhurst Nursing Home,632.64, 09-Apr-2019
898,Revenue,CAHD,Bed Purchasing - South,Permanent Nursing,Deerhurst Nursing Home,2003.96, 09-Apr-2019
899,Revenue,CAHD,Bed Purchasing - South,Permanent Nursing,Deerhurst Nursing Home,1957.00, 09-Apr-2019
900,Revenue,CAHD,South Glos Users in South Glos Homes,Permanent Nursing,Deerhurst Nursing Home,632.64, 09-Apr-2019
901,Revenue,CAHD,Bed Purchasing - Elderly S117- North,Permanent Nursing,Deerhurst Nursing Home,1982.56, 09-Apr-2019
902,Revenue,CAHD,Bed Purchasing - Elderly S117- North,Permanent Nursing,Deerhurst Nursing Home,1936.10, 09-Apr-2019
903,Revenue,CAHD,South Glos Users in South Glos Homes,Permanent Nursing,Deerhurst Nursing Home,632.64, 09-Apr-2019
904,Revenue,CAHD,South Glos Users in South Glos Homes,Permanent Nursing,Deerhurst Nursing Home,632.64, 09-Apr-2019
905,Revenue,CAHD,South Glos Users in South Glos Homes,Permanent Nursing,Deerhurst Nursing Home,632.64, 09-Apr-2019
906,Revenue,CAHD,Bed Purchasing - North,Permanent Nursing,Deerhurst Nursing Home,2003.96, 09-Apr-2019
907,Revenue,CAHD,Bed Purchasing - North,Permanent Nursing,Deerhurst Nursing Home,1957.00, 09-Apr-2019
908,Revenue,CAHD,South Glos Users in South Glos Homes,Permanent Nursing,Deerhurst Nursing Home,632.64, 09-Apr-2019
909,Revenue,CAHD,Bed Purchasing - South,Permanent Nursing,Deerhurst Nursing Home,1900.00, 09-Apr-2019
910,Revenue,CAHD,Bed Purchasing - South,Permanent Nursing,Deerhurst Nursing Home,1945.60, 09-Apr-2019
911,Revenue,CAHD,South Glos Users in South Glos Homes,Permanent Nursing,Deerhurst Nursing Home,632.64, 09-Apr-2019
912,Revenue,CAHD,South Glos Users in South Glos Homes,Permanent Nursing,Deerhurst Nursing Home,632.64, 09-Apr-2019
913,Revenue,CAHD,South Glos Users in South Glos Homes,Permanent Nursing,Deerhurst Nursing Home,632.64, 09-Apr-2019
914,Revenue,CAHD,South Glos Users in South Glos Homes,Permanent Nursing,Deerhurst Nursing Home,632.64, 09-Apr-2019
915,Revenue,CAHD,South Glos Users in South Glos Homes,Permanent Nursing,Deerhurst Nursing Home,632.64, 09-Apr-2019
916,Revenue,CAHD,South Glos Users in South Glos Homes,Permanent Nursing,Deerhurst Nursing Home,632.64, 09-Apr-2019
917,Revenue,CAHD,South Glos Users in South Glos Homes,Permanent Nursing,Deerhurst Nursing Home,632.64, 09-Apr-2019
918,Revenue,CAHD,South Glos Users in South Glos Homes,Permanent Nursing,Deerhurst Nursing Home,632.64, 09-Apr-2019
919,Revenue,CAHD,South Glos Users in South Glos Homes,Permanent Nursing,Deerhurst Nursing Home,632.64, 09-Apr-2019
920,Revenue,CAHD,Bed Purchasing - South,Permanent Nursing,Deerhurst Nursing Home,6677.68, 09-Apr-2019
921,Revenue,CAHD,Bed Purchasing - South,Permanent Nursing,Deerhurst Nursing Home,2002.62, 09-Apr-2019
922,Revenue,CAHD,Bed Purchasing - South,Permanent Nursing,Deerhurst Nursing Home,1955.68, 09-Apr-2019
923,Revenue,CAHD,South Glos Users in South Glos Homes,Permanent Nursing,Deerhurst Nursing Home,632.64, 09-Apr-2019
924,Revenue,CAHD,Bed Purchasing - South,Fees & Charges Income - General,Deerhurst Nursing Home,5445.09, 09-Apr-2019
925,Revenue,CAHD,South Glos Users in South Glos Homes,Permanent Nursing,Deerhurst Nursing Home,632.64, 09-Apr-2019
926,Revenue,CAHD,South Glos Users in South Glos Homes,Permanent Nursing,Deerhurst Nursing Home,632.64, 09-Apr-2019
927,Revenue,CAHD,South Glos Users in South Glos Homes,Permanent Nursing,Deerhurst Nursing Home,632.64, 09-Apr-2019
928,Revenue,CAHD,Bed Purchasing - South,Respite Emergency - Residential,Deerhurst Nursing Home,2003.96, 09-Apr-2019
929,Revenue,CAHD,Bed Purchasing - South,Respite Emergency - Residential,Deerhurst Nursing Home,1957.00, 09-Apr-2019
930,Revenue,CAHD,Bed Purchasing - South,Respite Emergency - Residential,Deerhurst Nursing Home,1537.64, 09-Apr-2019
931,Revenue,CAHD,Bed Purchasing - South,Permanent Residential,Deerhurst Nursing Home,1945.60, 09-Apr-2019
932,Revenue,CAHD,Bed Purchasing - South,Permanent Residential,Deerhurst Nursing Home,1900.00, 09-Apr-2019
933,Revenue,CAHD,Bed Purchasing - South,Permanent Nursing,Deerhurst Nursing Home,1982.56, 09-Apr-2019
934,Revenue,CAHD,Bed Purchasing - South,Permanent Nursing,Deerhurst Nursing Home,1936.10, 09-Apr-2019
935,Revenue,CAHD,South Glos Users in South Glos Homes,Permanent Nursing,Deerhurst Nursing Home,632.64, 09-Apr-2019
936,Revenue,CAHD,Bed Purchasing - North,Permanent Nursing,Deerhurst Nursing Home,1517.10, 09-Apr-2019
937,Revenue,CAHD,Bed Purchasing - North,Permanent Nursing,Deerhurst Nursing Home,1481.54, 09-Apr-2019
938,Revenue,CAHD,South Glos Users in South Glos Homes,Permanent Nursing,Deerhurst Nursing Home,632.64, 09-Apr-2019
939,Revenue,CAHD,Bed Purchasing - North,Permanent Nursing,Deerhurst Nursing Home,1417.72, 09-Apr-2019
940,Revenue,CAHD,Bed Purchasing - North,Permanent Nursing,Deerhurst Nursing Home,1384.50, 09-Apr-2019
941,Revenue,CAHD,Bed Purchasing - South,Permanent Nursing,Deerhurst Nursing Home,2003.96, 09-Apr-2019
942,Revenue,CAHD,Bed Purchasing - South,Permanent Nursing,Deerhurst Nursing Home,1957.00, 09-Apr-2019
943,Revenue,CAHD,South Glos Users in South Glos Homes,Permanent Nursing,Deerhurst Nursing Home,632.64, 09-Apr-2019
944,Revenue,CAHD,Bed Purchasing - South,Permanent Nursing,Deerhurst Nursing Home,1517.44, 09-Apr-2019
945,Revenue,CAHD,Bed Purchasing - South,Permanent Nursing,Deerhurst Nursing Home,1481.88, 09-Apr-2019
946,Revenue,CAHD,South Glos Users in South Glos Homes,Permanent Nursing,Deerhurst Nursing Home,632.64, 09-Apr-2019
947,Revenue,CAHD,Bed Purchasing - South,Permanent Nursing,Deerhurst Nursing Home,2004.58, 09-Apr-2019
948,Revenue,CAHD,Bed Purchasing - South,Permanent Nursing,Deerhurst Nursing Home,1957.60, 09-Apr-2019
949,Revenue,CAHD,South Glos Users in South Glos Homes,Permanent Nursing,Deerhurst Nursing Home,632.64, 09-Apr-2019
950,Revenue,CAHD,South Glos Users in South Glos Homes,Permanent Nursing,Deerhurst Nursing Home,632.64, 09-Apr-2019
951,Revenue,CAHD,South Glos Users in South Glos Homes,Permanent Nursing,Deerhurst Nursing Home,632.64, 09-Apr-2019
952,Revenue,CAHD,Home Care - Elderly - South,Supported Living,Design House,1330.60, 09-Apr-2019
953,Revenue,CAHD,Home Care - Elderly - South,Supported Living,Design House,1299.54, 09-Apr-2019
954,Revenue,CAHD,Home Care - Elderly - South,Supported Living,Design House,1531.50, 09-Apr-2019
955,Revenue,CAHD,Home Care - Elderly - South,Supported Living,Design House,1495.76, 09-Apr-2019
956,Revenue,CAHD,Home Care - Elderly - South,Supported Living,Design House,1566.38, 09-Apr-2019
957,Revenue,CAHD,Home Care - Elderly - South,Supported Living,Design House,1529.82, 09-Apr-2019
958,Revenue,CAHD,Home Care - Elderly - South,Supported Living,Design House,1496.64, 09-Apr-2019
959,Revenue,CAHD,Home Care - Elderly - South,Supported Living,Design House,1461.70, 09-Apr-2019
960,Revenue,CAHD,Homecare - Central,Day Care / Social Activities,Design House,1191.94, 09-Apr-2019
961,Revenue,CAHD,Homecare - Central,Day Care / Social Activities,Design House,1220.42, 09-Apr-2019
962,Revenue,CAHD,Home Care - Elderly - South,Supported Living,Design House,1319.30, 09-Apr-2019
963,Revenue,CAHD,Home Care - Elderly - South,Supported Living,Design House,1288.50, 09-Apr-2019
964,Revenue,CAHD,Home Care - Elderly - South,Supported Living,Design House,1319.30, 09-Apr-2019
965,Revenue,CAHD,Home Care - Elderly - South,Supported Living,Design House,1288.50, 09-Apr-2019
966,Revenue,CAHD,Home Care - Elderly - South,Supported Living,Design House,1074.66, 09-Apr-2019
967,Revenue,CAHD,Home Care - Elderly - South,Supported Living,Design House,1049.58, 09-Apr-2019
968,Revenue,CAHD,Home Care - Elderly - South,Supported Living,Design House,948.26, 09-Apr-2019
969,Revenue,CAHD,Home Care - Elderly - South,Supported Living,Design House,926.12, 09-Apr-2019
970,Revenue,CAHD,Home Care - Elderly - South,Supported Living,Design House,1258.30, 09-Apr-2019
971,Revenue,CAHD,Home Care - Elderly - South,Supported Living,Design House,1228.92, 09-Apr-2019
972,Revenue,CAHD,Home Care - Elderly - South,Supported Living,Design House,2153.56, 09-Apr-2019
973,Revenue,CAHD,Home Care - Elderly - South,Supported Living,Design House,2103.30, 09-Apr-2019
974,Revenue,CAHD,Home Care - Elderly - North,Supported Living,Design House,1527.12, 09-Apr-2019
975,Revenue,CAHD,Home Care - Elderly - South,Supported Living,Design House,1491.48, 09-Apr-2019
976,Revenue,CAHD,Home Care - Elderly - South,Day Care / Social Activities,Design House,735.40, 09-Apr-2019
977,Revenue,CAHD,Home Care - Elderly - South,Day Care / Social Activities,Design House,752.98, 09-Apr-2019
978,Revenue,CAHD,Home Care - Elderly - South,Supported Living,Design House,1462.34, 09-Apr-2019
979,Revenue,CAHD,Home Care - Elderly - South,Supported Living,Design House,1428.20, 09-Apr-2019
980,Revenue,CAHD,Home Care - Elderly - South,Supported Living,Design House,1271.40, 09-Apr-2019
981,Revenue,CAHD,Home Care - Elderly - South,Supported Living,Design House,1241.72, 09-Apr-2019
982,Revenue,CAHD,Home Care - Elderly - South,Supported Living,Design House,1128.74, 09-Apr-2019
983,Revenue,CAHD,Home Care - Elderly - South,Supported Living,Design House,1102.40, 09-Apr-2019
984,Revenue,CAHD,Home Care - Elderly - South,Supported Living,Design House,1128.74, 09-Apr-2019
985,Revenue,CAHD,Home Care - Elderly - South,Supported Living,Design House,1102.40, 09-Apr-2019
986,Revenue,CAHD,Homecare - Central,Other Small Contracts,Dhek Bhal,41.12, 12-Apr-2019
987,Revenue,CAHD,Home Care - Elderly - South,Other Small Contracts,Dhek Bhal,488.30, 12-Apr-2019
988,Revenue,CAHD,Homecare - Central,Other Small Contracts,Dhek Bhal,41.12, 16-Apr-2019
989,Revenue,CAHD,Home Care - Elderly - South,Other Small Contracts,Dhek Bhal,493.44, 16-Apr-2019
990,Revenue,CAHD,Homecare - Central,Other Small Contracts,Dhek Bhal,42.16, 26-Apr-2019
991,Revenue,CAHD,Home Care - Elderly - South,Other Small Contracts,Dhek Bhal,490.11, 26-Apr-2019
992,Revenue,CAHD,Home Care - Elderly - South,Supported Living,Dimensions  Suite 2,951.56, 09-Apr-2019
993,Revenue,CAHD,Home Care - Elderly - South,Supported Living,Dimensions  Suite 2,929.34, 09-Apr-2019
994,Revenue,CAHD,Home Care - Elderly - South,Supported Living,Dimensions  Suite 2,951.14, 09-Apr-2019
995,Revenue,CAHD,Home Care - Elderly - South,Supported Living,Dimensions  Suite 2,928.94, 09-Apr-2019
996,Revenue,CAHD,Home Care - Elderly - South,Supported Living,Dimensions  Suite 2,951.14, 09-Apr-2019
997,Revenue,CAHD,Home Care - Elderly - South,Supported Living,Dimensions  Suite 2,928.94, 09-Apr-2019
998,Revenue,CAHD,Home Care - Elderly - South,Supported Living,Dimensions  Suite 2,951.14, 09-Apr-2019
999,Revenue,CAHD,Supported Living (S28a) South,Supported Living,Dimensions  Suite 2,928.94, 09-Apr-2019
1000,Revenue,CAHD,Bed Purchasing - South,Permanent Residential,Dimensions  Suite 2,2815.38, 09-Apr-2019
1001,Revenue,CAHD,Bed Purchasing - South,Permanent Residential,Dimensions  Suite 2,2749.40, 09-Apr-2019
1002,Revenue,CAHD,Bed Purchasing - South,Permanent Residential,Dimensions  Suite 2,1403.06, 09-Apr-2019
1003,Revenue,CAHD,Bed Purchasing - South,Permanent Residential,Dimensions  Suite 2,1370.18, 09-Apr-2019
1004,Revenue,CAHD,CSC � Section 17 CENTRAL,Interpreting & Translation,DNA Legal,960.00, 17-Apr-2019
1005,Revenue,CAHD,Training - Adult Services,Training Expenses,Do The Write Thing,850.00, 05-Apr-2019
1006,Revenue,CAHD,Homecare - Central,Other Small Contracts,DoCare Limited,12937.37, 15-Apr-2019
1007,Revenue,CAHD,Home Care - Elderly - South,Day Care / Social Activities,DoCare Limited,63.24, 15-Apr-2019
1008,Revenue,CAHD,Home Care - Elderly - South,Other Small Contracts,DoCare Limited,361.06, 15-Apr-2019
1009,Revenue,CAHD,Home Care - Elderly - North,Day Care / Social Activities,DoCare Limited,283.40, 15-Apr-2019
1010,Revenue,CAHD,Home Care - Elderly - North,Other Small Contracts,DoCare Limited,4744.42, 15-Apr-2019
1011,Revenue,CAHD,Homecare - Central,Other Small Contracts,DoCare Limited,13886.73, 16-Apr-2019
1012,Revenue,CAHD,Home Care - Elderly - South,Day Care / Social Activities,DoCare Limited,73.78, 16-Apr-2019
1013,Revenue,CAHD,Home Care - Elderly - South,Other Small Contracts,DoCare Limited,431.07, 16-Apr-2019
1014,Revenue,CAHD,Home Care - Elderly - North,Day Care / Social Activities,DoCare Limited,43.60, 16-Apr-2019
1015,Revenue,CAHD,Home Care - Elderly - North,Other Small Contracts,DoCare Limited,5022.51, 16-Apr-2019
1016,Revenue,CAHD,Homecare - Central,Other Small Contracts,DoCare Limited,13784.55, 16-Apr-2019
1017,Revenue,CAHD,Home Care - Elderly - South,Day Care / Social Activities,DoCare Limited,36.89, 16-Apr-2019
1018,Revenue,CAHD,Home Care - Elderly - South,Other Small Contracts,DoCare Limited,457.57, 16-Apr-2019
1019,Revenue,CAHD,Home Care - Elderly - North,Other Small Contracts,DoCare Limited,4960.09, 16-Apr-2019
1020,Revenue,CAHD,Homecare - Central,Other Small Contracts,DoCare Limited,13600.35, 16-Apr-2019
1021,Revenue,CAHD,Home Care - Elderly - South,Day Care / Social Activities,DoCare Limited,63.24, 16-Apr-2019
1022,Revenue,CAHD,Home Care - Elderly - South,Other Small Contracts,DoCare Limited,441.31, 16-Apr-2019
1023,Revenue,CAHD,Home Care - Elderly - North,Other Small Contracts,DoCare Limited,4889.07, 16-Apr-2019
1024,Revenue,CAHD,Homecare - Central,Other Small Contracts,DoCare Limited,13900.77, 16-Apr-2019
1025,Revenue,CAHD,Home Care - Elderly - South,Day Care / Social Activities,DoCare Limited,73.78, 16-Apr-2019
1026,Revenue,CAHD,Home Care - Elderly - South,Other Small Contracts,DoCare Limited,441.61, 16-Apr-2019
1027,Revenue,CAHD,Home Care - Elderly - North,Other Small Contracts,DoCare Limited,4931.57, 16-Apr-2019
1028,Revenue,CAHD,Homecare - Central,Other Small Contracts,DoCare Limited,13756.42, 16-Apr-2019
1029,Revenue,CAHD,Home Care - Elderly - South,Day Care / Social Activities,DoCare Limited,73.78, 16-Apr-2019
1030,Revenue,CAHD,Home Care - Elderly - South,Other Small Contracts,DoCare Limited,447.18, 16-Apr-2019
1031,Revenue,CAHD,Home Care - Elderly - North,Day Care / Social Activities,DoCare Limited,92.65, 16-Apr-2019
1032,Revenue,CAHD,Home Care - Elderly - North,Other Small Contracts,DoCare Limited,4942.06, 16-Apr-2019
1033,Revenue,CAHD,Homecare - Central,Other Small Contracts,DoCare Limited,13419.38, 24-Apr-2019
1034,Revenue,CAHD,Home Care - Elderly - South,Day Care / Social Activities,DoCare Limited,73.78, 24-Apr-2019
1035,Revenue,CAHD,Home Care - Elderly - South,Other Small Contracts,DoCare Limited,457.72, 24-Apr-2019
1036,Revenue,CAHD,Home Care - Elderly - North,Day Care / Social Activities,DoCare Limited,294.30, 24-Apr-2019
1037,Revenue,CAHD,Home Care - Elderly - North,Other Small Contracts,DoCare Limited,5141.34, 24-Apr-2019
1038,Revenue,CAHD,Homecare - Central,Other Small Contracts,DoCare Limited,12904.42, 24-Apr-2019
1039,Revenue,CAHD,Home Care - Elderly - South,Day Care / Social Activities,DoCare Limited,68.51, 24-Apr-2019
1040,Revenue,CAHD,Home Care - Elderly - South,Other Small Contracts,DoCare Limited,473.83, 24-Apr-2019
1041,Revenue,CAHD,Home Care - Elderly - North,Day Care / Social Activities,DoCare Limited,283.40, 24-Apr-2019
1042,Revenue,CAHD,Home Care - Elderly - North,Other Small Contracts,DoCare Limited,5294.75, 24-Apr-2019
1043,Revenue,CAHD,Homecare - Central,Other Small Contracts,DoCare Limited,12940.55, 26-Apr-2019
1044,Revenue,CAHD,Home Care - Elderly - South,Day Care / Social Activities,DoCare Limited,73.78, 26-Apr-2019
1045,Revenue,CAHD,Home Care - Elderly - South,Other Small Contracts,DoCare Limited,495.06, 26-Apr-2019
1046,Revenue,CAHD,Home Care - Elderly - North,Day Care / Social Activities,DoCare Limited,261.60, 26-Apr-2019
1047,Revenue,CAHD,Home Care - Elderly - North,Other Small Contracts,DoCare Limited,5084.62, 26-Apr-2019
1048,Revenue,CAHD,Homecare - Central,Other Small Contracts,DoCare Limited,13268.79, 26-Apr-2019
1049,Revenue,CAHD,Home Care - Elderly - South,Day Care / Social Activities,DoCare Limited,31.62, 26-Apr-2019
1050,Revenue,CAHD,Home Care - Elderly - South,Other Small Contracts,DoCare Limited,441.31, 26-Apr-2019
1051,Revenue,CAHD,Home Care - Elderly - North,Day Care / Social Activities,DoCare Limited,272.50, 26-Apr-2019
1052,Revenue,CAHD,Home Care - Elderly - North,Other Small Contracts,DoCare Limited,4998.53, 26-Apr-2019
1053,Revenue,CAHD,Homecare - Central,Other Small Contracts,DoCare Limited,13174.76, 26-Apr-2019
1054,Revenue,CAHD,Home Care - Elderly - South,Day Care / Social Activities,DoCare Limited,75.60, 26-Apr-2019
1055,Revenue,CAHD,Home Care - Elderly - South,Other Small Contracts,DoCare Limited,369.15, 26-Apr-2019
1056,Revenue,CAHD,Home Care - Elderly - North,Day Care / Social Activities,DoCare Limited,290.16, 26-Apr-2019
1057,Revenue,CAHD,Home Care - Elderly - North,Other Small Contracts,DoCare Limited,5022.74, 26-Apr-2019
1058,Revenue,CAHD,Drug and Alcohol Programme,Other Small Contracts,Downend Health Group,5481.00, 30-Apr-2019
1059,Revenue,CAHD,Statemented Support Academies,Schools Funding,Downend School,978.71, 30-Apr-2019
1060,Revenue,CAHD,Statemented Support Academies,Schools Funding,Downend School,1025.88, 30-Apr-2019
1061,Revenue,CAHD,Statemented Support Academies,Schools Funding,Downend School,1014.08, 30-Apr-2019
1062,Revenue,CAHD,Statemented Support Academies,Schools Funding,Downend School,801.83, 30-Apr-2019
1063,Revenue,CAHD,Statemented Support Academies,Schools Funding,Downend School,530.63, 30-Apr-2019
1064,Revenue,CAHD,Statemented Support Academies,Schools Funding,Downend School,1108.42, 30-Apr-2019
1065,Revenue,CAHD,Statemented Support Academies,Schools Funding,Downend School,554.21, 30-Apr-2019
1066,Revenue,CAHD,Statemented Support Academies,Schools Funding,Downend School,1709.79, 30-Apr-2019
1067,Revenue,CAHD,Social Lettings Agency,Other Supplies & Services,Individual,517.64, 24-Apr-2019
1068,Revenue,CAHD,Drug and Alcohol Programme,Other Small Contracts,Dr W J Foubister & Partners,1624.00, 30-Apr-2019
1069,Revenue,CAHD,Bed Purchasing - Central,Permanent Nursing,Drakes Court,1450.42, 09-Apr-2019
1070,Revenue,CAHD,Bed Purchasing - Central,Permanent Nursing,Drakes Court,1416.42, 09-Apr-2019
1071,Revenue,CAHD,South Glos Users in South Glos Homes,Permanent Nursing,Drakes Court,632.64, 09-Apr-2019
1072,Revenue,CAHD,Bed Purchasing - Central,Permanent Nursing,Drakes Court,9413.14, 09-Apr-2019
1073,Revenue,CAHD,South Glos Users in South Glos Homes,Permanent Nursing,Drakes Court,632.64, 09-Apr-2019
1074,Revenue,CAHD,Bed Purchasing - Central,Permanent Nursing,Drakes Court,1183.74, 09-Apr-2019
1075,Revenue,CAHD,Bed Purchasing - Central,Permanent Nursing,Drakes Court,1156.00, 09-Apr-2019
1076,Revenue,CAHD,South Glos Users in South Glos Homes,Permanent Nursing,Drakes Court,632.64, 09-Apr-2019
1077,Revenue,CAHD,South Glos Users in South Glos Homes,Permanent Nursing,Drakes Court,632.64, 09-Apr-2019
1078,Revenue,CAHD,Bed Purchasing - Central,Permanent Nursing,Drakes Court,1450.42, 09-Apr-2019
1079,Revenue,CAHD,Bed Purchasing - Central,Permanent Nursing,Drakes Court,1416.42, 09-Apr-2019
1080,Revenue,CAHD,South Glos Users in South Glos Homes,Permanent Nursing,Drakes Court,632.64, 09-Apr-2019
1081,Revenue,CAHD,South Glos Users in South Glos Homes,Permanent Nursing,Drakes Court,632.64, 09-Apr-2019
1082,Revenue,CAHD,Bed Purchasing - North,Permanent Nursing,Drakes Court,9413.14, 09-Apr-2019
1083,Revenue,CAHD,Bed Purchasing - North,Permanent Nursing,Drakes Court,578.00, 09-Apr-2019
1084,Revenue,CAHD,Bed Purchasing - Central,Permanent Nursing,Drakes Court,9413.14, 09-Apr-2019
1085,Revenue,CAHD,Bed Purchasing - Central,Permanent Nursing,Drakes Court,1183.74, 09-Apr-2019
1086,Revenue,CAHD,Bed Purchasing - Central,Permanent Nursing,Drakes Court,1156.00, 09-Apr-2019
1087,Revenue,CAHD,South Glos Users in South Glos Homes,Permanent Nursing,Drakes Court,632.64, 09-Apr-2019
1088,Revenue,CAHD,Bed Purchasing - Central,Permanent Nursing,Drakes Court,1423.36, 09-Apr-2019
1089,Revenue,CAHD,Bed Purchasing - Central,Permanent Nursing,Drakes Court,1390.00, 09-Apr-2019
1090,Revenue,CAHD,South Glos Users in South Glos Homes,Permanent Nursing,Drakes Court,632.64, 09-Apr-2019
1091,Revenue,CAHD,South Glos Users in South Glos Homes,Permanent Nursing,Drakes Court,632.64, 09-Apr-2019
1092,Revenue,CAHD,South Glos Users in South Glos Homes,Permanent Nursing,Drakes Court,632.64, 09-Apr-2019
1093,Revenue,CAHD,South Glos Users in South Glos Homes,Permanent Nursing,Drakes Court,632.64, 09-Apr-2019
1094,Revenue,CAHD,South Glos Users in South Glos Homes,Permanent Nursing,Drakes Court,632.64, 09-Apr-2019
1095,Revenue,CAHD,South Glos Users in South Glos Homes,Permanent Nursing,Drakes Court,632.64, 09-Apr-2019
1096,Revenue,CAHD,Bed Purchasing - North,Permanent Residential,Drakes Court,5063.14, 09-Apr-2019
1097,Revenue,CAHD,Bed Purchasing - South,Permanent Nursing,Drakes Court,1423.36, 09-Apr-2019
1098,Revenue,CAHD,Bed Purchasing - South,Permanent Nursing,Drakes Court,1390.00, 09-Apr-2019
1099,Revenue,CAHD,South Glos Users in South Glos Homes,Permanent Nursing,Drakes Court,632.64, 09-Apr-2019
1100,Revenue,CAHD,South Glos Users in South Glos Homes,Permanent Nursing,Drakes Court,632.64, 09-Apr-2019
1101,Revenue,CAHD,South Glos Users in South Glos Homes,Permanent Nursing,Drakes Court,632.64, 09-Apr-2019
1102,Revenue,CAHD,Bed and Breakfast,Bed & Breakfast,Individual,686.00, 30-Apr-2019
1103,Revenue,CAHD,Bed and Breakfast,Bed & Breakfast,Individual,511.00, 01-Apr-2019
1104,Revenue,CAHD,Bed and Breakfast,Bed & Breakfast,Individual,672.00, 30-Apr-2019
1105,Revenue,CAHD,Bed and Breakfast,Bed & Breakfast,Individual,581.00, 01-Apr-2019
1106,Revenue,CAHD,Bed and Breakfast,Bed & Breakfast,Individual,581.00, 29-Apr-2019
1107,Revenue,CAHD,Bed and Breakfast,Bed & Breakfast,Individual,672.00, 30-Apr-2019
1108,Revenue,CAHD,Bed and Breakfast,Bed & Breakfast,Individual,511.00, 01-Apr-2019
1109,Revenue,CAHD,Bed and Breakfast,Bed & Breakfast,Individual,686.00, 30-Apr-2019
1110,Revenue,CAHD,Bed and Breakfast,Bed & Breakfast,Individual,593.50, 26-Apr-2019
1111,Revenue,CAHD,Bed and Breakfast,Bed & Breakfast,Individual,522.00, 29-Apr-2019
1112,Revenue,CAHD,Bed and Breakfast,Bed & Breakfast,Individual,700.75, 30-Apr-2019
1113,Revenue,CAHD,Bed and Breakfast,Bed & Breakfast,Individual,472.75, 23-Apr-2019
1114,Revenue,CAHD,Bed and Breakfast,Bed & Breakfast,Individual,432.00, 23-Apr-2019
1115,Revenue,CAHD,Bed and Breakfast,Bed & Breakfast,Individual,598.50, 26-Apr-2019
1116,Revenue,CAHD,Bed and Breakfast,Bed & Breakfast,Individual,526.40, 29-Apr-2019
1117,Revenue,CAHD,Bed and Breakfast,Bed & Breakfast,Individual,706.65, 30-Apr-2019
1118,Revenue,CAHD,Bed and Breakfast,Bed & Breakfast,Individual,418.25, 23-Apr-2019
1119,Revenue,CAHD,Bed and Breakfast,Bed & Breakfast,Individual,418.25, 25-Apr-2019
1120,Revenue,CAHD,Bed and Breakfast,Bed & Breakfast,Individual,706.65, 30-Apr-2019
1121,Revenue,CAHD,Bed and Breakfast,Bed & Breakfast,Individual,598.50, 29-Apr-2019
1122,Revenue,CAHD,Bed and Breakfast,Bed & Breakfast,Individual,526.40, 29-Apr-2019
1123,Revenue,CAHD,CSC - Vinney Green Secure Unit,Mechanical & Electrical Maintenance,E J Heating & Engineering Company Ltd,23315.00, 12-Apr-2019
1124,Revenue,CAHD,Bed Purchasing - North,Permanent Residential,East Court,1381.78, 09-Apr-2019
1125,Revenue,CAHD,Bed Purchasing - North,Permanent Residential,East Court,1349.40, 09-Apr-2019
1126,Revenue,CAHD,Training - Adult Services,Training Expenses,Edge Training & Consultancy Limited,925.00, 05-Apr-2019
1127,Revenue,CAHD,Mental Capacity Act / DOLS,Training Expenses,Edge Training & Consultancy Limited,1105.00, 05-Apr-2019
1128,Revenue,CAHD,Bed Purchasing - South,Permanent Residential,Edgecumbe Lodge,1331.20, 09-Apr-2019
1129,Revenue,CAHD,Bed Purchasing - South,Permanent Residential,Edgecumbe Lodge,1300.00, 09-Apr-2019
1130,Revenue,CAHD,Bed Purchasing - South,Permanent Residential,Edgecumbe Lodge,1331.20, 09-Apr-2019
1131,Revenue,CAHD,Bed Purchasing - South,Permanent Residential,Edgecumbe Lodge,1300.00, 09-Apr-2019
1132,Revenue,CAHD,Bed Purchasing - South,Permanent Residential,Edgecumbe Lodge,1115.16, 09-Apr-2019
1133,Revenue,CAHD,Bed Purchasing - South,Permanent Residential,Edgecumbe Lodge,1074.34, 09-Apr-2019
1134,Revenue,CAHD,Bed Purchasing - Elderly S117- North,Permanent Residential,Edgecumbe Lodge,1359.88, 09-Apr-2019
1135,Revenue,CAHD,Bed Purchasing - Elderly S117- North,Permanent Residential,Edgecumbe Lodge,1328.00, 09-Apr-2019
1136,Revenue,CAHD,Bed Purchasing - South,Permanent Residential,Edgecumbe Lodge,2600.00, 09-Apr-2019
1137,Revenue,CAHD,Bed Purchasing - South,Permanent Residential,Edgecumbe Lodge,1331.20, 09-Apr-2019
1138,Revenue,CAHD,Bed Purchasing - South,Permanent Residential,Edgecumbe Lodge,1300.00, 09-Apr-2019
1139,Revenue,CAHD,Bed Purchasing - North,Respite Emergency - Residential,Edgecumbe Lodge,650.00, 09-Apr-2019
1140,Revenue,CAHD,Bed Purchasing - South,Permanent Residential,Edgecumbe Lodge,1331.20, 09-Apr-2019
1141,Revenue,CAHD,Bed Purchasing - South,Permanent Residential,Edgecumbe Lodge,1300.00, 09-Apr-2019
1142,Revenue,CAHD,Bed Purchasing - South,Permanent Residential,Edgecumbe Lodge,1151.80, 09-Apr-2019
1143,Revenue,CAHD,Bed Purchasing - South,Permanent Residential,Edgecumbe Lodge,1110.00, 09-Apr-2019
1144,Revenue,CAHD,Bed Purchasing - South,Permanent Residential,Edgecumbe Lodge,1252.14, 09-Apr-2019
1145,Revenue,CAHD,Bed Purchasing - South,Permanent Residential,Edgecumbe Lodge,1222.80, 09-Apr-2019
1146,Revenue,CAHD,Bed Purchasing - South,Permanent Residential,Edgecumbe Lodge,1268.42, 09-Apr-2019
1147,Revenue,CAHD,Bed Purchasing - South,Permanent Residential,Edgecumbe Lodge,1238.70, 09-Apr-2019
1148,Revenue,CAHD,Bed Purchasing - Southmead Hospital,Permanent Residential,Edgecumbe Lodge,1331.20, 09-Apr-2019
1149,Revenue,CAHD,Bed Purchasing - Southmead Hospital,Permanent Residential,Edgecumbe Lodge,1021.43, 09-Apr-2019
1150,Revenue,CAHD,Bed Purchasing - South,Permanent Residential,Edgemont House Ltd,1011.38, 09-Apr-2019
1151,Revenue,CAHD,Bed Purchasing - South,Permanent Residential,Edgemont House Ltd,974.36, 09-Apr-2019
1152,Revenue,CAHD,South Glos Users in South Glos Homes,Permanent Nursing,Edgemont View Nursing Home,632.64, 09-Apr-2019
1153,Revenue,CAHD,Bed Purchasing - Southmead Hospital,Permanent Nursing,Edgemont View Nursing Home,1792.00, 09-Apr-2019
1154,Revenue,CAHD,Bed Purchasing - Southmead Hospital,Permanent Nursing,Edgemont View Nursing Home,1750.00, 09-Apr-2019
1155,Revenue,CAHD,Bed Purchasing - Southmead Hospital,Permanent Nursing,Edgemont View Nursing Home,1625.00, 09-Apr-2019
1156,Revenue,CAHD,South Glos Users in South Glos Homes,Permanent Nursing,Edgemont View Nursing Home,632.64, 09-Apr-2019
1157,Revenue,CAHD,Bed Purchasing - South,Permanent Nursing,Edgemont View Nursing Home,618.68, 09-Apr-2019
1158,Revenue,CAHD,South Glos Users in South Glos Homes,Permanent Nursing,Edgemont View Nursing Home,632.64, 09-Apr-2019
1159,Revenue,CAHD,Bed Purchasing - South,Permanent Nursing,Edgemont View Nursing Home,1280.00, 09-Apr-2019
1160,Revenue,CAHD,Bed Purchasing - South,Permanent Nursing,Edgemont View Nursing Home,1250.00, 09-Apr-2019
1161,Revenue,CAHD,South Glos Users in South Glos Homes,Permanent Nursing,Edgemont View Nursing Home,632.64, 09-Apr-2019
1162,Revenue,CAHD,Bed Purchasing - Southmead Hospital,Permanent Nursing,Edgemont View Nursing Home,2064.72, 09-Apr-2019
1163,Revenue,CAHD,Bed Purchasing - Southmead Hospital,Permanent Nursing,Edgemont View Nursing Home,2016.32, 09-Apr-2019
1164,Revenue,CAHD,South Glos Users in South Glos Homes,Permanent Nursing,Edgemont View Nursing Home,632.64, 09-Apr-2019
1165,Revenue,CAHD,South Glos Users in South Glos Homes,Permanent Nursing,Edgemont View Nursing Home,632.64, 09-Apr-2019
1166,Revenue,CAHD,Bed Purchasing - South,Respite Planned - Nursing,Edgemont View Nursing Home,1250.00, 09-Apr-2019
1167,Revenue,CAHD,South Glos Users in South Glos Homes,Permanent Nursing,Edgemont View Nursing Home,632.64, 09-Apr-2019
1168,Revenue,CAHD,South Glos Users in South Glos Homes,Permanent Nursing,Edgemont View Nursing Home,632.64, 09-Apr-2019
1169,Revenue,CAHD,Bed Purchasing - South,Permanent Nursing,Edgemont View Nursing Home,1502.58, 09-Apr-2019
1170,Revenue,CAHD,Bed Purchasing - South,Permanent Nursing,Edgemont View Nursing Home,1467.36, 09-Apr-2019
1171,Revenue,CAHD,South Glos Users in South Glos Homes,Permanent Nursing,Edgemont View Nursing Home,632.64, 09-Apr-2019
1172,Revenue,CAHD,Bed Purchasing - South,Respite Emergency - Residential,Edgemont View Nursing Home,3875.00, 09-Apr-2019
1173,Revenue,CAHD,Bed Purchasing - South,Respite Emergency - Residential,Edgemont View Nursing Home,1750.00, 09-Apr-2019
1174,Revenue,CAHD,Bed Purchasing - South,Respite Emergency - Residential,Edgemont View Nursing Home,1408.00, 09-Apr-2019
1175,Revenue,CAHD,South Glos Users in South Glos Homes,Permanent Nursing,Edgemont View Nursing Home,632.64, 09-Apr-2019
1176,Revenue,CAHD,South Glos Users in South Glos Homes,Permanent Nursing,Edgemont View Nursing Home,632.64, 09-Apr-2019
1177,Revenue,CAHD,South Glos Users in South Glos Homes,Permanent Nursing,Edgemont View Nursing Home,632.64, 09-Apr-2019
1178,Revenue,CAHD,South Glos Users in South Glos Homes,Permanent Nursing,Edgemont View Nursing Home,632.64, 09-Apr-2019
1179,Revenue,CAHD,Bed Purchasing - South,Permanent Nursing,Edgemont View Nursing Home,1467.36, 09-Apr-2019
1180,Revenue,CAHD,Bed Purchasing - South,Permanent Nursing,Edgemont View Nursing Home,1502.58, 09-Apr-2019
1181,Revenue,CAHD,South Glos Users in South Glos Homes,Permanent Nursing,Edgemont View Nursing Home,632.64, 09-Apr-2019
1182,Revenue,CAHD,South Glos Users in South Glos Homes,Permanent Nursing,Edgemont View Nursing Home,632.64, 09-Apr-2019
1183,Revenue,CAHD,Bed Purchasing - South,Permanent Nursing,Edgemont View Nursing Home,2250.00, 09-Apr-2019
1184,Revenue,CAHD,Bed Purchasing - South,Permanent Nursing,Edgemont View Nursing Home,1792.00, 09-Apr-2019
1185,Revenue,CAHD,Bed Purchasing - South,Permanent Nursing,Edgemont View Nursing Home,1750.00, 09-Apr-2019
1186,Revenue,CAHD,South Glos Users in South Glos Homes,Permanent Nursing,Edgemont View Nursing Home,632.64, 09-Apr-2019
1187,Revenue,CAHD,Early Years Inclusion Fund,Other Public Bodies,Individual,1800.00, 08-Apr-2019
1188,Revenue,CAHD,Planning and Partnerships Procurement,Other Supplies & Services,Eldercare,3008.52, 30-Apr-2019
1189,Revenue,CAHD,Planning and Partnerships Procurement,Other Supplies & Services,Eldercare,2550.20, 30-Apr-2019
1190,Revenue,CAHD,Children Centres - North Locality,Children - Family Support,ELF Sitters,1720.00, 04-Apr-2019
1191,Revenue,CAHD,Supporting People Programme,Grants to Voluntary Bodies,Elim Housing Association Limited,5245.73, 05-Apr-2019
1192,Revenue,CAHD,Home Care - Elderly - South,Day Care / Social Activities,Elite Home Care Ltd,189.83, 12-Apr-2019
1193,Revenue,CAHD,Home Care - Elderly - South,Other Small Contracts,Elite Home Care Ltd,5192.17, 12-Apr-2019
1194,Revenue,CAHD,Home Care - Elderly - North,Other Small Contracts,Elite Home Care Ltd,700.54, 12-Apr-2019
1195,Revenue,CAHD,Home Care - Elderly - South,Day Care / Social Activities,Elite Home Care Ltd,194.46, 12-Apr-2019
1196,Revenue,CAHD,Home Care - Elderly - South,Other Small Contracts,Elite Home Care Ltd,5560.13, 12-Apr-2019
1197,Revenue,CAHD,Home Care - Elderly - North,Other Small Contracts,Elite Home Care Ltd,695.91, 12-Apr-2019
1198,Revenue,CAHD,Home Care - Elderly - South,Day Care / Social Activities,Elite Home Care Ltd,199.09, 17-Apr-2019
1199,Revenue,CAHD,Home Care - Elderly - South,Other Small Contracts,Elite Home Care Ltd,5821.77, 17-Apr-2019
1200,Revenue,CAHD,Home Care - Elderly - North,Other Small Contracts,Elite Home Care Ltd,702.08, 17-Apr-2019
1201,Revenue,CAHD,Home Care - Elderly - South,Day Care / Social Activities,Elite Home Care Ltd,208.32, 24-Apr-2019
1202,Revenue,CAHD,Home Care - Elderly - South,Other Small Contracts,Elite Home Care Ltd,7773.77, 24-Apr-2019
1203,Revenue,CAHD,Home Care - Elderly - North,Other Small Contracts,Elite Home Care Ltd,725.12, 24-Apr-2019
1204,Revenue,CAHD,Drug and Alcohol Programme,Other Small Contracts,Emersons Green Medical Centre,1827.00, 30-Apr-2019
1205,Revenue,CAHD,Special ISB,Other Public Bodies,Enable Trust,1487.06, 30-Apr-2019
1206,Revenue,CAHD,Special ISB,Other Public Bodies,Enable Trust,860.91, 30-Apr-2019
1207,Revenue,CAHD,Special ISB,Other Public Bodies,Enable Trust,1487.06, 30-Apr-2019
1208,Revenue,CAHD,Special ISB,Other Public Bodies,Enable Trust,1134.86, 30-Apr-2019
1209,Revenue,CAHD,Special ISB,Other Public Bodies,Enable Trust,1134.86, 30-Apr-2019
1210,Revenue,CAHD,Special ISB,Other Public Bodies,Enable Trust,1134.86, 30-Apr-2019
1211,Revenue,CAHD,Special ISB,Other Public Bodies,Enable Trust,1487.06, 30-Apr-2019
1212,Revenue,CAHD,Special ISB,Other Public Bodies,Enable Trust,860.91, 30-Apr-2019
1213,Revenue,CAHD,Special ISB,Other Public Bodies,Enable Trust,1134.86, 30-Apr-2019
1214,Revenue,CAHD,Special ISB,Other Public Bodies,Enable Trust,1134.86, 30-Apr-2019
1215,Revenue,CAHD,Special ISB,Other Public Bodies,Enable Trust,1134.86, 30-Apr-2019
1216,Revenue,CAHD,Special ISB,Other Public Bodies,Enable Trust,626.06, 30-Apr-2019
1217,Revenue,CAHD,Special ISB,Other Public Bodies,Enable Trust,1487.06, 30-Apr-2019
1218,Revenue,CAHD,Special ISB,Other Public Bodies,Enable Trust,626.06, 30-Apr-2019
1219,Revenue,CAHD,Special ISB,Other Public Bodies,Enable Trust,860.91, 30-Apr-2019
1220,Revenue,CAHD,Special ISB,Other Public Bodies,Enable Trust,860.91, 30-Apr-2019
1221,Revenue,CAHD,Special ISB,Other Public Bodies,Enable Trust,1134.86, 30-Apr-2019
1222,Revenue,CAHD,Special ISB,Other Public Bodies,Enable Trust,1134.86, 30-Apr-2019
1223,Revenue,CAHD,Special ISB,Other Public Bodies,Enable Trust,1134.86, 30-Apr-2019
1224,Revenue,CAHD,Special ISB,Other Public Bodies,Enable Trust,860.91, 30-Apr-2019
1225,Revenue,CAHD,Special ISB,Other Public Bodies,Enable Trust,1134.86, 30-Apr-2019
1226,Revenue,CAHD,Special ISB,Other Public Bodies,Enable Trust,1487.06, 30-Apr-2019
1227,Revenue,CAHD,Special ISB,Other Public Bodies,Enable Trust,626.06, 30-Apr-2019
1228,Revenue,CAHD,Special ISB,Other Public Bodies,Enable Trust,860.91, 30-Apr-2019
1229,Revenue,CAHD,Special ISB,Other Public Bodies,Enable Trust,1487.06, 30-Apr-2019
1230,Revenue,CAHD,Special ISB,Other Public Bodies,Enable Trust,1134.86, 30-Apr-2019
1231,Revenue,CAHD,Special ISB,Other Public Bodies,Enable Trust,860.91, 30-Apr-2019
1232,Revenue,CAHD,Special ISB,Other Public Bodies,Enable Trust,1134.86, 30-Apr-2019
1233,Revenue,CAHD,Special ISB,Other Public Bodies,Enable Trust,860.91, 30-Apr-2019
1234,Revenue,CAHD,Special ISB,Other Public Bodies,Enable Trust,2113.11, 30-Apr-2019
1235,Revenue,CAHD,Special ISB,Other Public Bodies,Enable Trust,1134.86, 30-Apr-2019
1236,Revenue,CAHD,Special ISB,Other Public Bodies,Enable Trust,1134.86, 30-Apr-2019
1237,Revenue,CAHD,Special ISB,Other Public Bodies,Enable Trust,1134.86, 30-Apr-2019
1238,Revenue,CAHD,Special ISB,Other Public Bodies,Enable Trust,1134.86, 30-Apr-2019
1239,Revenue,CAHD,Special ISB,Other Public Bodies,Enable Trust,1134.86, 30-Apr-2019
1240,Revenue,CAHD,Special ISB,Other Public Bodies,Enable Trust,1134.86, 30-Apr-2019
1241,Revenue,CAHD,Special ISB,Other Public Bodies,Enable Trust,1487.06, 30-Apr-2019
1242,Revenue,CAHD,Special ISB,Other Public Bodies,Enable Trust,1134.86, 30-Apr-2019
1243,Revenue,CAHD,Special ISB,Other Public Bodies,Enable Trust,1487.06, 30-Apr-2019
1244,Revenue,CAHD,Special ISB,Other Public Bodies,Enable Trust,1134.86, 30-Apr-2019
1245,Revenue,CAHD,Special ISB,Other Public Bodies,Enable Trust,860.91, 30-Apr-2019
1246,Revenue,CAHD,Special ISB,Other Public Bodies,Enable Trust,1487.06, 30-Apr-2019
1247,Revenue,CAHD,Special ISB,Other Public Bodies,Enable Trust,1134.86, 30-Apr-2019
1248,Revenue,CAHD,Special ISB,Other Public Bodies,Enable Trust,1487.06, 30-Apr-2019
1249,Revenue,CAHD,Special ISB,Other Public Bodies,Enable Trust,1134.86, 30-Apr-2019
1250,Revenue,CAHD,Special ISB,Other Public Bodies,Enable Trust,860.91, 30-Apr-2019
1251,Revenue,CAHD,Special ISB,Other Public Bodies,Enable Trust,1134.86, 30-Apr-2019
1252,Revenue,CAHD,Special ISB,Other Public Bodies,Enable Trust,1134.86, 30-Apr-2019
1253,Revenue,CAHD,Special ISB,Other Public Bodies,Enable Trust,1134.86, 30-Apr-2019
1254,Revenue,CAHD,Special ISB,Other Public Bodies,Enable Trust,1487.06, 30-Apr-2019
1255,Revenue,CAHD,Special ISB,Other Public Bodies,Enable Trust,860.91, 30-Apr-2019
1256,Revenue,CAHD,Special ISB,Other Public Bodies,Enable Trust,1134.86, 30-Apr-2019
1257,Revenue,CAHD,Special ISB,Other Public Bodies,Enable Trust,1134.86, 30-Apr-2019
1258,Revenue,CAHD,Special ISB,Other Public Bodies,Enable Trust,1487.06, 30-Apr-2019
1259,Revenue,CAHD,Special ISB,Other Public Bodies,Enable Trust,860.91, 30-Apr-2019
1260,Revenue,CAHD,Special ISB,Other Public Bodies,Enable Trust,860.91, 30-Apr-2019
1261,Revenue,CAHD,Special ISB,Other Public Bodies,Enable Trust,860.91, 30-Apr-2019
1262,Revenue,CAHD,Special ISB,Other Public Bodies,Enable Trust,1487.06, 30-Apr-2019
1263,Revenue,CAHD,Special ISB,Other Public Bodies,Enable Trust,1487.06, 30-Apr-2019
1264,Revenue,CAHD,Special ISB,Other Public Bodies,Enable Trust,626.06, 30-Apr-2019
1265,Revenue,CAHD,Special ISB,Other Public Bodies,Enable Trust,1134.86, 30-Apr-2019
1266,Revenue,CAHD,Special ISB,Other Public Bodies,Enable Trust,1487.06, 30-Apr-2019
1267,Revenue,CAHD,Special ISB,Other Public Bodies,Enable Trust,1643.53, 30-Apr-2019
1268,Revenue,CAHD,Special ISB,Other Public Bodies,Enable Trust,860.91, 30-Apr-2019
1269,Revenue,CAHD,Special ISB,Other Public Bodies,Enable Trust,1134.86, 30-Apr-2019
1270,Revenue,CAHD,Special ISB,Other Public Bodies,Enable Trust,2113.11, 30-Apr-2019
1271,Revenue,CAHD,Special ISB,Other Public Bodies,Enable Trust,2113.11, 30-Apr-2019
1272,Revenue,CAHD,Special ISB,Other Public Bodies,Enable Trust,1455.69, 30-Apr-2019
1273,Revenue,CAHD,Special ISB,Other Public Bodies,Enable Trust,1643.53, 30-Apr-2019
1274,Revenue,CAHD,Special ISB,Other Public Bodies,Enable Trust,860.91, 30-Apr-2019
1275,Revenue,CAHD,Special ISB,Other Public Bodies,Enable Trust,860.91, 30-Apr-2019
1276,Revenue,CAHD,Special ISB,Other Public Bodies,Enable Trust,1134.86, 30-Apr-2019
1277,Revenue,CAHD,Special ISB,Other Public Bodies,Enable Trust,1134.86, 30-Apr-2019
1278,Revenue,CAHD,Special ISB,Other Public Bodies,Enable Trust,1134.86, 30-Apr-2019
1279,Revenue,CAHD,Special ISB,Other Public Bodies,Enable Trust,1134.86, 30-Apr-2019
1280,Revenue,CAHD,Special ISB,Other Public Bodies,Enable Trust,860.91, 30-Apr-2019
1281,Revenue,CAHD,Special ISB,Other Public Bodies,Enable Trust,1643.53, 30-Apr-2019
1282,Revenue,CAHD,Special ISB,Other Public Bodies,Enable Trust,860.91, 30-Apr-2019
1283,Revenue,CAHD,Special ISB,Other Public Bodies,Enable Trust,1643.53, 30-Apr-2019
1284,Revenue,CAHD,Special ISB,Other Public Bodies,Enable Trust,1134.86, 30-Apr-2019
1285,Revenue,CAHD,Special ISB,Other Public Bodies,Enable Trust,2113.11, 30-Apr-2019
1286,Revenue,CAHD,Special ISB,Other Public Bodies,Enable Trust,2426.14, 30-Apr-2019
1287,Revenue,CAHD,Special ISB,Other Public Bodies,Enable Trust,860.91, 30-Apr-2019
1288,Revenue,CAHD,Special ISB,Other Public Bodies,Enable Trust,860.91, 30-Apr-2019
1289,Revenue,CAHD,Special ISB,Other Public Bodies,Enable Trust,1643.53, 30-Apr-2019
1290,Revenue,CAHD,Special ISB,Other Public Bodies,Enable Trust,1455.69, 30-Apr-2019
1291,Revenue,CAHD,Special ISB,Other Public Bodies,Enable Trust,1134.86, 30-Apr-2019
1292,Revenue,CAHD,Special ISB,Other Public Bodies,Enable Trust,1134.86, 30-Apr-2019
1293,Revenue,CAHD,Special ISB,Other Public Bodies,Enable Trust,1134.86, 30-Apr-2019
1294,Revenue,CAHD,Special ISB,Other Public Bodies,Enable Trust,1643.53, 30-Apr-2019
1295,Revenue,CAHD,Special ISB,Other Public Bodies,Enable Trust,1643.53, 30-Apr-2019
1296,Revenue,CAHD,Special ISB,Other Public Bodies,Enable Trust,1134.86, 30-Apr-2019
1297,Revenue,CAHD,Special ISB,Other Public Bodies,Enable Trust,1134.86, 30-Apr-2019
1298,Revenue,CAHD,Special ISB,Other Public Bodies,Enable Trust,860.91, 30-Apr-2019
1299,Revenue,CAHD,Special ISB,Other Public Bodies,Enable Trust,1134.86, 30-Apr-2019
1300,Revenue,CAHD,Special ISB,Other Public Bodies,Enable Trust,1134.86, 30-Apr-2019
1301,Revenue,CAHD,Special ISB,Other Public Bodies,Enable Trust,1134.86, 30-Apr-2019
1302,Revenue,CAHD,Special ISB,Other Public Bodies,Enable Trust,1643.53, 30-Apr-2019
1303,Revenue,CAHD,Special ISB,Other Public Bodies,Enable Trust,1643.53, 30-Apr-2019
1304,Revenue,CAHD,Special ISB,Other Public Bodies,Enable Trust,860.91, 30-Apr-2019
1305,Revenue,CAHD,Special ISB,Other Public Bodies,Enable Trust,1134.86, 30-Apr-2019
1306,Revenue,CAHD,Special ISB,Other Public Bodies,Enable Trust,1643.53, 30-Apr-2019
1307,Revenue,CAHD,Special ISB,Other Public Bodies,Enable Trust,860.91, 30-Apr-2019
1308,Revenue,CAHD,Special ISB,Other Public Bodies,Enable Trust,1134.86, 30-Apr-2019
1309,Revenue,CAHD,Special ISB,Other Public Bodies,Enable Trust,1134.86, 30-Apr-2019
1310,Revenue,CAHD,Special ISB,Other Public Bodies,Enable Trust,1134.86, 30-Apr-2019
1311,Revenue,CAHD,Special ISB,Other Public Bodies,Enable Trust,978.34, 30-Apr-2019
1312,Revenue,CAHD,Special ISB,Other Public Bodies,Enable Trust,1134.86, 30-Apr-2019
1313,Revenue,CAHD,Special ISB,Other Public Bodies,Enable Trust,860.91, 30-Apr-2019
1314,Revenue,CAHD,Special ISB,Other Public Bodies,Enable Trust,1134.86, 30-Apr-2019
1315,Revenue,CAHD,Special ISB,Other Public Bodies,Enable Trust,1134.86, 30-Apr-2019
1316,Revenue,CAHD,Special ISB,Other Public Bodies,Enable Trust,2113.11, 30-Apr-2019
1317,Revenue,CAHD,Special ISB,Other Public Bodies,Enable Trust,1643.53, 30-Apr-2019
1318,Revenue,CAHD,Special ISB,Other Public Bodies,Enable Trust,860.91, 30-Apr-2019
1319,Revenue,CAHD,Special ISB,Other Public Bodies,Enable Trust,1134.86, 30-Apr-2019
1320,Revenue,CAHD,Special ISB,Other Public Bodies,Enable Trust,860.91, 30-Apr-2019
1321,Revenue,CAHD,Special ISB,Other Public Bodies,Enable Trust,1134.86, 30-Apr-2019
1322,Revenue,CAHD,Special ISB,Other Public Bodies,Enable Trust,626.06, 30-Apr-2019
1323,Revenue,CAHD,Special ISB,Other Public Bodies,Enable Trust,1643.53, 30-Apr-2019
1324,Revenue,CAHD,Special ISB,Other Public Bodies,Enable Trust,1643.53, 30-Apr-2019
1325,Revenue,CAHD,Special ISB,Other Public Bodies,Enable Trust,1487.06, 30-Apr-2019
1326,Revenue,CAHD,Special ISB,Other Public Bodies,Enable Trust,860.91, 30-Apr-2019
1327,Revenue,CAHD,Special ISB,Other Public Bodies,Enable Trust,1134.86, 30-Apr-2019
1328,Revenue,CAHD,Special ISB,Other Public Bodies,Enable Trust,1134.86, 30-Apr-2019
1329,Revenue,CAHD,Special ISB,Other Public Bodies,Enable Trust,1134.86, 30-Apr-2019
1330,Revenue,CAHD,Special ISB,Other Public Bodies,Enable Trust,1134.86, 30-Apr-2019
1331,Revenue,CAHD,Special ISB,Other Public Bodies,Enable Trust,860.91, 30-Apr-2019
1332,Revenue,CAHD,Special ISB,Other Public Bodies,Enable Trust,860.91, 30-Apr-2019
1333,Revenue,CAHD,Special ISB,Other Public Bodies,Enable Trust,860.91, 30-Apr-2019
1334,Revenue,CAHD,Special ISB,Other Public Bodies,Enable Trust,1134.86, 30-Apr-2019
1335,Revenue,CAHD,Special ISB,Other Public Bodies,Enable Trust,860.91, 30-Apr-2019
1336,Revenue,CAHD,Special ISB,Other Public Bodies,Enable Trust,860.91, 30-Apr-2019
1337,Revenue,CAHD,Special ISB,Other Public Bodies,Enable Trust,860.91, 30-Apr-2019
1338,Revenue,CAHD,Special ISB,Other Public Bodies,Enable Trust,1134.86, 30-Apr-2019
1339,Revenue,CAHD,Special ISB,Other Public Bodies,Enable Trust,1643.53, 30-Apr-2019
1340,Revenue,CAHD,Special ISB,Other Public Bodies,Enable Trust,1643.53, 30-Apr-2019
1341,Revenue,CAHD,Special ISB,Other Public Bodies,Enable Trust,2113.11, 30-Apr-2019
1342,Revenue,CAHD,Special ISB,Other Public Bodies,Enable Trust,860.91, 30-Apr-2019
1343,Revenue,CAHD,Special ISB,Other Public Bodies,Enable Trust,1134.86, 30-Apr-2019
1344,Revenue,CAHD,Special ISB,Other Public Bodies,Enable Trust,2113.11, 30-Apr-2019
1345,Revenue,CAHD,Special ISB,Other Public Bodies,Enable Trust,1643.53, 30-Apr-2019
1346,Revenue,CAHD,Special ISB,Other Public Bodies,Enable Trust,860.91, 30-Apr-2019
1347,Revenue,CAHD,Special ISB,Other Public Bodies,Enable Trust,860.91, 30-Apr-2019
1348,Revenue,CAHD,Special ISB,Other Public Bodies,Enable Trust,1134.86, 30-Apr-2019
1349,Revenue,CAHD,Special ISB,Other Public Bodies,Enable Trust,1643.53, 30-Apr-2019
1350,Revenue,CAHD,Special ISB,Other Public Bodies,Enable Trust,1643.53, 30-Apr-2019
1351,Revenue,CAHD,Schools Block Growth Contingency,Other Public Bodies,Endeavour Academy Trust,42000.00, 23-Apr-2019
1352,Revenue,CAHD,CSC - Ofsted Work,Agency Staff (Admin/Support Staff) Pay,Enid Noctor,13865.00, 18-Apr-2019
1353,Revenue,CAHD,Homecare - Central,Other Small Contracts,Epiphany In Care,4752.00, 18-Apr-2019
1354,Revenue,CAHD,Bed Purchasing - South,Permanent Nursing,Epworth House,13714.29, 09-Apr-2019
1355,Revenue,CAHD,Bed Purchasing - South,Permanent Nursing,Epworth House,1536.00, 09-Apr-2019
1356,Revenue,CAHD,Bed Purchasing - South,Permanent Nursing,Epworth House,5250.00, 09-Apr-2019
1357,Revenue,CAHD,Bed Purchasing - South,Permanent Nursing,Epworth House,1536.00, 09-Apr-2019
1358,Revenue,CAHD,Placements OLA Special Schools and RB,Other L.A.'s - General,Excalibur Academies Trust T/A,1511.83, 30-Apr-2019
1359,Revenue,CAHD,Independent Special Placements - Pre 16,Other Private Contractors,Exeter Royal Academy For Deaf Education,15857.00, 23-Apr-2019
1360,Revenue,CAHD,Independent Special Placements - Post 16,Other Private Contractors,Exeter Royal Academy For Deaf Education,26144.00, 23-Apr-2019
1361,Revenue,CAHD,Homeless - Private Sector Leasing,Prop.Serv. General Repairs,Express Property Services Limited,2405.00, 16-Apr-2019
1362,Revenue,CAHD,Extra Care Housing,Private & Voluntary Home Care,Extra Care Charitable Trust,30382.22, 12-Apr-2019
1363,Revenue,CAHD,Bed Purchasing - North,Permanent Residential,Eyre Court,1859.58, 09-Apr-2019
1364,Revenue,CAHD,Bed Purchasing - North,Permanent Residential,Eyre Court,1816.00, 09-Apr-2019
1365,Revenue,CAHD,Bed Purchasing - Southmead Hospital,Permanent Nursing,Fairview Court,1905.28, 09-Apr-2019
1366,Revenue,CAHD,Bed Purchasing - Southmead Hospital,Permanent Nursing,Fairview Court,1860.62, 09-Apr-2019
1367,Revenue,CAHD,South Glos Users in South Glos Homes,Permanent Nursing,Fairview Court,632.64, 09-Apr-2019
1368,Revenue,CAHD,South Glos Users in South Glos Homes,Permanent Nursing,Fairview Court,632.64, 09-Apr-2019
1369,Revenue,CAHD,South Glos Users in South Glos Homes,Permanent Nursing,Fairview Court,632.64, 09-Apr-2019
1370,Revenue,CAHD,Bed Purchasing - Southmead Hospital,Permanent Nursing,Fairview Court,13688.85, 09-Apr-2019
1371,Revenue,CAHD,Bed Purchasing - Southmead Hospital,Permanent Nursing,Fairview Court,1905.28, 09-Apr-2019
1372,Revenue,CAHD,Bed Purchasing - Southmead Hospital,Permanent Nursing,Fairview Court,1860.62, 09-Apr-2019
1373,Revenue,CAHD,South Glos Users in South Glos Homes,Permanent Nursing,Fairview Court,632.64, 09-Apr-2019
1374,Revenue,CAHD,Bed Purchasing - Southmead Hospital,Fees & Charges Income - General,Fairview Court,2012.31, 09-Apr-2019
1375,Revenue,CAHD,South Glos Users in South Glos Homes,Permanent Nursing,Fairview Court,632.64, 09-Apr-2019
1376,Revenue,CAHD,Bed Purchasing - Southmead Hospital,Permanent Nursing,Fairview Court,1905.28, 09-Apr-2019
1377,Revenue,CAHD,Bed Purchasing - Southmead Hospital,Permanent Nursing,Fairview Court,1860.62, 09-Apr-2019
1378,Revenue,CAHD,South Glos Users in South Glos Homes,Permanent Nursing,Fairview Court,632.64, 09-Apr-2019
1379,Revenue,CAHD,South Glos Users in South Glos Homes,Permanent Nursing,Fairview Court,632.64, 09-Apr-2019
1380,Revenue,CAHD,South Glos Users in South Glos Homes,Permanent Nursing,Fairview Court,632.64, 09-Apr-2019
1381,Revenue,CAHD,Bed Purchasing - South,Permanent Nursing,Fairview Court,1773.88, 09-Apr-2019
1382,Revenue,CAHD,Bed Purchasing - South,Permanent Nursing,Fairview Court,1732.30, 09-Apr-2019
1383,Revenue,CAHD,South Glos Users in South Glos Homes,Permanent Nursing,Fairview Court,632.64, 09-Apr-2019
1384,Revenue,CAHD,Bed Purchasing - South,Permanent Nursing,Fairview Court,1905.28, 09-Apr-2019
1385,Revenue,CAHD,Bed Purchasing - South,Permanent Nursing,Fairview Court,1860.62, 09-Apr-2019
1386,Revenue,CAHD,Bed Purchasing - South,Fees & Charges Income - General,Fairview Court,1065.34, 09-Apr-2019
1387,Revenue,CAHD,Bed Purchasing - South,Permanent Nursing,Fairview Court,1905.28, 09-Apr-2019
1388,Revenue,CAHD,Bed Purchasing - South,Permanent Nursing,Fairview Court,1860.62, 09-Apr-2019
1389,Revenue,CAHD,South Glos Users in South Glos Homes,Permanent Nursing,Fairview Court,632.64, 09-Apr-2019
1390,Revenue,CAHD,Bed Purchasing - South,Permanent Nursing,Fairview Court,1753.00, 09-Apr-2019
1391,Revenue,CAHD,Bed Purchasing - South,Permanent Nursing,Fairview Court,1711.92, 09-Apr-2019
1392,Revenue,CAHD,South Glos Users in South Glos Homes,Permanent Nursing,Fairview Court,632.64, 09-Apr-2019
1393,Revenue,CAHD,South Glos Users in South Glos Homes,Permanent Nursing,Fairview Court,632.64, 09-Apr-2019
1394,Revenue,CAHD,South Glos Users in South Glos Homes,Permanent Nursing,Fairview Court,632.64, 09-Apr-2019
1395,Revenue,CAHD,Bed purchasing - Elderly S117 - South,Permanent Nursing,Fairview Court,2086.92, 09-Apr-2019
1396,Revenue,CAHD,Bed purchasing - Elderly S117 - South,Permanent Nursing,Fairview Court,2038.00, 09-Apr-2019
1397,Revenue,CAHD,South Glos Users in South Glos Homes,Permanent Nursing,Fairview Court,632.64, 09-Apr-2019
1398,Revenue,CAHD,South Glos Users in South Glos Homes,Permanent Nursing,Fairview Court,632.64, 09-Apr-2019
1399,Revenue,CAHD,Bed Purchasing - South,Permanent Nursing,Fairview Court,1691.24, 09-Apr-2019
1400,Revenue,CAHD,Bed Purchasing - South,Permanent Nursing,Fairview Court,1651.60, 09-Apr-2019
1401,Revenue,CAHD,South Glos Users in South Glos Homes,Permanent Nursing,Fairview Court,632.64, 09-Apr-2019
1402,Revenue,CAHD,Bed Purchasing - South,Permanent Nursing,Fairview Court,1905.20, 09-Apr-2019
1403,Revenue,CAHD,Bed Purchasing - South,Permanent Nursing,Fairview Court,1860.54, 09-Apr-2019
1404,Revenue,CAHD,South Glos Users in South Glos Homes,Permanent Nursing,Fairview Court,632.64, 09-Apr-2019
1405,Revenue,CAHD,South Glos Users in South Glos Homes,Permanent Nursing,Fairview Court,632.64, 09-Apr-2019
1406,Revenue,CAHD,South Glos Users in South Glos Homes,Permanent Nursing,Fairview Court,632.64, 09-Apr-2019
1407,Revenue,CAHD,Bed Purchasing - South,Permanent Nursing,Fairview Court,1905.28, 09-Apr-2019
1408,Revenue,CAHD,Bed Purchasing - South,Permanent Nursing,Fairview Court,1860.62, 09-Apr-2019
1409,Revenue,CAHD,South Glos Users in South Glos Homes,Permanent Nursing,Fairview Court,632.64, 09-Apr-2019
1410,Revenue,CAHD,South Glos Users in South Glos Homes,Permanent Nursing,Fairview Court,632.64, 09-Apr-2019
1411,Revenue,CAHD,South Glos Users in South Glos Homes,Permanent Nursing,Fairview Court,632.64, 09-Apr-2019
1412,Revenue,CAHD,South Glos Users in South Glos Homes,Permanent Nursing,Fairview Court,632.64, 09-Apr-2019
1413,Revenue,CAHD,South Glos Users in South Glos Homes,Permanent Nursing,Fairview Court,632.64, 09-Apr-2019
1414,Revenue,CAHD,South Glos Users in South Glos Homes,Permanent Nursing,Fairview Court,632.64, 09-Apr-2019
1415,Revenue,CAHD,South Glos Users in South Glos Homes,Permanent Nursing,Fairview Court,632.64, 09-Apr-2019
1416,Revenue,CAHD,Bed Purchasing - South,Permanent Nursing,Fairview Court,1905.28, 09-Apr-2019
1417,Revenue,CAHD,Bed Purchasing - South,Permanent Nursing,Fairview Court,1860.62, 09-Apr-2019
1418,Revenue,CAHD,South Glos Users in South Glos Homes,Permanent Nursing,Fairview Court,632.64, 09-Apr-2019
1419,Revenue,CAHD,South Glos Users in South Glos Homes,Permanent Nursing,Fairview Court,632.64, 09-Apr-2019
1420,Revenue,CAHD,South Glos Users in South Glos Homes,Permanent Nursing,Fairview Court,632.64, 09-Apr-2019
1421,Revenue,CAHD,South Glos Users in South Glos Homes,Permanent Nursing,Fairview Court,632.64, 09-Apr-2019
1422,Revenue,CAHD,South Glos Users in South Glos Homes,Permanent Nursing,Fairview Court,632.64, 09-Apr-2019
1423,Revenue,CAHD,Bed Purchasing - North,Permanent Nursing,Fairview Court,1773.88, 09-Apr-2019
1424,Revenue,CAHD,Bed Purchasing - North,Permanent Nursing,Fairview Court,1732.30, 09-Apr-2019
1425,Revenue,CAHD,South Glos Users in South Glos Homes,Permanent Nursing,Fairview Court,632.64, 09-Apr-2019
1426,Revenue,CAHD,Bed Purchasing - Southmead Hospital,Permanent Nursing,Fairview Court,1905.28, 09-Apr-2019
1427,Revenue,CAHD,Bed Purchasing - Southmead Hospital,Permanent Nursing,Fairview Court,1860.62, 09-Apr-2019
1428,Revenue,CAHD,South Glos Users in South Glos Homes,Permanent Nursing,Fairview Court,632.64, 09-Apr-2019
1429,Revenue,CAHD,South Glos Users in South Glos Homes,Permanent Nursing,Fairview Court,632.64, 09-Apr-2019
1430,Revenue,CAHD,South Glos Users in South Glos Homes,Permanent Nursing,Fairview Court,632.64, 09-Apr-2019
1431,Revenue,CAHD,Bed Purchasing - North,Permanent Residential,Fairview Court,1628.16, 09-Apr-2019
1432,Revenue,CAHD,Bed Purchasing - North,Permanent Residential,Fairview Court,1590.00, 09-Apr-2019
1433,Revenue,CAHD,Bed Purchasing - South,Permanent Nursing,Fairview Court,1701.02, 09-Apr-2019
1434,Revenue,CAHD,Bed Purchasing - South,Permanent Nursing,Fairview Court,995.34, 09-Apr-2019
1435,Revenue,CAHD,South Glos Users in South Glos Homes,Permanent Nursing,Fairview Court,632.64, 09-Apr-2019
1436,Revenue,CAHD,Bed Purchasing - South,Permanent Nursing,Fairview Court,746.50, 09-Apr-2019
1437,Revenue,CAHD,Bed Purchasing - South,Permanent Nursing,Fairview Court,729.01, 09-Apr-2019
1438,Revenue,CAHD,Bed Purchasing - North,Permanent Nursing,Fairview Court,1905.28, 09-Apr-2019
1439,Revenue,CAHD,Bed Purchasing - North,Permanent Nursing,Fairview Court,1860.62, 09-Apr-2019
1440,Revenue,CAHD,South Glos Users in South Glos Homes,Permanent Nursing,Fairview Court,632.64, 09-Apr-2019
1441,Revenue,CAHD,Bed Purchasing - South,Permanent Nursing,Fairview Court,1565.18, 09-Apr-2019
1442,Revenue,CAHD,Bed Purchasing - South,Permanent Nursing,Fairview Court,1528.50, 09-Apr-2019
1443,Revenue,CAHD,South Glos Users in South Glos Homes,Permanent Nursing,Fairview Court,632.64, 09-Apr-2019
1444,Revenue,CAHD,Bed Purchasing - South,Permanent Nursing,Fairview Court,1905.28, 09-Apr-2019
1445,Revenue,CAHD,Bed Purchasing - South,Permanent Nursing,Fairview Court,1860.62, 09-Apr-2019
1446,Revenue,CAHD,South Glos Users in South Glos Homes,Permanent Nursing,Fairview Court,632.64, 09-Apr-2019
1447,Revenue,CAHD,Bed Purchasing - South,Permanent Nursing,Fairview Court,1773.88, 09-Apr-2019
1448,Revenue,CAHD,Bed Purchasing - South,Permanent Nursing,Fairview Court,1732.30, 09-Apr-2019
1449,Revenue,CAHD,South Glos Users in South Glos Homes,Permanent Nursing,Fairview Court,632.64, 09-Apr-2019
1450,Revenue,CAHD,South Glos Users in South Glos Homes,Permanent Nursing,Fairview Court,632.64, 09-Apr-2019
1451,Revenue,CAHD,South Glos Users in South Glos Homes,Permanent Nursing,Fairview Court,632.64, 09-Apr-2019
1452,Revenue,CAHD,Bed purchasing - Elderly S117 - South,Permanent Residential,Fairview House,1136.24, 09-Apr-2019
1453,Revenue,CAHD,Bed purchasing - Elderly S117 - South,Permanent Residential,Fairview House,1109.60, 09-Apr-2019
1454,Revenue,CAHD,Bed Purchasing - South,Permanent Residential,Fairview House,1151.76, 09-Apr-2019
1455,Revenue,CAHD,Bed Purchasing - South,Permanent Residential,Fairview House,1109.60, 09-Apr-2019
1456,Revenue,CAHD,Bed Purchasing - North,Fees & Charges Income - General,Fairview House,4537.69, 09-Apr-2019
1457,Revenue,CAHD,Bed Purchasing - North,Permanent Residential,Fairview House,1423.36, 09-Apr-2019
1458,Revenue,CAHD,Bed Purchasing - North,Permanent Residential,Fairview House,1390.00, 09-Apr-2019
1459,Revenue,CAHD,Bed Purchasing - Southmead Hospital,Permanent Residential,Fairview House,1423.36, 09-Apr-2019
1460,Revenue,CAHD,Bed Purchasing - Southmead Hospital,Permanent Residential,Fairview House,1390.00, 09-Apr-2019
1461,Revenue,CAHD,Bed Purchasing - South,Permanent Residential,Fairview House,1151.76, 09-Apr-2019
1462,Revenue,CAHD,Bed Purchasing - South,Permanent Residential,Fairview House,1109.60, 09-Apr-2019
1463,Revenue,CAHD,Bed Purchasing - South,Permanent Residential,Fairview House,1115.16, 09-Apr-2019
1464,Revenue,CAHD,Bed Purchasing - South,Permanent Residential,Fairview House,1074.34, 09-Apr-2019
1465,Revenue,CAHD,Bed Purchasing - South,Permanent Residential,Fairview House,1115.20, 09-Apr-2019
1466,Revenue,CAHD,Bed Purchasing - South,Permanent Residential,Fairview House,1078.74, 09-Apr-2019
1467,Revenue,CAHD,Bed Purchasing - South,Permanent Residential,Fairview House,1304.34, 09-Apr-2019
1468,Revenue,CAHD,Bed Purchasing - South,Permanent Residential,Fairview House,1273.76, 09-Apr-2019
1469,Revenue,CAHD,Bed Purchasing - North,Permanent Residential,Faith House,1648.64, 09-Apr-2019
1470,Revenue,CAHD,Bed Purchasing - North,Permanent Residential,Faith House,1610.00, 09-Apr-2019
1471,Revenue,CAHD,Bed Purchasing - North,Permanent Residential,Faith House,1402.88, 09-Apr-2019
1472,Revenue,CAHD,Bed Purchasing - North,Permanent Residential,Faith House,1370.00, 09-Apr-2019
1473,Revenue,CAHD,Bed Purchasing - Southmead Hospital,Permanent Residential,Faith House,1402.88, 09-Apr-2019
1474,Revenue,CAHD,Bed Purchasing - Southmead Hospital,Permanent Residential,Faith House,1370.00, 09-Apr-2019
1475,Revenue,CAHD,Bed Purchasing - North,Respite Emergency - Residential,Faith House,9601.43, 09-Apr-2019
1476,Revenue,CAHD,Bed Purchasing - South,Permanent Residential,Faith House,1402.88, 09-Apr-2019
1477,Revenue,CAHD,Bed Purchasing - South,Permanent Residential,Faith House,1370.00, 09-Apr-2019
1478,Revenue,CAHD,Post 16 High Needs Placements,Other Private Contractors,Farleigh FEC-Frome Priory,24293.43, 18-Apr-2019
1479,Revenue,CAHD,Post 16 High Needs Placements,Other Private Contractors,Farleigh FEC-Frome Priory,21204.85, 18-Apr-2019
1480,Revenue,CAHD,Post 16 High Needs Placements,Other Private Contractors,Farleigh FEC-Frome Priory,22499.38, 18-Apr-2019
1481,Revenue,CAHD,Post 16 High Needs Placements,Other Private Contractors,Farleigh FEC-Frome Priory,22312.65, 18-Apr-2019
1482,Revenue,CAHD,Bed Purchasing - Central,Permanent Nursing,Festival House,1527.52, 09-Apr-2019
1483,Revenue,CAHD,Bed Purchasing - Central,Permanent Nursing,Festival House,1491.72, 09-Apr-2019
1484,Revenue,CAHD,Bed Purchasing - North,Permanent Nursing,Field House Care Home,1108.16, 09-Apr-2019
1485,Revenue,CAHD,Bed Purchasing - North,Permanent Nursing,Field House Care Home,1082.18, 09-Apr-2019
1486,Revenue,CAHD,Bed Purchasing - North,Permanent Nursing,Field House Care Home,1761.28, 09-Apr-2019
1487,Revenue,CAHD,Bed Purchasing - North,Permanent Nursing,Field House Care Home,1720.00, 09-Apr-2019
1488,Revenue,CAHD,South Glos Users in South Glos Homes,Permanent Nursing,Field House Care Home,632.64, 09-Apr-2019
1489,Revenue,CAHD,Bed Purchasing - North,Permanent Nursing,Field House Care Home,1761.28, 09-Apr-2019
1490,Revenue,CAHD,Bed Purchasing - North,Permanent Nursing,Field House Care Home,1720.00, 09-Apr-2019
1491,Revenue,CAHD,Bed Purchasing - North,Permanent Nursing,Field House Care Home,1701.80, 09-Apr-2019
1492,Revenue,CAHD,Bed Purchasing - North,Permanent Nursing,Field House Care Home,1661.92, 09-Apr-2019
1493,Revenue,CAHD,Bed Purchasing - North,Permanent Nursing,Field House Care Home,1794.74, 09-Apr-2019
1494,Revenue,CAHD,Bed Purchasing - North,Permanent Nursing,Field House Care Home,1752.68, 09-Apr-2019
1495,Revenue,CAHD,Bed Purchasing - North,Permanent Nursing,Field House Care Home,1711.26, 09-Apr-2019
1496,Revenue,CAHD,Bed Purchasing - North,Permanent Nursing,Field House Care Home,1671.16, 09-Apr-2019
1497,Revenue,CAHD,Bed Purchasing - North,Respite Planned - Nursing,Field House Care Home,1711.26, 09-Apr-2019
1498,Revenue,CAHD,Bed Purchasing - North,Respite Planned - Nursing,Field House Care Home,1671.16, 09-Apr-2019
1499,Revenue,CAHD,Bed Purchasing - North,Permanent Nursing,Field House Care Home,1711.26, 09-Apr-2019
1500,Revenue,CAHD,Bed Purchasing - North,Permanent Nursing,Field House Care Home,1671.16, 09-Apr-2019
1501,Revenue,CAHD,Bed Purchasing - North,Permanent Nursing,Field House Care Home,1108.16, 09-Apr-2019
1502,Revenue,CAHD,Bed Purchasing - North,Permanent Nursing,Field House Care Home,1082.18, 09-Apr-2019
1503,Revenue,CAHD,South Glos Users in South Glos Homes,Permanent Nursing,Field House Care Home,632.64, 09-Apr-2019
1504,Revenue,CAHD,Bed Purchasing - North,Permanent Nursing,Field House Care Home,1108.16, 09-Apr-2019
1505,Revenue,CAHD,Bed Purchasing - North,Permanent Nursing,Field House Care Home,1082.18, 09-Apr-2019
1506,Revenue,CAHD,Bed Purchasing - North,Permanent Nursing,Field House Care Home,1753.00, 09-Apr-2019
1507,Revenue,CAHD,Bed Purchasing - North,Permanent Nursing,Field House Care Home,1711.92, 09-Apr-2019
1508,Revenue,CAHD,Bed Purchasing - North,Permanent Nursing,Field House Care Home,1753.00, 09-Apr-2019
1509,Revenue,CAHD,Bed Purchasing - North,Permanent Nursing,Field House Care Home,1711.92, 09-Apr-2019
1510,Revenue,CAHD,Bed Purchasing - Central,Permanent Residential,Fieldview,1740.80, 09-Apr-2019
1511,Revenue,CAHD,Bed Purchasing - Central,Permanent Residential,Fieldview,1700.00, 09-Apr-2019
1512,Revenue,CAHD,Bed Purchasing - North,Fees & Charges Income - General,Fieldview,1293.10, 09-Apr-2019
1513,Revenue,CAHD,Bed Purchasing - North,Permanent Residential,Fieldview,1878.22, 09-Apr-2019
1514,Revenue,CAHD,Bed Purchasing - North,Permanent Residential,Fieldview,1834.20, 09-Apr-2019
1515,Revenue,CAHD,MH Purchasing - Younger,Permanent Nursing,Fieldview,2748.26, 09-Apr-2019
1516,Revenue,CAHD,MH Purchasing - Younger,Permanent Nursing,Fieldview,2683.84, 09-Apr-2019
1517,Revenue,CAHD,Bed Purchasing - South,Permanent Residential,Fig House,1479.82, 09-Apr-2019
1518,Revenue,CAHD,Bed Purchasing - South,Permanent Residential,Fig House,1445.14, 09-Apr-2019
1519,Revenue,CAHD,Statemented Support Payments to OLAs,Other L.A.'s - General,Filton Avenue Primary School,1132.00, 30-Apr-2019
1520,Revenue,CAHD,Statemented Support Payments to OLAs,Other L.A.'s - General,Filton Avenue Primary School,1332.46, 30-Apr-2019
1521,Revenue,CAHD,Early Years Inclusion Fund,Other Public Bodies,First Steps Day Nursery,1000.00, 08-Apr-2019
1522,Revenue,CAHD,CSC - Agency Fostering,Foster Parent Allowances,Five Rivers Child Care Limited,3676.00, 11-Apr-2019
1523,Revenue,CAHD,CSC - Agency Fostering,Foster Parent Allowances,Five Rivers Child Care Limited,3876.00, 11-Apr-2019
1524,Revenue,CAHD,CSC - Agency Fostering,Foster Parent Allowances,Five Rivers Child Care Limited,3177.72, 11-Apr-2019
1525,Revenue,CAHD,CSC - Agency Fostering,Foster Parent Allowances,Five Rivers Child Care Limited,3114.16, 11-Apr-2019
1526,Revenue,CAHD,CSC - Agency Fostering,Foster Parent Allowances,Five Rivers Child Care Limited,3114.16, 11-Apr-2019
1527,Revenue,CAHD,CSC - Agency Fostering,Foster Parent Allowances,Five Rivers Child Care Limited,526.50, 08-Apr-2019
1528,Revenue,CAHD,CSC - Agency Fostering,Foster Parent Allowances,Five Rivers Child Care Limited,3447.82, 15-Apr-2019
1529,Revenue,CAHD,CSC - Agency Fostering,Foster Parent Allowances,Five Rivers Child Care Limited,3447.82, 15-Apr-2019
1530,Revenue,CAHD,CSC - Agency Fostering,Foster Parent Allowances,Five Rivers Child Care Limited,2106.00, 18-Apr-2019
1531,Revenue,CAHD,CSC - Agency Fostering,Foster Parent Allowances,Foster Care Associates Limited,3998.40, 24-Apr-2019
1532,Revenue,CAHD,CSC - Asylum Seekers - Unaccompanied,Foster Parent Allowances,Foster Care Associates Limited,2328.60, 24-Apr-2019
1533,Revenue,CAHD,CSC - Asylum Seekers - Unaccompanied,Foster Parent Allowances,Foster Care Associates Limited,1318.20, 23-Apr-2019
1534,Revenue,CAHD,CSC - Fostering Carer Support,Membership Fees,Fostering Network,2626.74, 18-Apr-2019
1535,Revenue,CAHD,Homecare - Central,Other Small Contracts,Fourways Care Limited,317.52, 12-Apr-2019
1536,Revenue,CAHD,Home Care - Elderly - South,Other Small Contracts,Fourways Care Limited,1036.98, 12-Apr-2019
1537,Revenue,CAHD,Home Care - Elderly - North,Other Small Contracts,Fourways Care Limited,9368.82, 12-Apr-2019
1538,Revenue,CAHD,Homecare - Central,Other Small Contracts,Fourways Care Limited,317.52, 12-Apr-2019
1539,Revenue,CAHD,Home Care - Elderly - South,Other Small Contracts,Fourways Care Limited,1136.22, 12-Apr-2019
1540,Revenue,CAHD,Home Care - Elderly - North,Other Small Contracts,Fourways Care Limited,9434.52, 12-Apr-2019
1541,Revenue,CAHD,Homecare - Central,Other Small Contracts,Fourways Care Limited,317.52, 16-Apr-2019
1542,Revenue,CAHD,Home Care - Elderly - South,Other Small Contracts,Fourways Care Limited,1183.02, 16-Apr-2019
1543,Revenue,CAHD,Home Care - Elderly - North,Other Small Contracts,Fourways Care Limited,9014.04, 16-Apr-2019
1544,Revenue,CAHD,Homecare - Central,Other Small Contracts,Fourways Care Limited,324.00, 24-Apr-2019
1545,Revenue,CAHD,Home Care - Elderly - South,Other Small Contracts,Fourways Care Limited,1115.36, 24-Apr-2019
1546,Revenue,CAHD,Home Care - Elderly - North,Other Small Contracts,Fourways Care Limited,9789.28, 24-Apr-2019
1547,Revenue,CAHD,Supporting People Programme,Grants to Voluntary Bodies,Freeways Trust Limited,5362.00, 05-Apr-2019
1548,Revenue,CAHD,Freeways,Permanent Residential,Freeways Trust Limited,3748.60, 09-Apr-2019
1549,Revenue,CAHD,Freeways,Permanent Residential,Freeways Trust Limited,2410.80, 09-Apr-2019
1550,Revenue,CAHD,Freeways,Permanent Residential,Freeways Trust Limited,2410.80, 09-Apr-2019
1551,Revenue,CAHD,Freeways,Permanent Residential,Freeways Trust Limited,3507.76, 09-Apr-2019
1552,Revenue,CAHD,Freeways,Permanent Residential,Freeways Trust Limited,2410.80, 09-Apr-2019
1553,Revenue,CAHD,Freeways,Permanent Residential,Freeways Trust Limited,3553.44, 09-Apr-2019
1554,Revenue,CAHD,Freeways,Permanent Residential,Freeways Trust Limited,2674.68, 09-Apr-2019
1555,Revenue,CAHD,Freeways,Permanent Residential,Freeways Trust Limited,3719.68, 09-Apr-2019
1556,Revenue,CAHD,Freeways,Permanent Residential,Freeways Trust Limited,2267.40, 09-Apr-2019
1557,Revenue,CAHD,Freeways,Permanent Residential,Freeways Trust Limited,2847.12, 09-Apr-2019
1558,Revenue,CAHD,Freeways,Permanent Residential,Freeways Trust Limited,2819.80, 09-Apr-2019
1559,Revenue,CAHD,Freeways,Permanent Residential,Freeways Trust Limited,3183.32, 09-Apr-2019
1560,Revenue,CAHD,Freeways,Permanent Residential,Freeways Trust Limited,2410.80, 09-Apr-2019
1561,Revenue,CAHD,Freeways,Respite Planned - Residential,Freeways Trust Limited,824.53, 09-Apr-2019
1562,Revenue,CAHD,Freeways,Respite Planned - Residential,Freeways Trust Limited,824.53, 09-Apr-2019
1563,Revenue,CAHD,Freeways,Respite Planned - Residential,Freeways Trust Limited,1374.21, 09-Apr-2019
1564,Revenue,CAHD,Freeways,Respite Planned - Residential,Freeways Trust Limited,1190.99, 09-Apr-2019
1565,Revenue,CAHD,Freeways,Respite Planned - Residential,Freeways Trust Limited,2565.20, 09-Apr-2019
1566,Revenue,CAHD,Home Care - Elderly - South,Day Care / Social Activities,Freeways Trust Limited,1005.80, 17-Apr-2019
1567,Revenue,CAHD,Home Care - Elderly - South,Day Care / Social Activities,Freeways Trust Limited,1081.00, 17-Apr-2019
1568,Revenue,CAHD,Home Care - Elderly - North,Other Small Contracts,Freeways Trust Limited,827.20, 17-Apr-2019
1569,Revenue,CAHD,Bed purchasing - S28A Under 65 - South,Permanent Residential,Freeways Trust Ltd,1943.32, 09-Apr-2019
1570,Revenue,CAHD,Bed purchasing - S28A Under 65 - South,Permanent Residential,Freeways Trust Ltd,1897.78, 09-Apr-2019
1571,Revenue,CAHD,Bed Purchasing - North,Permanent Residential,Freeways Trust Ltd,1881.70, 09-Apr-2019
1572,Revenue,CAHD,Bed Purchasing - North,Permanent Residential,Freeways Trust Ltd,1837.60, 09-Apr-2019
1573,Revenue,CAHD,Bed Purchasing - South,Permanent Residential,Freeways Trust Ltd,1995.70, 09-Apr-2019
1574,Revenue,CAHD,Bed Purchasing - South,Permanent Residential,Freeways Trust Ltd,1948.92, 09-Apr-2019
1575,Revenue,CAHD,Bed Purchasing - North,Permanent Residential,Freeways Trust Ltd,1506.92, 09-Apr-2019
1576,Revenue,CAHD,Bed Purchasing - North,Permanent Residential,Freeways Trust Ltd,1471.60, 09-Apr-2019
1577,Revenue,CAHD,Bed Purchasing - South,Permanent Residential,Freeways Trust Ltd,1587.96, 09-Apr-2019
1578,Revenue,CAHD,Bed Purchasing - South,Permanent Residential,Freeways Trust Ltd,1550.74, 09-Apr-2019
1579,Revenue,CAHD,Bed Purchasing - North,Permanent Residential,Freeways Trust Ltd,1664.30, 09-Apr-2019
1580,Revenue,CAHD,Bed Purchasing - North,Permanent Residential,Freeways Trust Ltd,1625.30, 09-Apr-2019
1581,Revenue,CAHD,Bed Purchasing - North,Permanent Residential,Freeways Trust Ltd,1992.06, 09-Apr-2019
1582,Revenue,CAHD,Bed Purchasing - North,Permanent Residential,Freeways Trust Ltd,1945.38, 09-Apr-2019
1583,Revenue,CAHD,18-25 Year Olds,Permanent Residential,Freeways Trust Ltd,1840.24, 09-Apr-2019
1584,Revenue,CAHD,18-25 Year Olds,Permanent Residential,Freeways Trust Ltd,1797.10, 09-Apr-2019
1585,Revenue,CAHD,Section 117 Placements MH Younger,Permanent Residential,Freeways Trust Ltd,1669.52, 09-Apr-2019
1586,Revenue,CAHD,Section 117 Placements MH Younger,Permanent Residential,Freeways Trust Ltd,1630.40, 09-Apr-2019
1587,Revenue,CAHD,Homecare - Central,Day Care / Social Activities,Frenchay Beckspool Building,925.68, 09-Apr-2019
1588,Revenue,CAHD,Homecare - Central,Day Care / Social Activities,Frenchay Beckspool Building,947.80, 09-Apr-2019
1589,Revenue,CAHD,Pathway 3 - (Complex Beds),Permanent Nursing,Frenchay House,3264.00, 09-Apr-2019
1590,Revenue,CAHD,Bed Purchasing - Southmead Hospital,Permanent Nursing,Frenchay Park Nursing Home,1740.80, 09-Apr-2019
1591,Revenue,CAHD,Bed Purchasing - Southmead Hospital,Permanent Nursing,Frenchay Park Nursing Home,1700.00, 09-Apr-2019
1592,Revenue,CAHD,Bed Purchasing - South,Permanent Nursing,Frenchay Park Nursing Home,2914.29, 09-Apr-2019
1593,Revenue,CAHD,Bed Purchasing - North,Permanent Nursing,Frenchay Park Nursing Home,1740.80, 09-Apr-2019
1594,Revenue,CAHD,Bed Purchasing - South,Permanent Nursing,Frenchay Park Nursing Home,1700.00, 09-Apr-2019
1595,Revenue,CAHD,Bed Purchasing - North,Permanent Nursing,Frenchay Park Nursing Home,1740.80, 09-Apr-2019
1596,Revenue,CAHD,Bed Purchasing - North,Permanent Nursing,Frenchay Park Nursing Home,1700.00, 09-Apr-2019
1597,Revenue,CAHD,Bed Purchasing - North,Permanent Nursing,Frenchay Park Nursing Home,1669.52, 09-Apr-2019
1598,Revenue,CAHD,Bed Purchasing - North,Permanent Nursing,Frenchay Park Nursing Home,1630.40, 09-Apr-2019
1599,Revenue,CAHD,Drug and Alcohol Programme,Other Small Contracts,Frome Valley Medical Centre,913.50, 30-Apr-2019
1600,Revenue,CAHD,CSC - Social Work Team - NORTH,Agency Staff (Admin/Support Staff) Pay,Frontline Staffing Ltd,1731.23, 05-Apr-2019
1601,Revenue,CAHD,CSC - Social Work Team - CENTRAL,Agency Staff (Admin/Support Staff) Pay,Frontline Staffing Ltd,1731.23, 05-Apr-2019
1602,Revenue,CAHD,CSC - Social Work Team - CENTRAL,Agency Staff (Admin/Support Staff) Pay,Frontline Staffing Ltd,1731.23, 05-Apr-2019
1603,Revenue,CAHD,CSC - Social Work Team - SOUTH,Agency Staff (Admin/Support Staff) Pay,Frontline Staffing Ltd,1871.60, 05-Apr-2019
1604,Revenue,CAHD,CSC - Through & Leaving Care Team,Agency Staff (Admin/Support Staff) Pay,Frontline Staffing Ltd,1731.23, 05-Apr-2019
1605,Revenue,CAHD,CSC - Through & Leaving Care Team,Agency Staff (Admin/Support Staff) Pay,Frontline Staffing Ltd,935.80, 08-Apr-2019
1606,Revenue,CAHD,CSC - Social Work Team - NORTH,Agency Staff (Admin/Support Staff) Pay,Frontline Staffing Ltd,1871.60, 09-Apr-2019
1607,Revenue,CAHD,CSC - Social Work Team - NORTH,Agency Staff (Admin/Support Staff) Pay,Frontline Staffing Ltd,1871.60, 09-Apr-2019
1608,Revenue,CAHD,CSC - Social Work Team - CENTRAL,Agency Staff (Admin/Support Staff) Pay,Frontline Staffing Ltd,1754.63, 09-Apr-2019
1609,Revenue,CAHD,CSC - Social Work Team - CENTRAL,Agency Staff (Admin/Support Staff) Pay,Frontline Staffing Ltd,1239.94, 09-Apr-2019
1610,Revenue,CAHD,CSC - Social Work Team - SOUTH,Agency Staff (Admin/Support Staff) Pay,Frontline Staffing Ltd,1871.60, 17-Apr-2019
1611,Revenue,CAHD,CSC - Social Work Team - SOUTH,Agency Staff (Admin/Support Staff) Pay,Frontline Staffing Ltd,1871.60, 17-Apr-2019
1612,Revenue,CAHD,CSC - Social Work Team - SOUTH,Agency Staff (Admin/Support Staff) Pay,Frontline Staffing Ltd,1871.60, 17-Apr-2019
1613,Revenue,CAHD,CSC - Social Work Team - NORTH,Agency Staff (Admin/Support Staff) Pay,Frontline Staffing Ltd,1731.23, 17-Apr-2019
1614,Revenue,CAHD,CSC - Social Work Team - CENTRAL,Agency Staff (Admin/Support Staff) Pay,Frontline Staffing Ltd,1403.70, 17-Apr-2019
1615,Revenue,CAHD,CSC - Through & Leaving Care Team,Agency Staff (Admin/Support Staff) Pay,Frontline Staffing Ltd,1778.02, 15-Apr-2019
1616,Revenue,CAHD,CSC - Social Work Team - CENTRAL,Agency Staff (Admin/Support Staff) Pay,Frontline Staffing Ltd,1731.23, 17-Apr-2019
1617,Revenue,CAHD,CSC - Social Work Team - SOUTH,Agency Staff (Admin/Support Staff) Pay,Frontline Staffing Ltd,1497.28, 17-Apr-2019
1618,Revenue,CAHD,CSC - Social Work Team - NORTH,Agency Staff (Admin/Support Staff) Pay,Frontline Staffing Ltd,1871.60, 17-Apr-2019
1619,Revenue,CAHD,CSC - Social Work Team - SOUTH,Agency Staff (Admin/Support Staff) Pay,Frontline Staffing Ltd,1871.60, 18-Apr-2019
1620,Revenue,CAHD,CSC - Social Work Team - NORTH,Agency Staff (Admin/Support Staff) Pay,Frontline Staffing Ltd,1871.60, 23-Apr-2019
1621,Revenue,CAHD,CSC - Social Work Team - CENTRAL,Agency Staff (Admin/Support Staff) Pay,Frontline Staffing Ltd,1871.60, 23-Apr-2019
1622,Revenue,CAHD,CSC - Through & Leaving Care Team,Agency Staff (Admin/Support Staff) Pay,Frontline Staffing Ltd,1731.23, 23-Apr-2019
1623,Revenue,CAHD,CSC - Social Work Team - CENTRAL,Agency Staff (Admin/Support Staff) Pay,Frontline Staffing Ltd,1473.89, 23-Apr-2019
1624,Revenue,CAHD,CSC - Social Work Team - SOUTH,Agency Staff (Admin/Support Staff) Pay,Frontline Staffing Ltd,1871.60, 24-Apr-2019
1625,Revenue,CAHD,CSC - Social Work Team - NORTH,Agency Staff (Admin/Support Staff) Pay,Frontline Staffing Ltd,1333.52, 25-Apr-2019
1626,Revenue,CAHD,CSC - Social Work Team - NORTH,Agency Staff (Admin/Support Staff) Pay,Frontline Staffing Ltd,1731.23, 25-Apr-2019
1627,Revenue,CAHD,CSC - Social Work Team - NORTH,Agency Staff (Admin/Support Staff) Pay,Frontline Staffing Ltd,830.52, 30-Apr-2019
1628,Revenue,CAHD,South Glos Users in South Glos Homes,Permanent Nursing,Fshc  1St Floor,632.64, 09-Apr-2019
1629,Revenue,CAHD,Bed Purchasing - South,Permanent Nursing,Fshc  1St Floor,1367.54, 09-Apr-2019
1630,Revenue,CAHD,Bed Purchasing - South,Permanent Nursing,Fshc  1St Floor,1335.48, 09-Apr-2019
1631,Revenue,CAHD,Bed Purchasing - South,Permanent Nursing,Fshc  1St Floor,1199.00, 09-Apr-2019
1632,Revenue,CAHD,Bed Purchasing - South,Permanent Nursing,Fshc  1St Floor,1162.32, 09-Apr-2019
1633,Revenue,CAHD,Bed Purchasing - South,Permanent Nursing,Fshc  1St Floor,1199.00, 09-Apr-2019
1634,Revenue,CAHD,Bed Purchasing - South,Permanent Nursing,Fshc  1St Floor,1155.22, 09-Apr-2019
1635,Revenue,CAHD,South Glos Users in South Glos Homes,Permanent Nursing,Fshc  1St Floor,632.64, 09-Apr-2019
1636,Revenue,CAHD,Bed Purchasing - Southmead Hospital,Permanent Nursing,Fshc  1St Floor,1199.00, 09-Apr-2019
1637,Revenue,CAHD,Bed Purchasing - Southmead Hospital,Permanent Nursing,Fshc  1St Floor,1155.22, 09-Apr-2019
1638,Revenue,CAHD,South Glos Users in South Glos Homes,Permanent Nursing,Fshc  1St Floor,632.64, 09-Apr-2019
1639,Revenue,CAHD,Bed Purchasing - South,Permanent Residential,Fshc  1St Floor,1231.28, 09-Apr-2019
1640,Revenue,CAHD,Bed Purchasing - South,Permanent Residential,Fshc  1St Floor,1202.42, 09-Apr-2019
1641,Revenue,CAHD,Bed Purchasing - South,Permanent Nursing,Fshc  1St Floor,1310.72, 09-Apr-2019
1642,Revenue,CAHD,Bed Purchasing - South,Permanent Nursing,Fshc  1St Floor,1280.00, 09-Apr-2019
1643,Revenue,CAHD,South Glos Users in South Glos Homes,Permanent Nursing,Fshc  1St Floor,632.64, 09-Apr-2019
1644,Revenue,CAHD,South Glos Users in South Glos Homes,Permanent Nursing,Fshc  1St Floor,632.64, 09-Apr-2019
1645,Revenue,CAHD,Bed Purchasing - North,Permanent Nursing,Fshc  1St Floor,1445.88, 09-Apr-2019
1646,Revenue,CAHD,Bed Purchasing - North,Permanent Nursing,Fshc  1St Floor,1412.00, 09-Apr-2019
1647,Revenue,CAHD,South Glos Users in South Glos Homes,Permanent Nursing,Fshc  1St Floor,632.64, 09-Apr-2019
1648,Revenue,CAHD,Bed Purchasing - Southmead Hospital,Permanent Nursing,Fshc  1St Floor,1600.00, 09-Apr-2019
1649,Revenue,CAHD,South Glos Users in South Glos Homes,Permanent Nursing,Fshc  1St Floor,632.64, 09-Apr-2019
1650,Revenue,CAHD,Bed Purchasing - South,Permanent Nursing,Fshc  1St Floor,1331.20, 09-Apr-2019
1651,Revenue,CAHD,Bed Purchasing - South,Permanent Nursing,Fshc  1St Floor,1300.00, 09-Apr-2019
1652,Revenue,CAHD,South Glos Users in South Glos Homes,Permanent Nursing,Fshc  1St Floor,632.64, 09-Apr-2019
1653,Revenue,CAHD,South Glos Users in South Glos Homes,Permanent Nursing,Fshc  1St Floor,632.64, 09-Apr-2019
1654,Revenue,CAHD,Bed Purchasing - Southmead Hospital,Respite Planned - Nursing,Fshc  1St Floor,1764.29, 09-Apr-2019
1655,Revenue,CAHD,South Glos Users in South Glos Homes,Permanent Nursing,Fshc  1St Floor,632.64, 09-Apr-2019
1656,Revenue,CAHD,Bed Purchasing - South,Permanent Nursing,Fshc  1St Floor,1445.88, 09-Apr-2019
1657,Revenue,CAHD,Bed Purchasing - South,Permanent Nursing,Fshc  1St Floor,1412.00, 09-Apr-2019
1658,Revenue,CAHD,Bed Purchasing - South,Permanent Nursing,Fshc  1St Floor,1310.72, 09-Apr-2019
1659,Revenue,CAHD,Bed Purchasing - South,Permanent Nursing,Fshc  1St Floor,1280.00, 09-Apr-2019
1660,Revenue,CAHD,South Glos Users in South Glos Homes,Permanent Nursing,Fshc  1St Floor,632.64, 09-Apr-2019
1661,Revenue,CAHD,South Glos Users in South Glos Homes,Permanent Nursing,Fshc  1St Floor,632.64, 09-Apr-2019
1662,Revenue,CAHD,Bed Purchasing - South,Permanent Residential,Fshc  1St Floor,1601.52, 09-Apr-2019
1663,Revenue,CAHD,Bed Purchasing - South,Permanent Residential,Fshc  1St Floor,1117.14, 09-Apr-2019
1664,Revenue,CAHD,South Glos Users in South Glos Homes,Permanent Nursing,Fshc  1St Floor,632.64, 09-Apr-2019
1665,Revenue,CAHD,South Glos Users in South Glos Homes,Permanent Nursing,Fshc  1St Floor,632.64, 09-Apr-2019
1666,Revenue,CAHD,South Glos Users in South Glos Homes,Permanent Nursing,Fshc  1St Floor,632.64, 09-Apr-2019
1667,Revenue,CAHD,Bed Purchasing - South,Permanent Nursing,Fshc  1St Floor,1433.60, 09-Apr-2019
1668,Revenue,CAHD,Bed Purchasing - South,Permanent Nursing,Fshc  1St Floor,1400.00, 09-Apr-2019
1669,Revenue,CAHD,Bed Purchasing - South,Respite Planned - Nursing,Fshc  1St Floor,1900.00, 09-Apr-2019
1670,Revenue,CAHD,Bed Purchasing - South,Permanent Nursing,Fshc  1St Floor,1199.00, 09-Apr-2019
1671,Revenue,CAHD,Bed Purchasing - South,Permanent Nursing,Fshc  1St Floor,1162.32, 09-Apr-2019
1672,Revenue,CAHD,South Glos Users in South Glos Homes,Permanent Nursing,Fshc  1St Floor,632.64, 09-Apr-2019
1673,Revenue,CAHD,Bed Purchasing - South,Permanent Nursing,Fshc  1St Floor,1231.28, 09-Apr-2019
1674,Revenue,CAHD,Bed Purchasing - South,Permanent Nursing,Fshc  1St Floor,1202.42, 09-Apr-2019
1675,Revenue,CAHD,South Glos Users in South Glos Homes,Permanent Nursing,Fshc  1St Floor,632.64, 09-Apr-2019
1676,Revenue,CAHD,Bed Purchasing - South,Permanent Nursing,Fshc  1St Floor,1199.00, 09-Apr-2019
1677,Revenue,CAHD,Bed Purchasing - South,Permanent Nursing,Fshc  1St Floor,1155.22, 09-Apr-2019
1678,Revenue,CAHD,South Glos Users in South Glos Homes,Permanent Nursing,Fshc  1St Floor,632.64, 09-Apr-2019
1679,Revenue,CAHD,Bed Purchasing - South,Permanent Nursing,Fshc  1St Floor,1199.00, 09-Apr-2019
1680,Revenue,CAHD,Bed Purchasing - South,Permanent Nursing,Fshc  1St Floor,1155.22, 09-Apr-2019
1681,Revenue,CAHD,South Glos Users in South Glos Homes,Permanent Nursing,Fshc  1St Floor,632.64, 09-Apr-2019
1682,Revenue,CAHD,Bed Purchasing - South,Permanent Nursing,Fshc  1St Floor,1182.94, 09-Apr-2019
1683,Revenue,CAHD,Bed Purchasing - South,Permanent Nursing,Fshc  1St Floor,1155.22, 09-Apr-2019
1684,Revenue,CAHD,South Glos Users in South Glos Homes,Permanent Nursing,Fshc  1St Floor,632.64, 09-Apr-2019
1685,Revenue,CAHD,Bed Purchasing - South,Permanent Nursing,Fshc  1St Floor,1572.86, 09-Apr-2019
1686,Revenue,CAHD,Bed Purchasing - South,Permanent Nursing,Fshc  1St Floor,1536.00, 09-Apr-2019
1687,Revenue,CAHD,South Glos Users in South Glos Homes,Permanent Nursing,Fshc  1St Floor,632.64, 09-Apr-2019
1688,Revenue,CAHD,Bed Purchasing - South,Permanent Nursing,Fshc  1St Floor,1199.00, 09-Apr-2019
1689,Revenue,CAHD,Bed Purchasing - South,Permanent Nursing,Fshc  1St Floor,1162.32, 09-Apr-2019
1690,Revenue,CAHD,South Glos Users in South Glos Homes,Permanent Nursing,Fshc  1St Floor,632.64, 09-Apr-2019
1691,Revenue,CAHD,South Glos Users in South Glos Homes,Permanent Nursing,Fshc  1St Floor,632.64, 09-Apr-2019
1692,Revenue,CAHD,Bed Purchasing - South,Permanent Nursing,Fshc  1St Floor,1252.14, 09-Apr-2019
1693,Revenue,CAHD,Bed Purchasing - South,Permanent Nursing,Fshc  1St Floor,1222.80, 09-Apr-2019
1694,Revenue,CAHD,Bed Purchasing - South,Permanent Nursing,Fshc  1St Floor,1586.06, 09-Apr-2019
1695,Revenue,CAHD,Bed Purchasing - South,Permanent Nursing,Fshc  1St Floor,1548.88, 09-Apr-2019
1696,Revenue,CAHD,South Glos Users in South Glos Homes,Permanent Nursing,Fshc  1St Floor,632.64, 09-Apr-2019
1697,Revenue,CAHD,Bed Purchasing - Central,Respite Emergency - Residential,Fshc  1St Floor,1945.60, 09-Apr-2019
1698,Revenue,CAHD,Bed Purchasing - Central,Respite Emergency - Residential,Fshc  1St Floor,1900.00, 09-Apr-2019
1699,Revenue,CAHD,South Glos Users in South Glos Homes,Permanent Nursing,Fshc  1St Floor,632.64, 09-Apr-2019
1700,Revenue,CAHD,Bed Purchasing - South,Permanent Nursing,Fshc  1St Floor,1231.28, 09-Apr-2019
1701,Revenue,CAHD,Bed Purchasing - South,Permanent Nursing,Fshc  1St Floor,1202.42, 09-Apr-2019
1702,Revenue,CAHD,Bed Purchasing - South,Permanent Nursing,Fshc  1St Floor,1466.50, 09-Apr-2019
1703,Revenue,CAHD,Bed Purchasing - South,Permanent Nursing,Fshc  1St Floor,1432.12, 09-Apr-2019
1704,Revenue,CAHD,Bed Purchasing - North,Permanent Residential,Fshc  1St Floor,1445.88, 09-Apr-2019
1705,Revenue,CAHD,Bed Purchasing - North,Permanent Residential,Fshc  1St Floor,1412.00, 09-Apr-2019
1706,Revenue,CAHD,South Glos Users in South Glos Homes,Permanent Nursing,Fshc  1St Floor,632.64, 09-Apr-2019
1707,Revenue,CAHD,Bed Purchasing - Central,Respite Planned - Nursing,Fshc  1St Floor,1155.60, 09-Apr-2019
1708,Revenue,CAHD,Bed Purchasing - Central,Permanent Nursing,Fshc  1St Floor,1199.00, 09-Apr-2019
1709,Revenue,CAHD,Bed Purchasing - Central,Permanent Nursing,Fshc  1St Floor,1155.22, 09-Apr-2019
1710,Revenue,CAHD,South Glos Users in South Glos Homes,Permanent Nursing,Fshc  1St Floor,632.64, 09-Apr-2019
1711,Revenue,CAHD,South Glos Users in South Glos Homes,Permanent Nursing,Fshc  1St Floor,632.64, 09-Apr-2019
1712,Revenue,CAHD,Bed Purchasing - Central,Permanent Nursing,Fshc  1St Floor,1199.00, 09-Apr-2019
1713,Revenue,CAHD,Bed Purchasing - Central,Permanent Nursing,Fshc  1St Floor,1169.82, 09-Apr-2019
1714,Revenue,CAHD,Bed Purchasing - Central,Permanent Nursing,Fshc  1St Floor,1199.00, 09-Apr-2019
1715,Revenue,CAHD,Bed Purchasing - Central,Permanent Nursing,Fshc  1St Floor,1169.82, 09-Apr-2019
1716,Revenue,CAHD,South Glos Users in South Glos Homes,Permanent Nursing,Fshc  1St Floor,632.64, 09-Apr-2019
1717,Revenue,CAHD,South Glos Users in South Glos Homes,Permanent Nursing,Fshc  1St Floor,632.64, 09-Apr-2019
1718,Revenue,CAHD,Bed Purchasing - Central,Permanent Residential,Fshc  1St Floor,1382.40, 09-Apr-2019
1719,Revenue,CAHD,Bed Purchasing - Central,Permanent Residential,Fshc  1St Floor,1350.00, 09-Apr-2019
1720,Revenue,CAHD,Bed Purchasing - Central,Permanent Residential,Fshc  1St Floor,1382.40, 09-Apr-2019
1721,Revenue,CAHD,Bed Purchasing - Central,Permanent Residential,Fshc  1St Floor,1350.00, 09-Apr-2019
1722,Revenue,CAHD,Bed Purchasing - Central,Permanent Residential,Fshc  1St Floor,1115.16, 09-Apr-2019
1723,Revenue,CAHD,Bed Purchasing - Central,Permanent Residential,Fshc  1St Floor,1074.34, 09-Apr-2019
1724,Revenue,CAHD,South Glos Users in South Glos Homes,Permanent Nursing,Fshc  1St Floor,632.64, 09-Apr-2019
1725,Revenue,CAHD,South Glos Users in South Glos Homes,Permanent Nursing,Fshc  1St Floor,632.64, 09-Apr-2019
1726,Revenue,CAHD,Bed Purchasing - Central,Permanent Nursing,Fshc  1St Floor,1701.43, 09-Apr-2019
1727,Revenue,CAHD,Bed Purchasing - Central,Permanent Nursing,Fshc  1St Floor,1219.58, 09-Apr-2019
1728,Revenue,CAHD,Bed Purchasing - Central,Permanent Nursing,Fshc  1St Floor,1191.00, 09-Apr-2019
1729,Revenue,CAHD,Bed Purchasing - North,Fees & Charges Income - General,Fshc  1St Floor,566.31, 09-Apr-2019
1730,Revenue,CAHD,Bed Purchasing - South,Permanent Residential,Fshc  1St Floor,1408.68, 09-Apr-2019
1731,Revenue,CAHD,Bed Purchasing - South,Permanent Residential,Fshc  1St Floor,1375.66, 09-Apr-2019
1732,Revenue,CAHD,Bed Purchasing - North,Permanent Nursing,Fshc  1St Floor,1199.00, 09-Apr-2019
1733,Revenue,CAHD,Bed Purchasing - North,Permanent Nursing,Fshc  1St Floor,1169.82, 09-Apr-2019
1734,Revenue,CAHD,South Glos Users in South Glos Homes,Permanent Nursing,Fshc  1St Floor,632.64, 09-Apr-2019
1735,Revenue,CAHD,Bed Purchasing - Central,Permanent Nursing,Fshc  1St Floor,1199.00, 09-Apr-2019
1736,Revenue,CAHD,Bed Purchasing - Central,Permanent Nursing,Fshc  1St Floor,1155.60, 09-Apr-2019
1737,Revenue,CAHD,South Glos Users in South Glos Homes,Permanent Nursing,Fshc  1St Floor,632.64, 09-Apr-2019
1738,Revenue,CAHD,Bed Purchasing - Central,Permanent Nursing,Fshc  1St Floor,1199.00, 09-Apr-2019
1739,Revenue,CAHD,Bed Purchasing - Central,Permanent Nursing,Fshc  1St Floor,1155.22, 09-Apr-2019
1740,Revenue,CAHD,South Glos Users in South Glos Homes,Permanent Nursing,Fshc  1St Floor,632.64, 09-Apr-2019
1741,Revenue,CAHD,Bed Purchasing - North,Permanent Nursing,Fshc  1St Floor,1199.00, 09-Apr-2019
1742,Revenue,CAHD,Bed Purchasing - North,Permanent Nursing,Fshc  1St Floor,1155.22, 09-Apr-2019
1743,Revenue,CAHD,South Glos Users in South Glos Homes,Permanent Nursing,Fshc  1St Floor,632.64, 09-Apr-2019
1744,Revenue,CAHD,South Glos Users in South Glos Homes,Permanent Nursing,Fshc  1St Floor,632.64, 09-Apr-2019
1745,Revenue,CAHD,Bed Purchasing - Central,Permanent Residential,Fshc  1St Floor,1382.40, 09-Apr-2019
1746,Revenue,CAHD,Bed Purchasing - Central,Permanent Residential,Fshc  1St Floor,1350.00, 09-Apr-2019
1747,Revenue,CAHD,Bed Purchasing - North,Permanent Nursing,Fshc  1St Floor,1199.00, 09-Apr-2019
1748,Revenue,CAHD,Bed Purchasing - North,Permanent Nursing,Fshc  1St Floor,1169.82, 09-Apr-2019
1749,Revenue,CAHD,Bed Purchasing - North,Permanent Nursing,Fshc  1St Floor,1199.00, 09-Apr-2019
1750,Revenue,CAHD,Bed Purchasing - North,Permanent Nursing,Fshc  1St Floor,1169.82, 09-Apr-2019
1751,Revenue,CAHD,South Glos Users in South Glos Homes,Permanent Nursing,Fshc  1St Floor,632.64, 09-Apr-2019
1752,Revenue,CAHD,Bed Purchasing - North,Permanent Nursing,Fshc  1St Floor,1199.00, 09-Apr-2019
1753,Revenue,CAHD,Bed Purchasing - North,Permanent Nursing,Fshc  1St Floor,1155.22, 09-Apr-2019
1754,Revenue,CAHD,South Glos Users in South Glos Homes,Permanent Nursing,Fshc  1St Floor,632.64, 09-Apr-2019
1755,Revenue,CAHD,South Glos Users in South Glos Homes,Permanent Nursing,Fshc  1St Floor,632.64, 09-Apr-2019
1756,Revenue,CAHD,South Glos Users in South Glos Homes,Permanent Nursing,Fshc  1St Floor,632.64, 09-Apr-2019
1757,Revenue,CAHD,Bed Purchasing - North,Permanent Nursing,Fshc  1St Floor,1219.58, 09-Apr-2019
1758,Revenue,CAHD,Bed Purchasing - North,Permanent Nursing,Fshc  1St Floor,1191.00, 09-Apr-2019
1759,Revenue,CAHD,South Glos Users in South Glos Homes,Permanent Nursing,Fshc  1St Floor,632.64, 09-Apr-2019
1760,Revenue,CAHD,South Glos Users in South Glos Homes,Permanent Nursing,Fshc  1St Floor,632.64, 09-Apr-2019
1761,Revenue,CAHD,Bed Purchasing - North,Permanent Residential,Fshc  1St Floor,1219.58, 09-Apr-2019
1762,Revenue,CAHD,Bed Purchasing - North,Permanent Residential,Fshc  1St Floor,1191.00, 09-Apr-2019
1763,Revenue,CAHD,South Glos Users in South Glos Homes,Permanent Nursing,Fshc  1St Floor,632.64, 09-Apr-2019
1764,Revenue,CAHD,South Glos Users in South Glos Homes,Permanent Nursing,Fshc  1St Floor,632.64, 09-Apr-2019
1765,Revenue,CAHD,South Glos Users in South Glos Homes,Permanent Nursing,Fshc  1St Floor,632.64, 09-Apr-2019
1766,Revenue,CAHD,Bed Purchasing - Central,Permanent Nursing,Fshc  1St Floor,1199.00, 09-Apr-2019
1767,Revenue,CAHD,Bed Purchasing - Central,Permanent Nursing,Fshc  1St Floor,1155.22, 09-Apr-2019
1768,Revenue,CAHD,South Glos Users in South Glos Homes,Permanent Nursing,Fshc  1St Floor,632.64, 09-Apr-2019
1769,Revenue,CAHD,South Glos Users in South Glos Homes,Permanent Nursing,Fshc  1St Floor,632.64, 09-Apr-2019
1770,Revenue,CAHD,Bed Purchasing - North,Permanent Nursing,Fshc  1St Floor,1199.00, 09-Apr-2019
1771,Revenue,CAHD,Bed Purchasing - North,Permanent Nursing,Fshc  1St Floor,1155.22, 09-Apr-2019
1772,Revenue,CAHD,South Glos Users in South Glos Homes,Permanent Nursing,Fshc  1St Floor,632.64, 09-Apr-2019
1773,Revenue,CAHD,South Glos Users in South Glos Homes,Permanent Nursing,Fshc  1St Floor,632.64, 09-Apr-2019
1774,Revenue,CAHD,Bed Purchasing - Elderly S117- North,Permanent Nursing,Fshc  1St Floor,1235.22, 09-Apr-2019
1775,Revenue,CAHD,Bed Purchasing - Elderly S117- North,Permanent Nursing,Fshc  1St Floor,1190.00, 09-Apr-2019
1776,Revenue,CAHD,South Glos Users in South Glos Homes,Permanent Nursing,Fshc  1St Floor,632.64, 09-Apr-2019
1777,Revenue,CAHD,South Glos Users in South Glos Homes,Permanent Nursing,Fshc  1St Floor,632.64, 09-Apr-2019
1778,Revenue,CAHD,Bed Purchasing - Central,Respite Planned - Residential,Fshc  1St Floor,1779.43, 09-Apr-2019
1779,Revenue,CAHD,Bed Purchasing - Central,Respite Planned - Residential,Fshc  1St Floor,988.57, 09-Apr-2019
1780,Revenue,CAHD,South Glos Users in South Glos Homes,Permanent Nursing,Fshc  1St Floor,632.64, 09-Apr-2019
1781,Revenue,CAHD,Bed Purchasing - Central,Permanent Nursing,Fshc  1St Floor,1199.00, 09-Apr-2019
1782,Revenue,CAHD,Bed Purchasing - Central,Permanent Nursing,Fshc  1St Floor,1155.60, 09-Apr-2019
1783,Revenue,CAHD,South Glos Users in South Glos Homes,Permanent Nursing,Fshc  1St Floor,632.64, 09-Apr-2019
1784,Revenue,CAHD,Bed Purchasing - Central,Permanent Nursing,Fshc  1St Floor,1199.00, 09-Apr-2019
1785,Revenue,CAHD,Bed Purchasing - Central,Permanent Nursing,Fshc  1St Floor,1155.60, 09-Apr-2019
1786,Revenue,CAHD,South Glos Users in South Glos Homes,Permanent Nursing,Fshc  1St Floor,632.64, 09-Apr-2019
1787,Revenue,CAHD,Bed Purchasing - North,Permanent Nursing,Fshc  1St Floor,1218.56, 09-Apr-2019
1788,Revenue,CAHD,Bed Purchasing - North,Permanent Nursing,Fshc  1St Floor,1190.00, 09-Apr-2019
1789,Revenue,CAHD,South Glos Users in South Glos Homes,Permanent Nursing,Fshc  1St Floor,632.64, 09-Apr-2019
1790,Revenue,CAHD,Bed Purchasing - Central,Permanent Nursing,Fshc  1St Floor,1183.34, 09-Apr-2019
1791,Revenue,CAHD,Bed Purchasing - Central,Permanent Nursing,Fshc  1St Floor,1155.60, 09-Apr-2019
1792,Revenue,CAHD,Bed Purchasing - Southmead Hospital,Permanent Nursing,Fshc  1St Floor,3384.26, 09-Apr-2019
1793,Revenue,CAHD,Bed Purchasing - Southmead Hospital,Permanent Nursing,Fshc  1St Floor,1199.00, 09-Apr-2019
1794,Revenue,CAHD,Bed Purchasing - Southmead Hospital,Permanent Nursing,Fshc  1St Floor,1155.60, 09-Apr-2019
1795,Revenue,CAHD,Bed Purchasing - Southmead Hospital,Fees & Charges Income - General,Fshc  1St Floor,789.14, 09-Apr-2019
1796,Revenue,CAHD,Bed Purchasing - Central,Permanent Residential,Fshc  1St Floor,4152.00, 09-Apr-2019
1797,Revenue,CAHD,Bed Purchasing - Central,Permanent Residential,Fshc  1St Floor,1417.22, 09-Apr-2019
1798,Revenue,CAHD,Bed Purchasing - Central,Permanent Residential,Fshc  1St Floor,1384.00, 09-Apr-2019
1799,Revenue,CAHD,Bed Purchasing - Central,Fees & Charges Income - General,Fshc  1St Floor,789.14, 09-Apr-2019
1800,Revenue,CAHD,Bed Purchasing - North,Permanent Nursing,Fshc  1St Floor,1199.00, 09-Apr-2019
1801,Revenue,CAHD,South Glos Users in South Glos Homes,Permanent Nursing,Fshc  1St Floor,632.64, 09-Apr-2019
1802,Revenue,CAHD,Bed Purchasing - North,Permanent Nursing,Fshc  1St Floor,1155.22, 09-Apr-2019
1803,Revenue,CAHD,Bed Purchasing - North,Permanent Nursing,Fshc  1St Floor,1199.00, 09-Apr-2019
1804,Revenue,CAHD,Bed Purchasing - North,Permanent Nursing,Fshc  1St Floor,1155.22, 09-Apr-2019
1805,Revenue,CAHD,South Glos Users in South Glos Homes,Permanent Nursing,Fshc  1St Floor,632.64, 09-Apr-2019
1806,Revenue,CAHD,South Glos Users in South Glos Homes,Permanent Nursing,Fshc  1St Floor,632.64, 09-Apr-2019
1807,Revenue,CAHD,Bed Purchasing - Central,Permanent Nursing,Fshc  1St Floor,1199.00, 09-Apr-2019
1808,Revenue,CAHD,Bed Purchasing - Central,Permanent Nursing,Fshc  1St Floor,1155.22, 09-Apr-2019
1809,Revenue,CAHD,South Glos Users in South Glos Homes,Permanent Nursing,Fshc  1St Floor,632.64, 09-Apr-2019
1810,Revenue,CAHD,Bed Purchasing - North,Permanent Nursing,Fshc  1St Floor,1235.72, 09-Apr-2019
1811,Revenue,CAHD,Bed Purchasing - North,Permanent Nursing,Fshc  1St Floor,1190.48, 09-Apr-2019
1812,Revenue,CAHD,South Glos Users in South Glos Homes,Permanent Nursing,Fshc  1St Floor,632.64, 09-Apr-2019
1813,Revenue,CAHD,South Glos Users in South Glos Homes,Permanent Nursing,Fshc  1St Floor,632.64, 09-Apr-2019
1814,Revenue,CAHD,Bed Purchasing - North,Permanent Nursing,Fshc  1St Floor,1178.30, 09-Apr-2019
1815,Revenue,CAHD,Bed Purchasing - North,Permanent Nursing,Fshc  1St Floor,1135.16, 09-Apr-2019
1816,Revenue,CAHD,South Glos Users in South Glos Homes,Permanent Nursing,Fshc  1St Floor,632.64, 09-Apr-2019
1817,Revenue,CAHD,Bed Purchasing - North,Permanent Nursing,Fshc  1St Floor,1235.72, 09-Apr-2019
1818,Revenue,CAHD,Bed Purchasing - North,Permanent Nursing,Fshc  1St Floor,1190.48, 09-Apr-2019
1819,Revenue,CAHD,South Glos Users in South Glos Homes,Permanent Nursing,Fshc  1St Floor,632.64, 09-Apr-2019
1820,Revenue,CAHD,Bed Purchasing - Central,Permanent Nursing,Fshc  1St Floor,1243.06, 09-Apr-2019
1821,Revenue,CAHD,Bed Purchasing - Central,Permanent Nursing,Fshc  1St Floor,1213.92, 09-Apr-2019
1822,Revenue,CAHD,South Glos Users in South Glos Homes,Permanent Nursing,Fshc  1St Floor,632.64, 09-Apr-2019
1823,Revenue,CAHD,Bed Purchasing - North,Permanent Nursing,Fshc  1St Floor,1199.00, 09-Apr-2019
1824,Revenue,CAHD,Bed Purchasing - North,Permanent Nursing,Fshc  1St Floor,1155.22, 09-Apr-2019
1825,Revenue,CAHD,South Glos Users in South Glos Homes,Permanent Nursing,Fshc  1St Floor,632.64, 09-Apr-2019
1826,Revenue,CAHD,Bed Purchasing - Central,Permanent Nursing,Fshc  1St Floor,1617.36, 09-Apr-2019
1827,Revenue,CAHD,Bed Purchasing - Central,Permanent Nursing,Fshc  1St Floor,1579.46, 09-Apr-2019
1828,Revenue,CAHD,South Glos Users in South Glos Homes,Permanent Nursing,Fshc  1St Floor,632.64, 09-Apr-2019
1829,Revenue,CAHD,Bed Purchasing - Central,Permanent Nursing,Fshc  1St Floor,1736.22, 09-Apr-2019
1830,Revenue,CAHD,Bed Purchasing - Central,Permanent Nursing,Fshc  1St Floor,1695.52, 09-Apr-2019
1831,Revenue,CAHD,South Glos Users in South Glos Homes,Permanent Nursing,Fshc  1St Floor,632.64, 09-Apr-2019
1832,Revenue,CAHD,South Glos Users in South Glos Homes,Permanent Nursing,Fshc  1St Floor,632.64, 09-Apr-2019
1833,Revenue,CAHD,South Glos Users in South Glos Homes,Permanent Nursing,Fshc  1St Floor,632.64, 09-Apr-2019
1834,Revenue,CAHD,South Glos Users in South Glos Homes,Permanent Nursing,Fshc  1St Floor,632.64, 09-Apr-2019
1835,Revenue,CAHD,South Glos Users in South Glos Homes,Permanent Nursing,Fshc  1St Floor,632.64, 09-Apr-2019
1836,Revenue,CAHD,Bed Purchasing - South,Respite Planned - Nursing,Fshc  1St Floor,3885.71, 09-Apr-2019
1837,Revenue,CAHD,Bed Purchasing - South,Respite Planned - Nursing,Fshc  1St Floor,1214.29, 09-Apr-2019
1838,Revenue,CAHD,South Glos Users in South Glos Homes,Permanent Nursing,Fshc  1St Floor,632.64, 09-Apr-2019
1839,Revenue,CAHD,Bed Purchasing - Central,Permanent Nursing,Fshc  1St Floor,1365.68, 09-Apr-2019
1840,Revenue,CAHD,Bed Purchasing - Central,Permanent Nursing,Fshc  1St Floor,1333.68, 09-Apr-2019
1841,Revenue,CAHD,South Glos Users in South Glos Homes,Permanent Nursing,Fshc  1St Floor,632.64, 09-Apr-2019
1842,Revenue,CAHD,Bed Purchasing - Central,Permanent Nursing,Fshc  1St Floor,1468.08, 09-Apr-2019
1843,Revenue,CAHD,Bed Purchasing - Central,Permanent Nursing,Fshc  1St Floor,1433.68, 09-Apr-2019
1844,Revenue,CAHD,South Glos Users in South Glos Homes,Permanent Nursing,Fshc  1St Floor,632.64, 09-Apr-2019
1845,Revenue,CAHD,Bed Purchasing - Central,Permanent Nursing,Fshc  1St Floor,1498.80, 09-Apr-2019
1846,Revenue,CAHD,Bed Purchasing - Central,Permanent Nursing,Fshc  1St Floor,1463.68, 09-Apr-2019
1847,Revenue,CAHD,South Glos Users in South Glos Homes,Permanent Nursing,Fshc  1St Floor,632.64, 09-Apr-2019
1848,Revenue,CAHD,South Glos Users in South Glos Homes,Permanent Nursing,Fshc  1St Floor,632.64, 09-Apr-2019
1849,Revenue,CAHD,Bed Purchasing - Central,Respite Planned - Nursing,Fshc  1St Floor,1293.78, 09-Apr-2019
1850,Revenue,CAHD,Bed Purchasing - Central,Respite Planned - Nursing,Fshc  1St Floor,1263.46, 09-Apr-2019
1851,Revenue,CAHD,South Glos Users in South Glos Homes,Permanent Nursing,Fshc  1St Floor,632.64, 09-Apr-2019
1852,Revenue,CAHD,South Glos Users in South Glos Homes,Permanent Nursing,Fshc  1St Floor,632.64, 09-Apr-2019
1853,Revenue,CAHD,Bed Purchasing - Central,Respite Emergency - Residential,Fshc  1St Floor,1457.14, 09-Apr-2019
1854,Revenue,CAHD,Bed Purchasing - Central,Permanent Nursing,Fshc  1St Floor,1304.34, 09-Apr-2019
1855,Revenue,CAHD,Bed Purchasing - Central,Permanent Nursing,Fshc  1St Floor,1273.76, 09-Apr-2019
1856,Revenue,CAHD,South Glos Users in South Glos Homes,Permanent Nursing,Fshc  1St Floor,632.64, 09-Apr-2019
1857,Revenue,CAHD,South Glos Users in South Glos Homes,Permanent Nursing,Fshc  1St Floor,632.64, 09-Apr-2019
1858,Revenue,CAHD,Bed Purchasing - Central,Respite Emergency - Residential,Fshc  1St Floor,7060.24, 09-Apr-2019
1859,Revenue,CAHD,South Glos Users in South Glos Homes,Permanent Nursing,Fshc  1St Floor,632.64, 09-Apr-2019
1860,Revenue,CAHD,Bed Purchasing - North,Permanent Nursing,Fshc  1St Floor,1713.84, 09-Apr-2019
1861,Revenue,CAHD,Bed Purchasing - North,Permanent Nursing,Fshc  1St Floor,1673.68, 09-Apr-2019
1862,Revenue,CAHD,South Glos Users in South Glos Homes,Permanent Nursing,Fshc  1St Floor,632.64, 09-Apr-2019
1863,Revenue,CAHD,South Glos Users in South Glos Homes,Permanent Nursing,Fshc  1St Floor,632.64, 09-Apr-2019
1864,Revenue,CAHD,Bed Purchasing - Central,Respite Planned - Nursing,Fshc  1St Floor,5722.77, 09-Apr-2019
1865,Revenue,CAHD,South Glos Users in South Glos Homes,Permanent Nursing,Fshc  1St Floor,2485.37, 09-Apr-2019
1866,Revenue,CAHD,Bed Purchasing - Central,Respite Planned - Nursing,Fshc  1St Floor,1519.28, 09-Apr-2019
1867,Revenue,CAHD,Bed Purchasing - Central,Respite Planned - Nursing,Fshc  1St Floor,1483.68, 09-Apr-2019
1868,Revenue,CAHD,South Glos Users in South Glos Homes,Permanent Nursing,Fshc  1St Floor,632.64, 09-Apr-2019
1869,Revenue,CAHD,Bed Purchasing - Central,Permanent Nursing,Fshc  1St Floor,1235.72, 09-Apr-2019
1870,Revenue,CAHD,Bed Purchasing - Central,Permanent Nursing,Fshc  1St Floor,1190.48, 09-Apr-2019
1871,Revenue,CAHD,South Glos Users in South Glos Homes,Permanent Nursing,Fshc  1St Floor,632.64, 09-Apr-2019
1872,Revenue,CAHD,Bed Purchasing - Central,Permanent Nursing,Fshc  1St Floor,1519.28, 09-Apr-2019
1873,Revenue,CAHD,Bed Purchasing - Central,Permanent Nursing,Fshc  1St Floor,1483.68, 09-Apr-2019
1874,Revenue,CAHD,South Glos Users in South Glos Homes,Permanent Nursing,Fshc  1St Floor,632.64, 09-Apr-2019
1875,Revenue,CAHD,South Glos Users in South Glos Homes,Permanent Nursing,Fshc  1St Floor,632.64, 09-Apr-2019
1876,Revenue,CAHD,Bed Purchasing - North,Permanent Nursing,Fshc  1St Floor,1417.10, 09-Apr-2019
1877,Revenue,CAHD,Bed Purchasing - North,Permanent Nursing,Fshc  1St Floor,1383.88, 09-Apr-2019
1878,Revenue,CAHD,South Glos Users in South Glos Homes,Permanent Nursing,Fshc  1St Floor,632.64, 09-Apr-2019
1879,Revenue,CAHD,South Glos Users in South Glos Homes,Permanent Nursing,Fshc  1St Floor,632.64, 09-Apr-2019
1880,Revenue,CAHD,Bed Purchasing - Central,Permanent Nursing,Fshc  1St Floor,1617.36, 09-Apr-2019
1881,Revenue,CAHD,Bed Purchasing - Central,Permanent Nursing,Fshc  1St Floor,1579.46, 09-Apr-2019
1882,Revenue,CAHD,South Glos Users in South Glos Homes,Permanent Nursing,Fshc  1St Floor,632.64, 09-Apr-2019
1883,Revenue,CAHD,Bed Purchasing - North,Permanent Nursing,Fshc  1St Floor,1257.74, 09-Apr-2019
1884,Revenue,CAHD,Bed Purchasing - North,Permanent Nursing,Fshc  1St Floor,1228.26, 09-Apr-2019
1885,Revenue,CAHD,South Glos Users in South Glos Homes,Permanent Nursing,Fshc  1St Floor,632.64, 09-Apr-2019
1886,Revenue,CAHD,Bed Purchasing - South,Permanent Nursing,Fshc  1St Floor,1308.06, 09-Apr-2019
1887,Revenue,CAHD,Bed Purchasing - South,Permanent Nursing,Fshc  1St Floor,1277.40, 09-Apr-2019
1888,Revenue,CAHD,South Glos Users in South Glos Homes,Permanent Nursing,Fshc  1St Floor,632.64, 09-Apr-2019
1889,Revenue,CAHD,Bed Purchasing - Central,Permanent Nursing,Fshc  1St Floor,1235.72, 09-Apr-2019
1890,Revenue,CAHD,Bed Purchasing - Central,Permanent Nursing,Fshc  1St Floor,1190.48, 09-Apr-2019
1891,Revenue,CAHD,South Glos Users in South Glos Homes,Permanent Nursing,Fshc  1St Floor,632.64, 09-Apr-2019
1892,Revenue,CAHD,Bed Purchasing - South,Permanent Nursing,Fshc  1St Floor,1268.42, 09-Apr-2019
